{"text_format":"1","workbook":"xlsx","n_sheets":113,"sheets":["sauvegarde","sauvegarde_sp","rapport 1a","rapport 1a_sp","rapport 1b","rapport 1b_hq","rapport 1b_sp","rapport 2","rapport 2_sp","rapport 3","rapport 3_sp","rapport 4","rapport 4_sp","rapport 5a","rapport 5a_sp","rapport 5b","rapport 5b_sp","rapport 6a","rapport 6a_sp","rapport 6b","rapport 6b_sp","rapport 7","rapport 7_sp","rapport 7_old","rapport 8","rapport 8_sp","rapport 9","rapport 9_sp","rapport synthese","rapport synthese 1b","page titre","page titre ind","mise en garde","mise en garde ind","table matiere sp","pb1","pb2","pb3","pb4","pb8","pb9","config prog","Procédure d'utilisation","Limites au calculateur","Description des onglets","Mesures d'efficacité ","Liste des tableaux","Infos combustible","Inscrire facture","Gabarit","hq facture actuelle","TEST RAPPORT hq","Tarif électrique","Graphique de la consommation","Tableaux 1.1","Tableau 1.2","Tableau 1.3","Tableau 1.4","Tableau 1.5","Tableau 1.6","Tableau 1.7","Tableau 1.8","Tableau 1.9","Tableau 1.10","Tableau 1.11","Tableau 1.12","Tableau 1.13","Tableau 1.14","Tableau 1.15","Tableau 2.1","Tableau 2.2","Tableau 2.4","Tableau 2.3","Tableau 2.5","Tableau 2.6","Tableau 3.1","Tableau 3.2","Tableau 3.3","Tableau 3.4","Tableau 4.1","Tableau 4.2","Tableau 4.3","Tableau 5.1","Tableau 5.2","Tableau 5.3","Tableau 5.4","Tableau 5.5","Tableau 5.6","Tableau 5.7","Tableau 5.8","Tableau 6.1","Tableau 6.2","Tableau 6.3","Tableau 6.4","Tableau 6.5","Tableau 6.6","Tableau 6.7","Tableau 6.8","Tableau 6.9","Tableau 6.10","Tableau 7.1","Tableau 7.2","Tableau 8.1","Tableau 8.2","Tableau 8.3","Tableau 9.1","Tableau 9.2","Tableau 9.3","Tableau 9.4","Tableau 9.5","Paramètres","DegresJourHiver","modele conversion HQ"],"not_rendered":{"charts":1,"images":29,"macros":1,"external_links":4,"defined_names":264,"comments":1,"pivot_tables":0},"unopened":[],"bounds":{"document_bytes":16777216,"sheet_cells":100000,"rows_first":2000,"rows_last":500,"rows_between":2000,"halvings":0,"cell_chars":16384,"cell_head_chars":4096},"cells_cut":0,"cells_raw":0,"read":"whole","date_system":"1900"}

{"sheet":"sauvegarde","index":0,"n_rows":33,"n_cols":24,"rows_kept":33,"cut":false,"hidden":true,"merged":[]}
["cboSourceEnergie",-1,"cboSourceEnergie",-1,"cboSourceEnergie",-1,"txtPourcentageEconomieEnergie","","txtEconomieIsolationTotaleMur","","txtDegresChauffePeriode","","txtEconomieHPS","","cboSourceEnergie",-1,"txtConsommationCombustible","","cboSourceEnergie",-1,"cboSourceEnergie",-1,"txtNombreLampe",""]
["txtRendementEnergetiqueAncienne","","txtRendementEnergetiqueAncienne","","txtEconomieEnergie","","txtConsommationActuelleCombustible","","txtEconomieIsolationFondation","","lblEconomieAnnuelle","","txtEconomieDEL","","txtEconomieEnergie","","chkHydroAccumulation",false,"txtEconomiesScenario1","","txtConsommation","","txtPuissanceLampe",""]
["txtRendementEnergetiqueNouvelle","","txtRendementEnergetiqueNouvelle","","txtConsommationActuelle","","optOuvert",false,"chkIsolationFondation",false,"lblReductionGES","","txtNombreLampe","","txtConsommationActuelle","","cboSourceGazCarbonique",-1,"txtEconomiesScenario3","","lblConsommationAnticipee","","txtUtilisationAnnuelle",""]
["txtConsommationActuelle","","txtConsommationActuelle","","txtPrixCombustible","","optFerme",false,"txtEconomieIsolationPartielleMur","","cboTypeInfiltration",-1,"txtPuissanceLampe","","txtPrixCombustible","","txtPrixCombustible","","txtConsommationActuelle","","lblEconomiesEnCombustible","","txtCoutTotalInvestissement",""]
["lblConsommationAnticipee","","lblReductionGES","","txtCoutTotalInvestissement","","txtPrix","","txtConsommationActuelleCombustible","","optVitesse270",false,"txtUtilisationAnnuelle","","txtCoutTotalInvestissement","","Label29","%","lblConsommationAnticipee","","lblReductionGES","","txtFacteurConversionElectricite",""]
["lblEconomieAnnuelle","","lblConsommationAvecUnite","","lblConsommationAnticipee","","txtInvestissement","","optIsolationTotaleMur",false,"optVitesse342",false,"optHPS",false,"lblConsommationAnticipee","","txtEconomiesAnnuellesCombustible","","lblEconomieAnnuelle","","lblConsommationAvecUnite","","txtRaccourcissementPeriode",""]
["lblReductionGES","","lblConsommationActuelleKWH","","lblEconomieAnnuelle","","lblConsommationAnticipee","","optIsolationPartielleMur",false,"cboSourceEnergie",-1,"optDEL",false,"lblEconomieAnnuelle","","lblConsommationAnticipee","","lblReductionGES","","txtPrix","","txtConsommationActuelleCombustible",""]
["lblConsommationAvecUnite","","lblConsommationAnticipeeKWH","","lblReductionGES","","lblEconomieEnergieAnnuelle","","txtPrixCombustible","","txtMJParUnite","","txtCoutTotalInvestissement","","lblReductionGES","","lblEconomiesUniteChauffage","","txtPrix","","lblEconomiesEnArgent","","txtPrixCombustible",""]
["txtPrix","","lblEconomieAnnuelleKWH","","lblEconomiesEnArgent","","lblReductionGES","","txtCoutTotalInvestissement","","txtKWHParUnite","","txtTarifElectricite","","lblEconomiesEnArgent","","lblReductionGES","","lblEconomiesEnArgent","","txtInvestissement","","lblUnite2","kg"]
["lblEconomiesEnArgent","","txtPrix","","lblPRI","","lblEconomiesEnArgent","","lblConsommationAnticipee","","txtEmissionsGES","","lblConsommationAnticipee","","lblPRI","","lblEconomiesArgentChauffage","","txtCoutTotal","","lblPRI","","txtConsommationJournaliere",""]
["txtMJParUnite","","lblPrixEtUniteActuel","","txtMJParUnite","","lblPRI","","lblEconomieEnergieAnnuelle","","lblMJParUnite"," MJ/L","lblEconomieAnnuelle","","txtMJParUnite","","lblPRI","","lblPRI","","optEtude",false,"lblConsommationAnticipeeElectricite",""]
["txtKWHParUnite","","lblEconomiesEnArgent","","txtKWHParUnite","","cboSourceEnergie",-1,"lblReductionGES","","lblKWHParUnite"," kWh/L","lblPRI","","txtKWHParUnite","","lblEconomiesArgentCO2","","opt1ChangementPolySimpleVersDouble",false,"optModele",false,"lblConsommationAnticipeeChauffage",""]
["txtEmissionsGES","","txtPrixFuture","","txtEmissionsGES","","txtMJParUnite","","lblEconomiesEnArgent","","lblEmissionsGES"," g CO2/L","lblEconomiesEnArgent","","txtEmissionsGES","","lblEconomiesArgentTotale","","opt2Remplacement",false,"cboCalendrier",-1,"lblEconomiesUniteChauffage",""]
["txtCoutTotal","","lblPrixEtUniteFutur","","lblMJParUnite","","txtKWHParUnite","","lblPRI","",null,null,null,null,"lblMJParUnite","","cboSourceEnergie",-1,"opt3RemplacementAvecPolyIR",false,"txtEconomiesSelonEtude","","lblEconomiesArgentChauffage",""]
["txtFraisAnnuelsExploitationEtEntretien","","cboSourceEnergieFuture",-1,"lblKWHParUnite","","txtEmissionsGES","","cboSourceEnergie",-1,null,null,null,null,"lblKWHParUnite","","txtMJParUnite","","txtMJParUnite","","txtEconomiesSelonModeleEcran","","lblPRI",""]
["lblPRI","","txtCoutTotal","","lblEmissionsGES","","lblMJParUnite","","txtMJParUnite","",null,null,null,null,"lblEmissionsGES","","txtKWHParUnite","","txtKWHParUnite","","lblRatio","","lblReductionsGES",""]
["lblMJParUnite","","txtCoutsAnnuelsExploitationEtEntretien","","lblConsommationAvecUnite","","lblKWHParUnite","","txtKWHParUnite","",null,null,null,null,"lblConsommationAvecUnite","","txtEmissionsGES","","txtEmissionsGES","","lblEconomiesEnPourcent","","cboSourceEnergie",-1]
["lblKWHParUnite","","lblPRI","",null,null,"lblEmissionsGES","","txtEmissionsGES","",null,null,null,null,"lblEconomiesElectriciteKWH","","lblMJParUnite","","lblMJParUnite"," ","txtHauteurGouttiere","","txtMJParUnite",""]
["lblEmissionsGES","","txtMJParUnite","",null,null,"lblConsommationAvecUnite","","lblMJParUnite","",null,null,null,null,"lblEconomiesElectriciteArgent","","lblKWHParUnite","","lblKWHParUnite","","txtHauteurPignon","","txtKWHParUnite",""]
[null,null,"txtKWHParUnite","",null,null,null,null,"lblKWHParUnite","",null,null,null,null,"txtNombreLampe","","lblEmissionsGES","","lblEmissionsGES","","txtLargeur","","txtEmissionsGES",""]
[null,null,"txtEmissionsGES","",null,null,null,null,"lblEmissionsGES","",null,null,null,null,"txtPuissanceLampe","","lblConsommationAvecUnite","","lblConsommationAvecUnite","","txtLongueur","","lblMJParUnite",""]
[null,null,"lblMJParUnite","",null,null,null,null,"lblConsommationAvecUnite","",null,null,null,null,"txtNombreHeuresEvitees","","txtConsommationEnrichissementCarbonne","",null,null,"txtMJParUnite","","lblKWHParUnite",""]
[null,null,"lblKWHParUnite","",null,null,null,null,null,null,null,null,null,null,"txtPrixElectricite","","lblEntreConsommation","Consommation  pour enrichissement carbonné",null,null,"txtKWHParUnite","","lblEmissionsGES",""]
[null,null,"lblEmissionsGES","",null,null,null,null,null,null,null,null,null,null,null,null,"lblCO2PrixParUnite","",null,null,"txtEmissionsGES","","lblConsommationAvecUnite",""]
[null,null,"txtMJParUniteFuture","",null,null,null,null,null,null,null,null,null,null,null,null,"txtPrixCO2Unite","",null,null,"lblMJParUnite","","lblEconomiesChauffagePourC",""]
[null,null,"txtKWHParUniteFuture","",null,null,null,null,null,null,null,null,null,null,null,null,"lblEntrePrixCO2","Prix de la source de CO2",null,null,"lblKWHParUnite",""]
[null,null,"txtEmissionsGESFuture","",null,null,null,null,null,null,null,null,null,null,null,null,"txtCoutTotalInvestissement","",null,null,"lblEmissionsGES",""]
[null,null,"lblMJParUniteFuture","",null,null,null,null,null,null,null,null,null,null,null,null,"lblUniteSourceGaz","",null,null,"cboLongueur1",-1]
[null,null,"lblKWHParUniteFuture","",null,null,null,null,null,null,null,null,null,null,null,null,null,null,null,null,"cboLongueur2",-1]
[null,null,"lblEmissionsGESFuture","",null,null,null,null,null,null,null,null,null,null,null,null,null,null,null,null,"cboLongueur3",-1]
[null,null,"lblConsommationAnticipeeUnite","",null,null,null,null,null,null,null,null,null,null,null,null,null,null,null,null,"cboLongueur4",-1]
[null,null,"lblEconomieAnnuelleUnite",""]
[null,null,"chkFacteur",false]

{"sheet":"sauvegarde_sp","index":1,"n_rows":0,"n_cols":0,"rows_kept":0,"cut":false,"hidden":true,"merged":[]}

{"sheet":"rapport 1a","index":2,"n_rows":28,"n_cols":8,"rows_kept":28,"cut":false,"hidden":true,"merged":[]}
[]
[null,"Système de production de chaleur efficaces (maintien d'une même source énergétique)",null,null,null,null,null,"À garder en mémoire:"]
[null,null,null,null,null,null,null,"Aligner sur plusieurs colonnes au lieu de fusionner les cellules"]
[null,"SOURCE D'ÉNERGIE:",null,"Mazout no.2",null,null,null,"L'alignement vertical des cellules est perdue"]
[null,null,null,null,null,null,null,"La couleur du texte peut ne pas être copiée"]
[null,"VALEURS PAR DÉFAUT"]
[null,"Paramètre",null,null,"Valeur"]
[null,"Unité",null,null,"L"]
[null,"MJ/Unité",null,null,"38,5 MJ/L"]
[null,"kWh/Unité",null,null,"10,7 kWh/L"]
[null,"Émissions de GES (g CO2 eq/unité)",null,null,"2734,7 g CO2/L"]
[]
[null,"DONNÉES ENTRÉES"]
[null,"Paramètre",null,null,null,"Valeur"]
[null,"Rendement énergétique de l'ancienne chaudière",null,null,null,"74.8 %"]
[null,"Rendement énergétique de la nouvelle chaudière",null,null,null,"68 %"]
[null,"Consommation actuelle de combustible",null,null,null,"  30 000 L/an"]
[null,"Prix du combustible",null,null,null,"0.70 $/L"]
[null,"Coût total de l'investissement",null,null,null,"  100 000 $"]
[null,"Frais annuel d'exploitation et d'entretien",null,null,null,"  10 000 $/an"]
[]
[null,"DONNÉES DE SORTIE"]
[null,"Paramètre",null,null,"Valeur"]
[null,"Consommation anticipée",null,null,"  33 000 L/an"]
[null,"Économies d'énergie annuelles",null,null,"-  3 000 L/an"]
[null,"Économies d'énergie annuelles",null,null,"-  2 100.00 $/an"]
[null,"Réduction des GES",null,null,"-  8 204.1 kg CO2 eq/an"]
[null,"Période de retour sur investissement",null,null,"NON CALCULÉ"]

{"sheet":"rapport 1a_sp","index":3,"n_rows":29,"n_cols":6,"rows_kept":29,"cut":false,"hidden":true,"merged":[]}
[]
[null,"Systèmes de production de chaleur efficaces"]
[null,"(maintien d'une même source énergétique)"]
[null,"SOURCE D'ÉNERGIE:",null,"Mazout no.2"]
[]
[null,"VALEURS PAR DÉFAUT"]
[null,"Paramètre",null,null,"Valeur"]
[null,"Unité",null,null,"L"]
[null,"MJ/Unité",null,null,"38,5 MJ/L"]
[null,"kWh/Unité",null,null,"10,7 kWh/L"]
[null,"Émissions de GES (g CO2 eq/unité)",null,null,"2734,7 g CO2/L"]
[]
[null,"DONNÉES ENTRÉES"]
[null,"Paramètre",null,null,null,"Valeur"]
[null,"Rendement énergétique de l'ancienne chaudière",null,null,null,"70 %"]
[null,"Rendement énergétique de la nouvelle chaudière",null,null,null,"90 %"]
[null,"Consommation actuelle de combustible",null,null,null," 40 000 kg/an"]
[null,"Prix du combustible",null,null,null,"0.9 $/kg"]
[null,"Coût total de l'investissement",null,null,null,"1000 $"]
[null,"Frais annuel d'exploitation et d'entretien",null,null,null,"10 $/an"]
[]
[null,"DONNÉES DE SORTIE"]
[null,"Paramètre",null,null,"Valeur"]
[null,"Économies d'énergie annuelles",null,null,"22.2 %"]
[null,"Économies d'énergie annuelles",null,null,"  31 111 kg/an"]
[null,"Économies d'énergie annuelles",null,null,"  8 889 kg/an"]
[null,"Économies d'énergie annuelles",null,null,"  8 000.00 $/an"]
[null,"Réduction des GES",null,null,"  16 310.8 kg CO2 eq/an"]
[null,"Période de retour sur investissement",null,null,"  0.13 an(s)"]

{"sheet":"rapport 1b","index":4,"n_rows":43,"n_cols":8,"rows_kept":43,"cut":false,"hidden":true,"merged":[]}
[]
[null,"Système de production de chaleur efficaces (conversion de source énergétique)",null,null,null,null,null,"À garder en mémoire:"]
[null,null,null,null,null,null,null,"Aligner sur plusieurs colonnes au lieu de fusionner les cellules"]
[null,"SOURCE D'ÉNERGIE ACTUELLE:",null,null,"Gaz naturel",null,null,"L'alignement vertical des cellules est perdue"]
[null,null,null,null,null,null,null,"La couleur du texte peut ne pas être copiée"]
[null,"VALEURS PAR DÉFAUT"]
[null,"Paramètre",null,null,"Valeur"]
[null,"Unité",null,null,"m3"]
[null,"MJ/Unité",null,null,"37,9 MJ/m3"]
[null,"kWh/Unité",null,null,"10,5 kWh/m3"]
[null,"Émissions de GES (g CO2 eq/unité)",null,null,"1889,3 g CO2 eq/m3"]
[]
[null,"SOURCE D'ÉNERGIE FUTURE:",null,null,"Électricité"]
[]
[null,"VALEURS PAR DÉFAUT"]
[null,"Paramètre",null,null,"Valeur"]
[null,"Unité",null,null,"kWh"]
[null,"MJ/Unité",null,null,"3,6 MJ/kWh"]
[null,"kWh/Unité",null,null,"1,0 kWh/kWh"]
[null,"Émissions de GES (g CO2 eq/unité)",null,null,"0,0 g CO2 eq/kWh"]
[]
[null,"DONNÉES D'ENTRÉE"]
[null,"Paramètre",null,null,null,"Valeur"]
[null,"Rendement énergétique de l'ancienne chaudière",null,null,null,"90 %"]
[null,"Rendement énergétique de la nouvelle chaudière",null,null,null,"100 %"]
[null,"Consommation actuelle de combustible",null,null,null,"  140 000 m3/an"]
[null,"Prix du combustible de l'ancien système",null,null,null,"1.00 $/m3"]
[null,"Prix du combustible du nouveau système",null,null,null,"0.10 $/kWh"]
[null,"Facteur de gestion de la demande"]
[null,"Coût total de l'investissement",null,null,null,"  10 000 $"]
[null,"Coûts annuels d'exploitation et d'entretien",null,null,null,"  5 000 $/an"]
[]
[]
[null,"DONNÉES DE SORTIE"]
[null,"Paramètre",null,null,"Valeur"]
[null,"Consommation actuelle",null,null," 1 470 000 kWh/an"]
[null,"Consommation anticipée",null,null," 1 323 000 kWh/an"]
[null,"Consommation anticipée",null,null," 1 323 000 kWh/an"]
[null,"Économies d'énergie annuelles",null,null,"  147 000 kWh/an"]
[null,"Économies d'énergie annuelles",null,null,"  147 000 kWh /an"]
[null,"Économies d'énergie annuelles",null,null," 7 700.00 $/an"]
[null,"Réduction des GES",null,null,"  264 502.0 kg CO2 eq/an"]
[null,"Période de retour sur investissement",null,null," 3.70 an(s)"]

{"sheet":"rapport 1b_hq","index":5,"n_rows":47,"n_cols":6,"rows_kept":47,"cut":false,"hidden":true,"merged":[]}
[]
[null,"Système de production de chaleur efficaces (conversion de source énergétique)"]
[]
[null,"SOURCE D'ÉNERGIE ACTUELLE:",null,null,"Mazout Léger (no 2)"]
[]
[null,"VALEURS PAR DÉFAUT"]
[null,"Paramètre",null,null,"Valeur"]
[null,"Unité",null,null,"litre (L)"]
[null,"MJ/Unité",null,null,"38.5 MJ/L"]
[null,"kWh/Unité",null,null,"10.69 kWh/L"]
[null,"Émissions de GES (g CO2 eq/unité)",null,null,"2734.7 g CO2 eq/L"]
[]
[null,"SOURCE D'ÉNERGIE FUTURE:",null,null,"Électricité"]
[]
[null,"VALEURS PAR DÉFAUT"]
[null,"Paramètre",null,null,"Valeur"]
[null,"Unité",null,null,"kWh"]
[null,"MJ/Unité",null,null,"3.6 MJ/kWh"]
[null,"kWh/Unité",null,null,"1.0 kWh/kWh"]
[null,"Émissions de GES (g CO2 eq/unité)",null,null,"0 g CO2 eq/kWh"]
[]
[null,"DONNÉES D'ENTRÉE"]
[null,"Paramètre",null,null,null,"Valeur"]
[null,"Rendement énergétique de l'ancienne chaudière",null,null,null,"70 %"]
[null,"Rendement énergétique de la nouvelle chaudière"]
[null,"Consommation actuelle de combustible",null,null,null,"  1 000 L/an"]
[null,"Prix du combustible de l'ancien système",null,null,null,"0.07 $/L"]
[null,"Prix du combustible du nouveau système",null,null,null,"0.08 $/L"]
[null,"Facteur de gestion de la demande"]
[null,"Coût total de l'investissement",null,null,null,"  50 000 $"]
[null,"Coûts annuels d'exploitation et d'entretien",null,null,null,"  5 000 $/an"]
[]
[]
[null,"DONNÉES DE SORTIE"]
[null,"Paramètre",null,null,null,"Valeur"]
[null,"Tarif électrique le plus avantageux",null,null,null,"DT"]
[null,"Coût estimée (électricité et combustible)",null,null,null,"   0.40 $/m2"]
[null,"Prix du combustible (après conversion)",null,null,null," 1.03 sous/kWh"]
[null,"Prix de l'électricité (après conversion)",null,null,null," 6.46 sous/kWh"]
[null,"Consommation actuelle (électricité et combustible)",null,null,null,"  10 713 kWh/an"]
[null,"Consommation anticipée (électricité et combustible)",null,null,null,"  7 506 kWh/an"]
[null,"Consommation anticipée (électricité)",null,null,null,"  7 506 kWh/an"]
[null,"Consommation anticipée (combustible)",null,null,null,"   0 L/an"]
[null,"Économies d'énergie annuelles",null,null,null,"30 %/an"]
[null,"Économies d'énergie annuelles",null,null,null,"  8 585 $/an"]
[null,"Réduction des GES",null,null,null,"  2 734.7 kg CO2 eq"]
[null,"Période de retour sur investissement",null,null,null,"13.95 an(s)"]

{"sheet":"rapport 1b_sp","index":6,"n_rows":47,"n_cols":6,"rows_kept":47,"cut":false,"hidden":true,"merged":[]}
[]
[null,"Systèmes de production de chaleur efficaces"]
[null,"(conversion de source énergétique)"]
[null,"SOURCE D'ÉNERGIE ACTUELLE:"]
[]
[null,"VALEURS PAR DÉFAUT"]
[null,"Paramètre",null,null,"Valeur"]
[null,"Unité"]
[null,"MJ/Unité"]
[null,"kWh/Unité"]
[null,"Émissions de GES (g CO2 eq/unité)"]
[]
[null,"SOURCE D'ÉNERGIE FUTURE:",null,null,"Électricité"]
[]
[null,"VALEURS PAR DÉFAUT"]
[null,"Paramètre",null,null,"Valeur"]
[null,"Unité",null,null,"kWh"]
[null,"MJ/Unité",null,null,"3,6 MJ/kWh"]
[null,"kWh/Unité",null,null,"1,0 kWh/kWh"]
[null,"Émissions de GES (g CO2 eq/unité)",null,null,"0,0 g CO2 eq/kWh"]
[]
[null,"DONNÉES D'ENTRÉE"]
[null,"Paramètre",null,null,null,"Valeur"]
[null,"Rendement énergétique de l'ancienne chaudière",null,null,null,"90 %"]
[null,"Rendement énergétique de la nouvelle chaudière",null,null,null,"100 %"]
[null,"Consommation actuelle de combustible",null,null,null,"30000 L/an"]
[null,"Prix du combustible de l'ancien système",null,null,null,"0.7 $/L"]
[null,"Prix du combustible du nouveau système",null,null,null,"0.03 $/kWh"]
[null,"Facteur de gestion de la demande",null,null,null,"OUI"]
[null,"Coût total de l'investissement",null,null,null,"50000 $"]
[null,"Coûts annuels d'exploitation et d'entretien",null,null,null,"5000 $/an"]
[]
[]
[]
[]
[]
[null,"DONNÉES DE SORTIE"]
[null,"Paramètre",null,null,"Valeur"]
[null,"Économies d'énergie annuelles",null,null,"19.0 %"]
[null,"Consommation anticipée",null,null,"  321 000 kWh/an"]
[null,"Consommation anticipée",null,null,"  260 010 kWh/an"]
[null,"Économies d'énergie annuelles",null,null,"  260 010 kWh/an"]
[null,"Économies d'énergie annuelles",null,null,"  60 990 kWh/an"]
[null,"Économies d'énergie annuelles",null,null,"  60 990 kWh /an"]
[null,"Économies d'énergie annuelles",null,null," 13 199.70 $/an"]
[null,"Réduction des GES",null,null,"  82 041.0 kg CO2 eq/an"]
[null,"Période de retour sur investissement",null,null," 6.10 an(s)"]

{"sheet":"rapport 2","index":7,"n_rows":51,"n_cols":8,"rows_kept":51,"cut":false,"hidden":true,"merged":[[16,1,16,4],[44,1,44,3]]}
[]
[null,"Installation d'écrans thermiques",null,null,null,null,null,"À garder en mémoire:"]
[null,null,null,null,null,null,null,"Aligner sur plusieurs colonnes au lieu de fusionner les cellules"]
[null,"SOURCE D'ÉNERGIE:",null,"Biomasse",null,null,null,"L'alignement vertical des cellules est perdue"]
[null,null,null,null,null,null,null,"La couleur du texte peut ne pas être copiée"]
[null,"VALEURS PAR DÉFAUT"]
[null,"Paramètre",null,null,"Valeur"]
[null,"Unité",null,null,"kg"]
[null,"MJ/Unité",null,null,"38 MJ/kg"]
[null,"kWh/Unité",null,null,"2 kWh/kg"]
[null,"Émissions de GES (g CO2 eq/unité)",null,null,"2 g CO2/kg"]
[]
[null,"MÉTHODE DE CALCUL:",null,"Modèle - cas d'utilisation réel"]
[]
[null,"CALCUL SELON L'ÉTUDE DU CIDES"]
[null,"Paramètre",null,null,null,"Valeur"]
[null,"Économies potentielle en chauffage ",null,null,null,"10 %"]
[null,"CALCUL SELON LE MODÈLE"]
[null,"Paramètre",null,null,null,null,"Valeur"]
[null,"Économies d'énergie théoriques de l'écran qui sera installée",null,null,null,null," %"]
[null,"Hauteur de la serre à la gouttière",null,null,null,null," "]
[null,"Hauteur de la serre au pignon",null,null,null,null," "]
[null,"Largeur de la serre",null,null,null,null," "]
[null,"Longueur de la serre",null,null,null,null," "]
[]
[null,"CALENDRIER DE PRODUCTION: ",null,null,"Mi-février à mi-novembre"]
[]
[null,"DONNÉES D'ENTRÉE COMMUNES AUX 2 MÉTHODES"]
[null,"Paramètre",null,null,null,"Valeur"]
[null,"Consommation actuelle de combustible",null,null,null,"140000 kg/an"]
[null,"Prix du combustible ($/unité)",null,null,null,"0.05 $/kg"]
[null,"Coût total de l'investissement ($)",null,null,null,"1000 $"]
[]
[]
[]
[]
[]
[]
[]
[]
[]
[]
[null,"DONNÉES DE SORTIE"]
[null,"Paramètre",null,null,"Valeur"]
[null,"Ratio de la superficie du toit par rapport à la superficie extérieure ",null,null,"---"]
[null,"Consommation anticipée",null,null,"  132 622 kg/an"]
[null,"Économies d'énergie annuelles",null,null,"5 %"]
[null,"Économies d'énergie annuelles",null,null,"  7 378 kg/an"]
[null,"Économies d'énergie annuelles",null,null,"   368.90 $/an"]
[null,"Réduction des GES",null,null,"   14.8 kg CO2 eq/an"]
[null,"Période de retour sur investissement",null,null,"   2.71 an(s)"]

{"sheet":"rapport 2_sp","index":8,"n_rows":53,"n_cols":7,"rows_kept":53,"cut":false,"hidden":true,"merged":[[16,1,16,4],[46,1,46,3]]}
[]
[null,"Installation d'écran thermique"]
[]
[null,"SOURCE D'ÉNERGIE:",null,"Mazout no.2"]
[]
[null,"VALEURS PAR DÉFAUT"]
[null,"Paramètre",null,null,"Valeur"]
[null,"Unité",null,null,"L"]
[null,"MJ/Unité",null,null,"38,5 MJ/L"]
[null,"kWh/Unité",null,null,"10,7 kWh/L"]
[null,"Émissions de GES (g CO2 eq/unité)",null,null,"2734,7 g CO2/L"]
[]
[null,"MÉTHODE DE CALCUL:",null,"Modèle - cas d'utilisation réel"]
[]
[null,"CALCUL SELON L'ÉTUDE DU CIDES"]
[null,"Paramètre",null,null,null,"Valeur"]
[null,"Économies potentielles en chauffage ",null,null,null,"14 %"]
[null,"CALCUL SELON LE MODÈLE"]
[null,"Paramètre",null,null,null,null,"Valeur"]
[null,"Économies d'énergie théoriques de l'écran qui sera installée",null,null,null,null," %"]
[null,"Hauteur de la serre à la gouttière",null,null,null,null," "]
[null,"Hauteur de la serre au pignon",null,null,null,null," "]
[null,"Largeur de la serre",null,null,null,null," "]
[null,"Longueur de la serre",null,null,null,null," "]
[]
[null,"CALENDRIER DE PRODUCTION: ",null,null,"Annuelle"]
[]
[null,"DONNÉES D'ENTRÉE COMMUNES AUX 2 MÉTHODES"]
[null,"Paramètre",null,null,null,"Valeur"]
[null,"Consommation actuelle de combustible"]
[null,"Prix du combustible ($/unité)"]
[null,"Coût total de l'investissement ($)",null,null,null,"12000 $"]
[]
[]
[]
[]
[]
[]
[]
[]
[]
[]
[]
[]
[null,"DONNÉES DE SORTIE"]
[null,"Paramètre",null,null,"Valeur"]
[null,"Ratio de la superficie du toit par rapport à la superficie extérieure ",null,null,"---"]
[null,"Consommation anticipée",null,null,"  120 400 m3/an"]
[null,"Économies d'énergie annuelles",null,null,"14.0 %"]
[null,"Économies d'énergie annuelles",null,null,"  19 600 m3/an"]
[null,"Économies d'énergie annuelles",null,null,"   980.00 $/an"]
[null,"Réduction des GES",null,null,"  37 030.3 kg CO2 eq/an"]
[null,"Période de retour sur investissement",null,null,"   12.24 an(s)"]

{"sheet":"rapport 3","index":9,"n_rows":31,"n_cols":8,"rows_kept":31,"cut":false,"hidden":true,"merged":[]}
[]
[null,"Utilisation d'un recouvrement de serre efficace",null,null,null,null,null,"À garder en mémoire:"]
[null,null,null,null,null,null,null,"Aligner sur plusieurs colonnes au lieu de fusionner les cellules"]
[null,"SOURCE D'ÉNERGIE:",null,"Mazout no.2",null,null,null,"L'alignement vertical des cellules est perdue"]
[null,null,null,null,null,null,null,"La couleur du texte peut ne pas être copiée"]
[null,"VALEURS PAR DÉFAUT"]
[null,"Paramètre",null,null,"Valeur"]
[null,"Unité",null,null,"L"]
[null,"MJ/Unité",null,null,"38,5 MJ/L"]
[null,"kWh/Unité",null,null,"10,7 kWh/L"]
[null,"Émissions de GES (g CO2 eq/unité)",null,null,"2734,7 g CO2/L"]
[]
[null,"Scénario:"]
[null,"Changement de polyéthylène simple paroi à un polyéthylène double paroi"]
[]
[]
[null,"DONNÉES ENTRÉES"]
[null,"Paramètre",null,null,null,"Valeur"]
[null,"Scénario 1: économies potentielles en chauffage",null,null,null,"10 %"]
[null,"Scénario 3: économies potentielles en chauffage",null,null,null," %"]
[null,"Consommation actuelle de combustible",null,null,null,"30000 L/an"]
[null,"Prix du combustible",null,null,null,"0.7 $/L"]
[null,"Coût total de l'investissement",null,null,null,"1000 $"]
[]
[null,"DONNÉES DE SORTIE"]
[null,"Paramètre",null,null,"Valeur"]
[null,"Consommation anticipée",null,null,"  27 000 L/an"]
[null,"Économies d'énergie annuelles",null,null,"  3 000 L/an"]
[null,"Économies d'énergie annuelles",null,null,"  2 100.00 $/an"]
[null,"Réduction des GES",null,null,"  8 204.1 kg CO2 eq/an"]
[null,"Période de retour sur investissement",null,null," 0.48 an(s)"]

{"sheet":"rapport 3_sp","index":10,"n_rows":31,"n_cols":6,"rows_kept":31,"cut":false,"hidden":true,"merged":[]}
[]
[null,"Utilisation d'un recouvrement de serre efficace"]
[]
[null,"SOURCE D'ÉNERGIE:"]
[]
[null,"VALEURS PAR DÉFAUT"]
[null,"Paramètre",null,null,"Valeur"]
[null,"Unité"]
[null,"MJ/Unité"]
[null,"kWh/Unité"]
[null,"Émissions de GES (g CO2 eq/unité)"]
[]
[null,"Scénario:"]
[null,"Remplacement par un polyéthylène qui inclue un additif qui bloque les pertes de chaleur par rayonnement infrarouge"]
[]
[]
[null,"DONNÉES ENTRÉES"]
[null,"Paramètre",null,null,null,"Valeur"]
[null,"Scénario 1: économies potentielles en chauffage",null,null,null,""]
[null,"Scénario 2: économies potentielles en chauffage",null,null,null,""]
[null,"Scénario 3: économies potentielles en chauffage",null,null,null,"13 %"]
[null,"Prix du combustible"]
[null,"Coût total de l'investissement",null,null,null,"32324 $"]
[]
[null,"DONNÉES DE SORTIE"]
[null,"Paramètre",null,null,"Valeur"]
[null,"Consommation anticipée",null,null,"  121 800 m3/an"]
[null,"Économies d'énergie annuelles",null,null,"  18 200 m3/an"]
[null,"Économies d'énergie annuelles",null,null,"   910.00 $/an"]
[null,"Réduction des GES",null,null,"  34 385.3 kg CO2 eq/an"]
[null,"Période de retour sur investissement",null,null," 35.52 an(s)"]

{"sheet":"rapport 4","index":11,"n_rows":45,"n_cols":5,"rows_kept":45,"cut":false,"hidden":true,"merged":[]}
[]
[null,"Implantation d'un système de contrôle du climat"]
[]
[null,"SOURCE D'ÉNERGIE:",null,"Mazout no.2"]
[]
[null,"VALEURS PAR DÉFAUT"]
[null,"Paramètre",null,null,"Valeur"]
[null,"Unité",null,null,"L"]
[null,"MJ/Unité",null,null,"38,5 MJ/L"]
[null,"kWh/Unité",null,null,"10,7 kWh/L"]
[null,"Émissions de GES (g CO2 eq/unité)",null,null,"2734,7 g CO2/L"]
[]
[]
[null,"DONNÉES ENTRÉES"]
[null,"Paramètre",null,null,"Valeur"]
[null,"Économies d'énergie",null,null,"10 %"]
[null,"Consommation actuelle de combustible",null,null,"30000 L/an"]
[null,"Prix du combustible",null,null,"0.7 $/L"]
[null,"Coût total de l'investissement",null,null,"1000 $/an"]
[]
[null,"AUTRES DONNÉES D'ENTRÉES"]
[null,"Paramètre",null,null,"Valeur"]
[null,"Nombre de lampes",null,null,"1000"]
[null,"Puissance des lampes",null,null,"10 W"]
[null,"Réduction du nombre d'heures d'éclairage",null,null,"1 hrs/an"]
[null,"Tarif électrique",null,null,"0.108 $/kWh"]
[]
[]
[]
[]
[]
[]
[]
[]
[]
[]
[null,"DONNÉES DE SORTIE"]
[null,"Paramètre",null,null,"Valeur"]
[null,"Consommation anticipée",null,null,"  27 000 L/an"]
[null,"Économies d'énergie annuelles",null,null,"  3 000 L/an"]
[null,"Économies d'énergie annuelles",null,null,"  2 100.00 $/an"]
[null,"Économies en électricité",null,null,"   10 kWh/an"]
[null,"Économies en électricité",null,null,"   1.08 $/an"]
[null,"Réduction des GES",null,null,"  8 204.1 kg CO2 eq/an"]
[null,"Période de retour sur investissement",null,null,"   0.48 an(s)"]

{"sheet":"rapport 4_sp","index":12,"n_rows":35,"n_cols":5,"rows_kept":35,"cut":false,"hidden":true,"merged":[]}
[]
[null,"Implantation d'un système de contrôle du climat"]
[]
[null,"SOURCE D'ÉNERGIE:"]
[]
[null,"VALEURS PAR DÉFAUT"]
[null,"Paramètre",null,null,"Valeur"]
[null,"Unité"]
[null,"MJ/Unité"]
[null,"kWh/Unité"]
[null,"Émissions de GES (g CO2 eq/unité)"]
[]
[]
[null,"DONNÉES ENTRÉES"]
[null,"Paramètre",null,null,"Valeur"]
[null,"Économies d'énergie",null,null,"10 %"]
[null,"Consommation actuelle de combustible"]
[null,"Prix du combustible"]
[null,"Coût total de l'investissement",null,null,"50000 $/an"]
[]
[null,"AUTRES DONNÉES D'ENTRÉES"]
[null,"Paramètre",null,null,"Valeur"]
[null,"Nombre de lampes",null,null,""]
[null,"Puissance des lampes",null,null,""]
[null,"Réduction du nombre d'heures d'éclairage",null,null,""]
[]
[null,"DONNÉES DE SORTIE"]
[null,"Paramètre",null,null,"Valeur"]
[null,"Consommation anticipée",null,null,"  28 200 /an"]
[null,"Économies d'énergie annuelles",null,null,"  12 333.00 $/an"]
[null,"Économies d'énergie annuelles",null,null,"  32 100 kWh/an"]
[null,"Économies en électricité",null,null,""]
[null,"Économies en électricité",null,null,""]
[null,"Réduction des GES",null,null,"  82 041.0 kg CO2 eq/an"]
[null,"Période de retour sur investissement",null,null,"   4.05 an(s)"]

{"sheet":"rapport 5a","index":13,"n_rows":33,"n_cols":8,"rows_kept":33,"cut":false,"hidden":true,"merged":[[13,1,13,3]]}
[]
[null,"Isolation des parois extérieures (murs et fondations)",null,null,null,null,null,"À garder en mémoire:"]
[null,null,null,null,null,null,null,"Aligner sur plusieurs colonnes au lieu de fusionner les cellules"]
[null,"SOURCE D'ÉNERGIE ACTUELLE:",null,null,"Mazout no.2",null,null,"L'alignement vertical des cellules est perdue"]
[null,null,null,null,null,null,null,"La couleur du texte peut ne pas être copiée"]
[null,"VALEURS PAR DÉFAUT"]
[null,"Paramètre",null,null,"Valeur"]
[null,"Unité",null,null,"L"]
[null,"MJ/Unité",null,null,"38,5 MJ/L"]
[null,"kWh/Unité",null,null,"10,7 kWh/L"]
[null,"Émissions de GES (g CO2 eq/unité)",null,null,"2734,7 g CO2/L"]
[]
[null,"SÉLECTION DU TYPE D'ISOLANT"]
[null,"Paramètre",null,null,"Valeur"]
[null,"Isolation des fondations",null,null,"OUI"]
[null,"Isolation totale des murs",null,null,"OUI"]
[null,"Isolation partielle des murs",null,null,"NON"]
[]
[null,"DONNÉES D'ENTRÉE"]
[null,"Paramètre",null,null,null,null,"Valeur"]
[null,"Économies d'énergie théoriques - isolation des fondations",null,null,null,null,"4 %"]
[null,"Économies d'énergie théoriques - isolation totale des murs",null,null,null,null,"7 %"]
[null,"Économies d'énergie théoriques - isolation partielle des murs ",null,null,null,null,""]
[null,"Consommation actuelle de combustible",null,null,null,null,"30000 L/an"]
[null,"Prix du combustible",null,null,null,null,"0.7 $/L"]
[null,"Coût total de l'investissement ",null,null,null,null,"86 $"]
[]
[null,"DONNÉES DE SORTIE"]
[null,"Paramètre",null,null,"Valeur"]
[null,"Consommation anticipée",null,null,"  26 700 L/an"]
[null,"Économies d'énergie annuelles",null,null,"  3 300 L/an"]
[null,"Réduction des GES",null,null,"  9 024.5 kg CO2 eq/an"]
[null,"Période de retour sur investissement",null,null,"   0.04 an(s)"]

{"sheet":"rapport 5a_sp","index":14,"n_rows":33,"n_cols":7,"rows_kept":33,"cut":false,"hidden":true,"merged":[[13,1,13,3]]}
[]
[null,"Isolation des fondations"]
[]
[null,"SOURCE D'ÉNERGIE ACTUELLE:"]
[]
[null,"VALEURS PAR DÉFAUT"]
[null,"Paramètre",null,null,"Valeur"]
[null,"Unité"]
[null,"MJ/Unité"]
[null,"kWh/Unité"]
[null,"Émissions de GES (g CO2 eq/unité)"]
[]
[null,"SÉLECTION DU TYPE D'ISOLANT"]
[null,"Paramètre",null,null,"Valeur"]
[null,"Isolation des fondations",null,null,"OUI"]
[null,"Isolation totale des murs",null,null,"OUI"]
[null,"Isolation partielle des murs",null,null,"NON"]
[]
[null,"DONNÉES D'ENTRÉE"]
[null,"Paramètre",null,null,null,null,"Valeur"]
[null,"Économies d'énergie théoriques - isolation des fondations",null,null,null,null,"5 %"]
[null,"Économies d'énergie théoriques - isolation totale des murs",null,null,null,null,"5 %"]
[null,"Économies d'énergie théoriques - isolation partielle des murs ",null,null,null,null,""]
[null,"Consommation actuelle de combustible"]
[null,"Prix du combustible"]
[null,"Coût total de l'investissement ",null,null,null,null,"50000 $"]
[]
[null,"DONNÉES DE SORTIE"]
[null,"Paramètre",null,null,"Valeur"]
[null,"Économies d'énergie annuelles",null,null,"  12 333.00 $/an"]
[null,"Économies d'énergie annuelles",null,null,"  32 100 kWh/an"]
[null,"Réduction des GES",null,null,"  82 041.0 kg CO2 eq/an"]
[null,"Période de retour sur investissement",null,null,"   4.05 an(s)"]

{"sheet":"rapport 5b","index":15,"n_rows":23,"n_cols":8,"rows_kept":23,"cut":false,"hidden":true,"merged":[]}
[]
[null,"Isolation des parois extérieures (fissures)",null,null,null,null,null,"À garder en mémoire:"]
[null,null,null,null,null,null,null,"Aligner sur plusieurs colonnes au lieu de fusionner les cellules"]
[null,"SOURCE D'ÉNERGIE ACTUELLE:",null,null,"Propane",null,null,"L'alignement vertical des cellules est perdue"]
[null,null,null,null,null,null,null,"La couleur du texte peut ne pas être copiée"]
[null,"VALEURS PAR DÉFAUT"]
[null,"Paramètre",null,null,"Valeur"]
[null,"Unité",null,null,"L"]
[null,"MJ/Unité",null,null,"25,3 MJ/L"]
[null,"kWh/Unité",null,null,"7,0 kWh/L"]
[null,"Émissions de GES (g CO2 eq/unité)",null,null,"1544,0 g CO2/L"]
[]
[null,"TYPE D'INFILTRATION:",null,"Fissure de 6,4 mm"]
[]
[null,"DONNÉES D'ENTRÉE"]
[null,"Paramètre",null,null,"Valeur"]
[null,"Vitesse moyenne du vent",null,null,"2.70 m/s"]
[null,"Degrés-jour de chauffe",null,null,"4 °C-j/an"]
[]
[null,"DONNÉES DE SORTIE"]
[null,"Paramètre",null,null,"Valeur"]
[null,"Économies d'énergie annuelles",null,null,"   2 L/an"]
[null,"Réduction des GES",null,null,"   2.6 kg CO2 eq/an"]

{"sheet":"rapport 5b_sp","index":16,"n_rows":23,"n_cols":5,"rows_kept":23,"cut":false,"hidden":true,"merged":[[15,1,15,3]]}
[]
[null,"VOLET ÉNERGÉTIQUE"]
[]
[null,"SOURCE D'ÉNERGIE ACTUELLE:",null,null,"Électricité"]
[]
[null,"VALEURS PAR DÉFAUT"]
[null,"Paramètre",null,null,"Valeur"]
[null,"Unité",null,null,"kWh"]
[null,"MJ/Unité",null,null,"3,6 MJ/kWh"]
[null,"kWh/Unité",null,null,"1,0 kWh/kWh"]
[null,"Émissions de GES (g CO2 eq/unité)",null,null,"0,0 g CO2/kWh"]
[]
[null,"TYPE D'INFILTRATION:",null,"Fissure de 3,2 mm"]
[]
[null,"DONNÉES D'ENTRÉE"]
[null,"Paramètre",null,null,"Valeur"]
[null,"Vitesse moyenne du vent",null,null,"2.70 m/s"]
[null,"Degrés-jour de chauffe",null,null,"1000 °C-j/an"]
[]
[null,"DONNÉES DE SORTIE"]
[null,"Paramètre",null,null,"Valeur"]
[null,"Économies d'énergie annuelles",null,null,"   5 m3/an"]
[null,"Réduction des GES",null,null,"   10.0 kg CO2 eq/an"]

{"sheet":"rapport 6a","index":17,"n_rows":24,"n_cols":4,"rows_kept":24,"cut":false,"hidden":true,"merged":[]}
[]
[null,"Éclairage de photosynthèse: remplacement ou migration"]
[]
[null,"SCÉNARIO:","Changement de lampe HPS"]
[]
[null,"AMÉLIORATION DE L'EFFICACITÉ D'ÉCLAIRAGE"]
[null,"Scénario",null,"Gain (%)"]
[null,"Changement de lampes HPS",null,"10 %"]
[null,"Migration vers des DEL",null,""]
[]
[null,"DONNÉES D'ENTRÉE"]
[null,"Paramètre",null,"Valeur"]
[null,"Nombre de lampes",null,"48"]
[null,"Puissance des lampes",null,"456 W"]
[null,"Utilisation annuelle",null,"646 hrs/an"]
[null,"Tarif d'électricité",null,"0.108 $/kWh"]
[null,"Coût total de l'investissement",null,"1000 $"]
[]
[null,"DONNÉES DE SORTIE"]
[null,"Paramètre",null,"Valeur"]
[null,"Consommation anticipée",null,"  12 726 kWh/an"]
[null,"Économies d'énergie annuelles",null,"  1 414 kWh/an"]
[null,"Économies d'énergie annuelles",null,"   152.71 $/an"]
[null,"Période de retour sur investissement",null,"   6.55 an(s)"]

{"sheet":"rapport 6a_sp","index":18,"n_rows":24,"n_cols":4,"rows_kept":24,"cut":false,"hidden":true,"merged":[]}
[]
[null,"Éclairage de photosynthèse (remplacement de lampes)"]
[]
[null,"SCÉNARIO:","Changement de lampe HPS"]
[]
[null,"AMÉLIORATION DE L'EFFICACITÉ D'ÉCLAIRAGE"]
[null,"Scénario",null,"Gain (%)"]
[null,"Changement de lampes HPS",null,"16 %"]
[null,"Migration vers des DEL",null,""]
[]
[null,"DONNÉES D'ENTRÉE"]
[null,"Paramètre",null,"Valeur"]
[null,"Nombre de lampes",null,"1000"]
[null,"Puissance des lampes",null,"1000 W"]
[null,"Utilisation annuelle",null,"1000 hrs/an"]
[null,"Tarif d'électricité"]
[null,"Coût total de l'investissement",null,"20000 $"]
[]
[null,"DONNÉES DE SORTIE"]
[null,"Paramètre",null,"Valeur"]
[null,"Consommation anticipée",null,"  840 000 kWh/an"]
[null,"Économies d'énergie annuelles",null,"  160 000 kWh/an"]
[null,"Économies d'énergie annuelles",null,"  17 280.00 $/an"]
[null,"Période de retour sur investissement",null,"   1.16 an(s)"]

{"sheet":"rapport 6b","index":19,"n_rows":45,"n_cols":7,"rows_kept":45,"cut":false,"hidden":true,"merged":[]}
[]
[null,"Éclairage de photosynthèse: ajout de lampes (en cas d'absence)"]
[]
[null,"SOURCE D'ÉNERGIE:",null,"Gaz naturel"]
[]
[null,"VALEURS PAR DÉFAUT"]
[null,"Paramètre",null,null,"Valeur"]
[null,"Unité",null,null,"m3"]
[null,"MJ/Unité",null,null,"37,9  MJ/m3"]
[null,"kWh/Unité",null,null,"10,5  kWh/m3"]
[null,"Émissions de GES (g CO2 eq/unité)",null,null,"1889,3  g CO2/m3"]
[]
[null,"DONNÉES ENTRÉES"]
[null,"Paramètre",null,null,null,"Valeur"]
[null,"Nombre de lampes",null,null,null,"6"]
[null,"Puissance des lampes",null,null,null,"65 W"]
[null,"Utilisation annuelle",null,null,null,"665 hrs/an"]
[null,"Facteur de conversion de l'électricité en chauffe",null,null,null,"10 %"]
[null,"Consommation annuelle de combustible",null,null,null,"22200 m3/an"]
[null,"Prix du combustible",null,null,null,"7.46 $/m3"]
[null,"Coût total de l'investissement",null,null,null,"6756 $"]
[]
[null,"AUTRES DONNÉES D'ENTRÉE"]
[null,"Paramètre",null,null,null,"Valeur"]
[null,"Raccourcissement de la période de production",null,null,null,"",""]
[null,"Consommation journalière de combustible pendant la période",null,null,null,""]
[]
[]
[]
[]
[]
[]
[]
[]
[]
[null,"DONNÉES DE SORTIE"]
[null,"Paramètre",null,null,null,"Valeur"]
[null,"Consommation d'électricité anticipée pour l'éclairage"]
[null,"photosynthétique",null,null,null,"   259 kWh/an"]
[null,"Économies annuelles en chauffage",null,null,null,"0.01 %/an"]
[null,"Consommation anticipée de combustible",null,null,null,"  22 198 m3/an"]
[null,"Économies de combustible",null,null,null,"   2 m3/an"]
[null,"Économies de combustible",null,null,null,"   18.43 $/an"]
[null,"Réduction des GES",null,null,null,"   4.7 kg CO2 eq/an"]
[null,"Période de retour sur investissent",null,null,null,"   366.65 an(s)"]

{"sheet":"rapport 6b_sp","index":20,"n_rows":44,"n_cols":7,"rows_kept":44,"cut":false,"hidden":true,"merged":[]}
[]
[null,"Éclairage de photosynthèse: ajout d'éclairage de photosynthèse (en cas d'absence)"]
[]
[null,"SOURCE D'ÉNERGIE:"]
[]
[null,"VALEURS PAR DÉFAUT"]
[null,"Paramètre",null,null,"Valeur"]
[null,"Unité"]
[null,"MJ/Unité"]
[null,"kWh/Unité"]
[null,"Émissions de GES (g CO2 eq/unité)"]
[]
[null,"DONNÉES ENTRÉES"]
[null,"Paramètre",null,null,null,"Valeur"]
[null,"Nombre de lampes",null,null,null,"100"]
[null,"Puissance des lampes",null,null,null,"400 W"]
[null,"Utilisation annuelle",null,null,null,"1000 hrs/an"]
[null,"Facteur de conversion de l'électricité en chauffe",null,null,null,"50 %"]
[null,"Consommation annuelle de combustible"]
[null,"Prix du combustible"]
[null,"Coût total de l'investissement",null,null,null,"50000 $"]
[]
[null,"AUTRES DONNÉES D'ENTRÉE"]
[null,"Paramètre",null,null,null,"Valeur"]
[null,"Raccourcissement de la période de production",null,null,null,"",""]
[null,"Consommation journalière de combustible pendant la période",null,null,null,""]
[]
[]
[]
[]
[]
[]
[]
[]
[]
[null,"DONNÉES DE SORTIE"]
[null,"Paramètre",null,null,null,"Valeur"]
[null,"Consommation d'électricité anticipée pour l'éclairage"]
[null,"photosynthétique",null,null,null,"  40 000 kWh/an"]
[null,"Économies annuelles de combustible",null,null,null,"6.23 %"]
[null,"Économies annuelles de combustible",null,null,null,"  20 000 kWh/an"]
[null,"Économies annuelles de combustible",null,null,null,"  11 970.00 $/an"]
[null,"Réduction des GES",null,null,null,"  82 041.0 kg CO2 eq/an"]
[null,"Période de retour sur investissent",null,null,null,"   4.18 an(s)"]

{"sheet":"rapport 7","index":21,"n_rows":27,"n_cols":8,"rows_kept":27,"cut":false,"hidden":true,"merged":[]}
[]
[null,"Ventilateurs à circulation d'air horizontal (HAF)",null,null,null,null,null,"À garder en mémoire:"]
[null,null,null,null,null,null,null,"Aligner sur plusieurs colonnes au lieu de fusionner les cellules"]
[null,"SOURCE D'ÉNERGIE:",null,"Gaz naturel",null,null,null,"L'alignement vertical des cellules est perdue"]
[null,null,null,null,null,null,null,"La couleur du texte peut ne pas être copiée"]
[null,"VALEURS PAR DÉFAUT"]
[null,"Paramètre",null,null,"Valeur"]
[null,"Unité",null,null,"m3"]
[null,"MJ/Unité",null,null,"37,9 MJ/m3"]
[null,"kWh/Unité",null,null,"10,5 kWh/m3"]
[null,"Émissions de GES (g CO2 eq/unité)",null,null,"1889,3 g CO2/m3"]
[]
[]
[null,"DONNÉES ENTRÉES"]
[null,"Paramètre",null,null,"Valeur"]
[null,"Économies d'énergie",null,null,"13 %"]
[null,"Consommation actuelle de combustible",null,null,"22200 m3/an"]
[null,"Prix du combustible",null,null,"7.46 $/m3"]
[null,"Coût total de l'investissement",null,null,"1000 $/an"]
[]
[null,"DONNÉES DE SORTIE"]
[null,"Paramètre",null,null,"Valeur"]
[null,"Consommation anticipée",null,null,"  19 314 m3/an"]
[null,"Économies d'énergie annuelles",null,null,"  2 886 m3/an"]
[null,"Économies d'énergie annuelles",null,null,"  21 529.56 $/an"]
[null,"Réduction des GES",null,null,"  5 452.5 kg CO2 eq/an"]
[null,"Période de retour sur investissement",null,null,"   0.05 an(s)"]

{"sheet":"rapport 7_sp","index":22,"n_rows":27,"n_cols":5,"rows_kept":27,"cut":false,"hidden":true,"merged":[]}
[]
[null,"Ventilateurs à circulation d'air horizontal (HAF)"]
[]
[null,"SOURCE D'ÉNERGIE:"]
[]
[null,"VALEURS PAR DÉFAUT"]
[null,"Paramètre",null,null,"Valeur"]
[null,"Unité"]
[null,"MJ/Unité"]
[null,"kWh/Unité"]
[null,"Émissions de GES (g CO2 eq/unité)"]
[]
[]
[null,"DONNÉES ENTRÉES"]
[null,"Paramètre",null,null,"Valeur"]
[null,"Économies d'énergie",null,null,"10 %"]
[null,"Consommation actuelle de combustible"]
[null,"Prix du combustible"]
[null,"Coût total de l'investissement",null,null,"50000 $/an"]
[]
[null,"DONNÉES DE SORTIE"]
[null,"Paramètre",null,null,"Valeur"]
[null,"Consommation anticipée",null,null,"   0 kWh/an"]
[null,"Économies d'énergie annuelles",null,null,"  32 100 kWh/an"]
[null,"Économies d'énergie annuelles",null,null,"  12 333.00 $/an"]
[null,"Réduction des GES",null,null,"  82 041.0 kg CO2 eq/an"]
[null,"Période de retour sur investissement",null,null,"   4.05 an(s)"]

{"sheet":"rapport 7_old","index":23,"n_rows":32,"n_cols":8,"rows_kept":32,"cut":false,"hidden":true,"merged":[]}
[]
[null,"RAPPORT",null,null,null,null,null,"À garder en mémoire:"]
[null,null,null,null,null,null,null,"Aligner sur plusieurs colonnes au lieu de fusionner les cellules"]
[null,"MÉTHODE DE CALCUL:",null,"Par débit d'air et efficacité du ventilateur",null,null,null,"L'alignement vertical des cellules est perdue"]
[null,null,null,null,null,null,null,"La couleur du texte peut ne pas être copiée"]
[null,"CALCUL SELON LA PUISSANCE"]
[null,"Paramètre",null,null,null,"Valeur"]
[null,"Puissance du ventilateur 1 dont l'efficacité est la plus faible (kW)"]
[null,"Nombre de ventilateurs dont l'efficacité est plus faible à utiliser"]
[null,"Puissance du ventilateur 2 dont l'efficacité est la plus élevée (kW)"]
[null,"Nombre de ventilateurs dont l'efficacité est plus élevée à utiliser"]
[null,"Moyennes d'heures d'utilisation par année (hrs/an)"]
[null,"CALCUL SELON LE DÉBIT D'AIR ET L'EFFICACITÉ DU VENTILATEUR"]
[null,"Paramètre",null,null,null,"Valeur"]
[null,"Débit d'air du ventilateur 1 dont l'efficacité est plus faible (L/s)"]
[null,"Efficacité du ventilateur du ventilateur 1 (L/s/W) "]
[null,"Débit d'air du ventilateur 2 dont l'efficacité est plus élevée (L/s)"]
[null,"Efficacité du ventilateur du ventilateur 2 (L/s/W) "]
[null,"Moyennes d'heures d'utilisation par année (hrs/an)"]
[null,"Nombre de ventilateurs dont l'efficacité est plus faible à utiliser"]
[null,"Nombre de ventilateurs dont l'efficacité est plus élevée à utiliser"]
[]
[null,"DONNÉES D'ENTRÉE"]
[null,"Paramètre",null,null,"Valeur"]
[null,"Tarif d'électricité ($/kWh)",null,null,""]
[null,"Coût total de l'investissement ($)",null,null,""]
[]
[null,"DONNÉES DE SORTIE"]
[null,"Paramètre",null,null,"Valeur"]
[null,"Économie d'électricité par année",null,null,""]
[null,"Économie d'électricité par année",null,null,""]
[null,"Période de retour sur investissement",null,null,""]

{"sheet":"rapport 8","index":24,"n_rows":28,"n_cols":8,"rows_kept":28,"cut":false,"hidden":true,"merged":[]}
[]
[null,"Utilisation d'un réservoir d'hydro-accumulation",null,null,null,null,null,"À garder en mémoire:"]
[null,null,null,null,null,null,null,"Aligner sur plusieurs colonnes au lieu de fusionner les cellules"]
[null,"SOURCE D'ÉNERGIE:",null,"Biomasse",null,null,null,"L'alignement vertical des cellules est perdue"]
[null,null,null,null,null,null,null,"La couleur du texte peut ne pas être copiée"]
[null,"SYSTÈME:",null,"Closed Buffer"]
[]
[null,"VALEURS PAR DÉFAUT"]
[null,"Paramètre",null,null,"Valeur"]
[null,"Unité",null,null,"kg"]
[null,"MJ/Unité",null,null,"38  MJ/kg"]
[null,"kWh/Unité",null,null,"2  kWh/kg"]
[null,"Émissions de GES (g CO2 eq/unité)",null,null,"2  g CO2/kg"]
[]
[null,"DONNÉES ENTRÉES"]
[null,"Paramètre",null,null,"Valeur"]
[null,"Pourcentage d'économie d'énergie",null,null,"23 %"]
[null,"Consommation actuelle de combustible",null,null,"140000 kg/an"]
[null,"Prix du combustible",null,null,"0.05 $/kg"]
[null,"Coût total de l'investissement",null,null,"1000 $"]
[]
[null,"DONNÉES DE SORTIE"]
[null,"Paramètre",null,null,"Valeur"]
[null,"Consommation anticipée",null,null,"  107 800 kg/an"]
[null,"Économies d'énergie annuelles",null,null,"  32 200 kg/an"]
[null,"Économies d'énergie annuelles",null,null,"  1 610.00 $/an"]
[null,"Réduction des GES",null,null,"   64.4 kg CO2 eq/an"]
[null,"Période de retour sur investissement",null,null," 0.6 an(s)"]

{"sheet":"rapport 8_sp","index":25,"n_rows":28,"n_cols":5,"rows_kept":28,"cut":false,"hidden":true,"merged":[]}
[]
[null,"Utilisation d'un réservoir d'hydro-accumulation"]
[]
[null,"SOURCE D'ÉNERGIE:"]
[]
[null,"SYSTÈME:",null,"Closed Buffer"]
[]
[null,"VALEURS PAR DÉFAUT"]
[null,"Paramètre",null,null,"Valeur"]
[null,"Unité"]
[null,"MJ/Unité"]
[null,"kWh/Unité"]
[null,"Émissions de GES (g CO2 eq/unité)"]
[]
[null,"DONNÉES ENTRÉES"]
[null,"Paramètre",null,null,"Valeur"]
[null,"Pourcentage d'économie d'énergie",null,null,"1 %"]
[null,"Consommation actuelle de combustible"]
[null,"Prix du combustible"]
[null,"Coût total de l'investissement",null,null,"50000 $"]
[]
[null,"DONNÉES DE SORTIE"]
[null,"Paramètre",null,null,"Valeur"]
[null,"Consommation anticipée",null,null,"   0 kWh/an"]
[null,"Économies d'énergie annuelles",null,null,"  3 210 kWh/an"]
[null,"Économies d'énergie annuelles",null,null,"  11 466.30 $/an"]
[null,"Réduction des GES",null,null,"  82 041.0 kg CO2 eq/an"]
[null,"Période de retour sur investissement",null,null," 4.4 an(s)"]

{"sheet":"rapport 9","index":26,"n_rows":42,"n_cols":8,"rows_kept":42,"cut":false,"hidden":true,"merged":[[6,1,6,3],[38,1,38,4],[39,1,39,4]]}
[]
[null,"Récupération du gaz carbonique à partir des gaz de combustion du système de génération de chaleur ",null,null,null,null,null,"À garder en mémoire:"]
[null,null,null,null,null,null,null,"Aligner sur plusieurs colonnes au lieu de fusionner les cellules"]
[null,"SOURCE D'ÉNERGIE POUR LE CHAUFFAGE:",null,null,null,"Gaz naturel",null,"L'alignement vertical des cellules est perdue"]
[null,null,null,null,null,null,null,"La couleur du texte peut ne pas être copiée"]
[null,"VALEURS PAR DÉFAUT"]
[null,"Paramètre",null,null,"Valeur"]
[null,"Unité",null,null,"m3"]
[null,"MJ/Unité",null,null,"37,9 MJ/m3"]
[null,"kWh/Unité",null,null,"10,5 kWh/m3"]
[null,"Émissions de GES (g CO2 eq/unité)",null,null,"1889,3 g CO2/m3"]
[]
[null,"SOURCE ACTUELLE DE GAZ CARBONIQUE:",null,null,null,"GAZ NATUREL"]
[]
[null,"UTILISATION D'UN RÉSERVOIR D'HYDROACCUMULATION:",null,null,null,"OUI"]
[]
[null,"DONNÉES D'ENTRÉE (CHAUFFAGE)"]
[null,"Paramètre",null,null,null,"Valeur"]
[null,"Économies annuelles de chauffage",null,null,null,"10 %"]
[null,"Consommation actuelle de combustible pour le chauffage",null,null,null,"22200 m3/an "]
[null,"Prix du combustible utilisé pour le chauffage",null,null,null,"1 $/m3"]
[]
[null,"DONNÉES D'ENTRÉE (ENRICHISSEMENT CARBONNÉ)"]
[null,"Paramètre",null,null,null,"Valeur"]
[null,"Consommation de CO2 liquide, de propane ou de gaz naturel",null,null,null,"1000 M3/an"]
[null,"Prix du CO2, du propane ou du gaz naturel",null,null,null,"0,5 $/M3"]
[null,"Coût annuel de l'enrichissement carbonné"]
[null,"Coût total de l'investissement",null,null,null,"10000 $"]
[]
[]
[]
[]
[]
[null,"DONNÉES DE SORTIE"]
[null,"Paramètre",null,null,null,"Valeur"]
[null,"Consommation anticipée",null,null,null,"  19 980 m3/an"]
[null,"Économies d'énergie annuelles en combustible",null,null,null,"  2 220 m3/an"]
[null,"Économies d'énergie annuelles en combustible",null,null,null,"  2 220.00 $/an"]
[null,"Économies d'énergie annuelles (enrichissement carbonné)",null,null,null,"   500.00 $/an"]
[null,"Économies d'énergie annuelles totales ",null,null,null,"  2 720.00 $/an"]
[null,"Réduction des GES",null,null,null,"  4 194.2 kg CO2 eq/an"]
[null,"Période de retour sur investissement",null,null,null," 4.50 an(s)"]

{"sheet":"rapport 9_sp","index":27,"n_rows":42,"n_cols":6,"rows_kept":42,"cut":false,"hidden":true,"merged":[[6,1,6,3],[38,1,38,4],[39,1,39,4]]}
[]
[null,"Récupération du gaz carbonique à partir des gaz de combustion du système de génération de chaleur"]
[]
[null,"SOURCE D'ÉNERGIE POUR LE CHAUFFAGE:"]
[]
[null,"VALEURS PAR DÉFAUT"]
[null,"Paramètre",null,null,"Valeur"]
[null,"Unité"]
[null,"MJ/Unité"]
[null,"kWh/Unité"]
[null,"Émissions de GES (g CO2 eq/unité)"]
[]
[null,"SOURCE ACTUELLE DE GAZ CARBONIQUE:",null,null,null,"CO2 LIQUIDE"]
[]
[null,"UTILISATION D'UN RÉSERVOIR D'HYDROACCUMULATION:",null,null,null,"OUI"]
[]
[null,"DONNÉES D'ENTRÉE (CHAUFFAGE)"]
[null,"Paramètre",null,null,null,"Valeur"]
[null,"Économies annuelles de chauffage",null,null,null,"10 %"]
[null,"Consommation actuelle de combustible pour le chauffage"]
[null,"Prix du combustible utilisé pour le chauffage"]
[]
[null,"DONNÉES D'ENTRÉE (ENRICHISSEMENT CARBONNÉ)"]
[null,"Paramètre",null,null,null,"Valeur"]
[null,"Consommation de CO2 liquide, de propane ou de gaz naturel",null,null,null,"100 kg/an"]
[null,"Prix du CO2, du propane ou du gaz naturel",null,null,null,"0.5 $/kg"]
[null,"Coût annuel de l'enrichissement carbonné"]
[null,"Coût total de l'investissement",null,null,null,"50000 $"]
[]
[]
[]
[]
[]
[null,"DONNÉES DE SORTIE"]
[null,"Paramètre",null,null,null,"Valeur"]
[null,"Consommation anticipée",null,null,null,"   0 m3/an"]
[null,"Économies d'énergie annuelles en combustible",null,null,null,"  3 057 m3/an"]
[null,"Économies d'énergie annuelles en combustible",null,null,null,"  19 624.29 $/an"]
[null,"Économies d'énergie annuelles (enrichissement carbonné)",null,null,null,"   50.00 $/an"]
[null,"Économies d'énergie annuelles totales ",null,null,null,"  19 674.29 $/an"]
[null,"Réduction des GES",null,null,null,"  30 058.3 kg CO2 eq/an"]
[null,"Période de retour sur investissement",null,null,null," 2.55 an(s)"]

{"sheet":"rapport synthese","index":28,"n_rows":28,"n_cols":5,"rows_kept":28,"cut":false,"hidden":true,"merged":[]}
[]
[null,"Tableaux synthèse"]
[]
[null,"SOURCE D'ÉNERGIE:",null,"Gaz naturel"]
[]
[null,"VALEURS PAR DÉFAUT DU COMBUSTIBLE "]
[null,"Paramètre",null,null,"Valeur"]
[null,"Unité",null,null,"m3"]
[null,"MJ/Unité",null,null,"37,9 MJ/m3"]
[null,"kWh/Unité",null,null,"10,5 kWH/m3"]
[null,"Émissions de GES (g CO2 eq/unité)",null,null,"1889,3 g CO2 eq/m3"]
[]
[null,"SCÉNARIO INITIAL"]
[null,"Paramètre",null,null,"Valeur"]
[null,"Consommation initiale de combustible",null,null," 1 470 000 kWh/an"]
[null,"Consommation initiale de combustible",null,null,"  140 000 m3/an"]
[null,"Prix moyen du combustible",null,null,"  0.05 $/m3"]
[null,"Tarif électrique",null,null,""]
[]
[null,"SCÉNARIO FINAL"]
[null,"Paramètre",null,null,"Valeur"]
[null,"Économies d'énergie annuelles (chauffage)",null,null,"14.0 %"]
[null,"Économies d'énergie annuelles (chauffage)",null,null,"  205 800 kWh/an"]
[null,"Économies d'énergie annuelles (chauffage)",null,null,"  19 600 m3/an"]
[null,"Économies d'énergie annuelles (éclairage)",null,null,""]
[null,"Économies d'énergie annuelles (chauffage)",null,null,"   980.00 $/an"]
[null,"Économies d'énergie annuelles (éclairage)",null,null,""]
[null,"Réduction des GES",null,null,"  37 030.3 kg CO2 eq/an"]

{"sheet":"rapport synthese 1b","index":29,"n_rows":43,"n_cols":5,"rows_kept":43,"cut":false,"hidden":true,"merged":[]}
[]
[null,"Tableaux synthèse"]
[]
[null,"ANCIENNE SOURCE D'ÉNERGIE:",null,null,"Mazout no.2"]
[]
[null,"VALEURS PAR DÉFAUT DE L'ANCIEN COMBUSTIBLE"]
[null,"Paramètre",null,null,"Valeur"]
[null,"Unité",null,null,"L"]
[null,"MJ/Unité",null,null,"38,5 MJ/L"]
[null,"kWh/Unité",null,null,"10,7 kWH/L"]
[null,"Émissions de GES (g CO2 eq/unité)",null,null,"2734,7 g CO2 eq/L"]
[]
[null,"NOUVELLE SOURCE D'ÉNERGIE",null,null,"Électricité"]
[]
[null,"VALEURS PAR DÉFAUT DU NOUVEAU COMBUSTIBLE"]
[null,"Paramètre",null,null,"Valeur"]
[null,"Unité",null,null,"kWh"]
[null,"MJ/Unité",null,null,"3,6 MJ/kWh"]
[null,"kWh/Unité",null,null,"1,0 kWH/kWh"]
[null,"Émissions de GES (g CO2 eq/unité)",null,null,"0,0 g CO2 eq/kWh"]
[]
[null,"SCÉNARIO INITIAL"]
[null,"Paramètre",null,null,"Valeur"]
[null,"Consommation initiale de combustible",null,null,"  321 000 kWh/an"]
[null,"Consommation initiale de combustible",null,null,"  30 000 L/an"]
[null,"Prix moyen de l'ancien combustible",null,null,"  0.70 $/L"]
[null,"Prix moyen du nouveau combustible",null,null,"  0.03 $/kWh"]
[null,"Tarif électrique",null,null,""]
[]
[]
[]
[]
[]
[]
[null,"SCÉNARIO FINAL"]
[null,"Paramètre",null,null,"Valeur"]
[null,"Économies d'énergie annuelles (chauffage)",null,null,"20.0 %"]
[null,"Économies d'énergie annuelles (chauffage)",null,null,"  64 200 kWh/an"]
[null,"Économies d'énergie annuelles (chauffage)",null,null,"  64 200 kWh/an"]
[null,"Économies d'énergie annuelles (éclairage)",null,null,""]
[null,"Économies d'énergie annuelles (chauffage)",null,null,"  13 296.00 $/an"]
[null,"Économies d'énergie annuelles (éclairage)",null,null,""]
[null,"Réduction des GES",null,null,"  82 041.0 kg CO2 eq/an"]

{"sheet":"page titre","index":30,"n_rows":27,"n_cols":15,"rows_kept":27,"cut":false,"hidden":true,"merged":[[8,8,8,9],[8,12,8,13]]}
[]
[]
[]
[]
[]
[]
[null,null,"RAPPORT DU SCÉNARIO PERSONNALISÉ"]
[null,null,null,null,null,null,null,null,"Hauteur maximale",null,637,null,"Largeur maximale",null,89]
[null,null,null,null,null,null,null,null,"Hauteurs",null,null,null,"Largeur"]
[null,null,null,null,null,null,null,null,"ligne 1",16.2,null,null,"Col A",1]
[null,null,null,null,null,null,null,null,"ligne 2",1,null,null,"Col B",1]
[null,null,null,null,null,null,null,null,"ligne 37",1,null,null,"Col D",1]
[null,null,null,null,null,null,null,null,"lignes 3-36",{"$f":"K8-J10-J11-J12","v":618.79999999999995},{"$f":"J13/34","v":18.2},null,"Col C",{"$f":"O8-N10-N11-N12","v":86}]
[]
[]
[]
[]
[]
[]
[]
[]
[]
[]
[]
[]
[]
[null,null,"2018-01-17T16:11:05"]

{"sheet":"page titre ind","index":31,"n_rows":32,"n_cols":15,"rows_kept":32,"cut":false,"hidden":true,"merged":[[8,8,8,9],[8,12,8,13]]}
[]
[]
[]
[]
[]
[]
[null,null,"RAPPORT"]
[null,null,null,null,null,null,null,null,"Hauteur maximale",null,637,null,"Largeur maximale",null,89]
[null,null,null,null,null,null,null,null,"Hauteurs",null,null,null,"Largeur"]
[null,null,"Mesure 1:",null,null,null,null,null,"ligne 1",16.2,null,null,"Col A",1]
[null,null,"Systèmes de production de chaleur efficaces (conversion de source énergétique)",null,null,null,null,null,"ligne 2",1,null,null,"Col B",1]
[null,null,null,null,null,null,null,null,"ligne 37",1,null,null,"Col D",1]
[null,null,null,null,null,null,null,null,"lignes 3-36",{"$f":"K8-J10-J11-J12","v":618.79999999999995},{"$f":"J13/34","v":18.2},null,"Col C",{"$f":"O8-N10-N11-N12","v":86}]
[]
[]
[]
[]
[]
[]
[]
[]
[]
[]
[]
[]
[]
[]
[]
[]
[]
[]
[null,null,"2018-02-16T15:53:22"]

{"sheet":"mise en garde","index":32,"n_rows":23,"n_cols":14,"rows_kept":23,"cut":false,"hidden":true,"merged":[]}
[]
[]
[]
[null,null,"LIMITES AU CALCULATEUR"]
[null,null,"Mises en garde"]
[null,null,null,null,null,null,null,null,null,null,null,null,null,89]
[null,null,"• Les économies d’énergie découlant des mesures d’efficacité énergétique sélectionnées ne tiennent pas compte des effets croisés. En effet, les calculs d’économies d’énergie se font indépendamment pour chaque mesure et n’intègrent pas les résultats des autres mesures implantées. La détermination des effets croisés s’inscrit dans le cadre d’une gestion énergétique approfondie et ne peut donc être déterminée à l’aide de ce calculateur."]
[]
[]
[]
[null,null,"• La hausse de la productivité n’a pas été considérée dans le présent calculateur bien que, dans certains cas, l’impact s’avère important et permet de rentabiliser l’investissement plus rapidement."]
[]
[null,null,"• Les chiffres fournis pour les investissements et les frais d’entretien ne sont que des exemples. Idéalement, vous devez entrer vos propres coûts selon vos soumissions."]
[]
[null,null,"• Pour les frais d’entretien, le temps requis pour le nettoyage régulier et usuel de certains équipements n’a pas été considéré. Seuls les frais spécifiques à un équipement ont été évalués dans les charges supplémentaires."]
[]
[null,null,"• La période de de retour sur l’investissement a été calculée uniquement sur des investissements qui sont des immobilisations pour l’entreprise. Par exemple, le remplacement du polyéthylène par un même type de polyéthylène ne constitue pas une mesure d’efficacité énergétique, mais plutôt une dépense d’entretien.  Donc, aucune PRI n’a été calculée dans ce cas. Par contre, le remplacement d’un polyéthylène par un autre type de recouvrement (passer d’une simple épaisseur à une double), est considéré comme une immobilisation."]
[]
[null,null,"• Le taux d'intérêt relatif aux investissements n'a pas été considéré dans le calcul, car il n'influence pas beaucoup la période de retour sur investissement puisque celle-ci est souvent rapide. Cependant, pour des équipements amortissables sur une plus longue période de temps, le taux d'intérêt pourrait avoir un impact plus significatif."]
[]
[null,null,"• La période de retour sur l'investissement ne devrait jamais dépasser la durée de vie utile du bien."]
[]
[null,null,"• Dans le cas d'investissements importants, il faudra s'assurer que la situation financière générale de la ferme puisse assumer un autre investissement. L'analyse devra être approfondie dans certaines situations. "]

{"sheet":"mise en garde ind","index":33,"n_rows":19,"n_cols":14,"rows_kept":19,"cut":false,"hidden":true,"merged":[]}
[]
[]
[]
[null,null,"LIMITES AU CALCULATEUR"]
[null,null,"Mises en garde"]
[null,null,null,null,null,null,null,null,null,null,null,null,null,89]
[null,null,"• La hausse de la productivité n’a pas été considérée dans le présent calculateur bien que, dans certains cas, l’impact s’avère important et permet de rentabiliser l’investissement plus rapidement."]
[]
[null,null,"• Les chiffres fournis pour les investissements et les frais d’entretien ne sont que des exemples. Idéalement, vous devez entrer vos propres coûts selon vos soumissions."]
[]
[null,null,"• Pour les frais d’entretien, le temps requis pour le nettoyage régulier et usuel de certains équipements n’a pas été considéré. Seuls les frais spécifiques à un équipement ont été évalués dans les charges supplémentaires."]
[]
[null,null,"• La période de de retour sur l’investissement a été calculée uniquement sur des investissements qui sont des immobilisations pour l’entreprise. Par exemple, le remplacement du polyéthylène par un même type de polyéthylène ne constitue pas une mesure d’efficacité énergétique, mais plutôt une dépense d’entretien.  Donc, aucune PRI n’a été calculée dans ce cas. Par contre, le remplacement d’un polyéthylène par un autre type de recouvrement (passer d’une simple épaisseur à une double), est considéré comme une immobilisation."]
[]
[null,null,"• Le taux d'intérêt relatif aux investissements n'a pas été considéré dans le calcul, car il n'influence pas beaucoup la période de retour sur investissement puisque celle-ci est souvent rapide. Cependant, pour des équipements amortissables sur une plus longue période de temps, le taux d'intérêt pourrait avoir un impact plus significatif."]
[]
[null,null,"• La période de retour sur l'investissement ne devrait jamais dépasser la durée de vie utile du bien."]
[]
[null,null,"• Dans le cas d'investissements importants, il faudra s'assurer que la situation financière générale de la ferme puisse assumer un autre investissement. L'analyse devra être approfondie dans certaines situations."]

{"sheet":"table matiere sp","index":34,"n_rows":4,"n_cols":3,"rows_kept":4,"cut":false,"hidden":true,"merged":[]}
["Table des matières"]
[]
[null,"Tableaux synthèse",2]
["Mesure 2:","Installation d'écrans thermiques",3]

{"sheet":"pb1","index":35,"n_rows":14,"n_cols":14,"rows_kept":14,"cut":false,"hidden":true,"merged":[]}
[]
[]
[null,null,"PENSE-BÊTE"]
[]
[null,null,"Systèmes de production de chaleur efficaces"]
[null,null,null,null,null,null,null,null,null,null,null,null,null,89]
[null,null,"• Choisir sa source de chaleur en premier (biomasse, gaz., électricité, etc.)"]
[null,null,"• Choisir l’air chaud vs eau chaude selon la culture"]
[null,null,"•  Prévoir un système mixte si nécessaire"]
[null,null,"•  Privilégier le chauffage de proximité (chauffer le plus proche du besoin)"]
[null,null,"•  S’assurer de bien calibrer son système en s’assurant de la distribution de chaleur optimale"]
[null,null,"•  Vérifier la performance de son système et si cela correspond aux prédictions du fabriquant"]
[null,null,"•  Refaire des tests au besoin pour savoir si le système maintien sa performance dans le temps"]
[null,null,"•  Prévoir la durée de vie du système et son coût d’entretien"]

{"sheet":"pb2","index":36,"n_rows":27,"n_cols":14,"rows_kept":27,"cut":false,"hidden":true,"merged":[]}
[]
[]
[null,null,"PENSE-BÊTE"]
[]
[null,null,"Installation d'écrans thermiques"]
[null,null,null,null,null,null,null,null,null,null,null,null,null,89]
[null,null,"\"Voici les points importants à considérer lors de l'installation d'écrans thermiques:\""]
[null,null,"• ajout de poutrelles de culture pour supporter la toile"]
[null,null,"• modification au système électrique et de contrôle pour faire passer le filage sous la toile"]
[null,null,"• modification au système d'irrigation pour qu'il passe sous la toile"]
[null,null,"• prévoir de nouvelles sondes et de la programmation sur le système de gestion du climat"]
[null,null,"• modification ou remplacement des crémaillères de toit selon le modèle"]
[null,null,"• modification au système de chauffage (aérotherme, cheminée, réseau de distribution de gaz)"]
[null,null,"• modification des tables (écran vertical)"]
[null,null,"\"Toutes ces modifications peuvent facilement coûter plus chère que la toile.\""]
[null,null," -------------------------------------------------------------------------------------------------------------------------------"]
[null,null,"• La hauteur de la serre peut-être un problème si elle est trop basse"]
[null,null,"• Obstacles à la pose de la toile"]
[null,null,"• Ajout de poutrelles si nécessaire"]
[null,null,"• Choix de la toile - thermale vs ombrière"]
[null,null,"• Choix de la motorisation selon le système de gestion ou climat"]
[null,null,"• Jupe bien ajustée pour économie maximale"]
[null,null,"• Prévoir une durée vie de maximum de 10 ans de la toile"]
[null,null,"• Coût de la main d’oeuvre = prix de l’équipement à installer"]
[null,null,"• Faire prendre les mesures par le fournisseur"]
[null,null,"• Vitesse d’ouverture de la toile à contrôle par la motorisation"]
[null,null,"• Sectionner les superficies de la toile selon les cultures ou besoin d’ombrage ou économie d’énergie"]

{"sheet":"pb3","index":37,"n_rows":7,"n_cols":14,"rows_kept":7,"cut":false,"hidden":true,"merged":[]}
[]
[]
[null,null,"PENSE-BÊTE"]
[]
[null,null,"Utilisation d'un recouvrement de serre efficace"]
[null,null,null,null,null,null,null,null,null,null,null,null,null,89]
[null,null,"\"La majeure partie du retour sur investissement vient de l'augmentation de productivité ou de la diminution du temps de production.\""]

{"sheet":"pb4","index":38,"n_rows":26,"n_cols":14,"rows_kept":26,"cut":false,"hidden":true,"merged":[]}
[]
[]
[null,null,"PENSE-BÊTE"]
[]
[null,null,"Implantation d'un système de contrôle du climat"]
[null,null,null,null,null,null,null,null,null,null,null,null,null,89]
[null,null,"• Dans l’évaluation des coûts, il ne faut pas négliger la composante motorisation et électro-contrôle permettant aux contrôleurs de basses tensions (24 VAC) de commandes l’activation des demandes sous réseau de plus hautes tension (ex :120, 240V)."]
[null,null,"• Motorisation : En plus du coût des pompes et moteurs, il est important d’obtenir une soumission pour l’installation électrique de ces équipements haut voltage."]
[null,null,"• Électro-contrôles : Ces panneaux ou modules d’interface auront un prix variable en fonction de l’équipement à contrôler et du type de contrôle souhaité (type digital marche/arrêt ou type proportionnel pour un positionnement précis et optimal de l’ouverture des toits par exemple)."]
[null,null,"• Un toit ou un coté ouvrant demandera un module renverseur afin de permettre une ouverture ainsi qu’une fermeture selon un temps de course préprogrammée et on fonction des besoins. Des senseurs de limites de début et fin de courses des ouvrants sont aussi conseillés. "]
[null,null,"• Dans le cas d’une pompe ou d’un moteur à vitesse non-variable (ex : ventilation ou haf), le module d’interface sera généralement plus simple et sera principalement composé d’un contacteur permettant d’activer le courant de l’équipement."]
[null,null,"• Dans le cas de simples valves d’irrigation, la connexion aux systèmes de contrôle est directe dans le cas ou celles-ci peuvent être activées par du 24 V AC. Les raccords de ce type de contrôle ne nécessite pas l’aide d’un électricien car il s’agit d’un branchement bas voltage de classe 4."]
[null,null," -------------------------------------------------------------------------------------------------------------------------------"]
[null,null," \"Il faut inclure dans son analyse de coût de retour sur investissement les points suivants qui selon moi sont dans l'ordre d'importance pour la plupart des cultures :\""]
[null,null,"• augmentation de la qualité de produit"]
[null,null,"• stabilité dans la production"]
[null,null,"• diminution du temps de production"]
[null,null,"• diminution du temps de travail"]
[null,null,"• économie sur les intrants"]
[null,null,"• économie d'énergie "]
[null,null," -------------------------------------------------------------------------------------------------------------------------------"]
[]
[]
[]
[null,null,"SUITE…"]
[null,null,"\"À retenir: le budget a de l'importance bien sûr mais la compréhension adéquate de la gestion de l'environnement et des paramètres de production et leurs contrôles sont tout aussi important. Le but visé est l'augmentation de la profitabilité.\""]

{"sheet":"pb8","index":39,"n_rows":6,"n_cols":3,"rows_kept":6,"cut":false,"hidden":true,"merged":[]}
[]
[]
[null,null,"PENSE-BÊTE"]
[]
[null,null,"Utilisation d'un réservoir d'hydro-accumulation"]
[null,null,"Il est intéressant de pouvoir réaliser une stratification de l’eau du réservoir afin d’optimiser l’hydro-accumulation et déployer le plein potentiel calorifique de cette technologique. La stratification consiste en une différence importante de températures entre les différentes strates du réservoir. En évitant un mélange de l’eau chaude et froide on évite de se retrouver avec de l’eau tiède sur l’ensemble de la colonne d’eau du réservoir. On a donc de l’eau très chaude en haut que l’on veut utiliser subséquemment pour chauffer optimalement et de l’eau plus froide dans le bas de la réserve destinée à alimenter le circuit des bouilloires. Afin de réaliser la stratification, il faudra penser à installer des pompes court-circuitant la sortie des bouilloires afin de ramener la sortie d’eau chaude vers l’entrée d’eau chaude et ce jusqu’à ce la température de sortie d’eau de la bouilloire soit adéquate. Lorsque la température de sortie aura atteint une cible jugée adéquate pour bien chauffer les serres selon la saison en cours, une pompe de circulation à vitesse variable s’activera afin de retourner l’eau vers les zones de demandes ou de stockage. On s’assure ainsi de remettre de l’eau très chaude dans le haut du réservoir et ceci favorisera la stratification. La pompe court-circuit permettra aussi d’éviter un choc thermique occasionné par un différentiel trop important de température de l’eau d’entrée comparativement à celui de sortie. Il est important de considérer la modification de la circulation d’eau de tout le réseau afin de réaliser une distribution de type 3-voies avec un retour vers l’unité de chaufferie. Des composantes permettant d’optimiser la stratification peuvent aussi être installées directement dans le réservoir."]

{"sheet":"pb9","index":40,"n_rows":6,"n_cols":3,"rows_kept":6,"cut":false,"hidden":true,"merged":[]}
[]
[]
[null,null,"PENSE-BÊTE"]
[]
[null,null,"Récupération du gaz carbonique à partir des gaz de combustion du système de génération de chaleur"]
[null,null,"Si vous optez pour une option de génération de CO2 par combustion couplé à l’hydro-accumulation, il est important d’avoir un contrôleur de serres programmé adéquatement afin de permettre le délestage des autres sources de chauffage. En été, par exemple, le contrôleur devra vous donner la flexibilité de dissiper vers les serres le trop plein de chaleur de l’hydro-accumulateur en arrêtant les autres sources de chauffage. Ce refroidissement de l’hydro-accumulateur permettra une nouvelle production diurne de co2 par combustion."]

{"sheet":"config prog","index":41,"n_rows":34,"n_cols":7,"rows_kept":34,"cut":false,"hidden":true,"merged":[[3,2,3,4],[1,1,1,5],[17,1,17,5],[22,1,22,4],[23,1,24,2],[25,1,25,2],[26,1,26,2],[23,3,23,4],[28,1,28,2],[27,1,27,2],[29,1,29,2],[30,1,30,2],[31,1,31,2],[32,1,32,2],[33,1,33,2]]}
[]
[null,"Valeur énergétique et émissions de GES de différentes sources énergétiques (tiré de : Ministère des Ressources naturelles, 2014)"]
[]
[null,null,"Valeur énergétique",null,null,"Émissions de GES"]
[null,null,"Unité","MJ/unité","kWh/unité","Facteur d’équivalence (g CO2 eq/unité)"]
[null,"Mazout no.2","L","38,5","10,7","2734,7"]
[null,"Gaz naturel","m3","37,9","10,5","1889,3"]
[null,"Propane","L","25,3","7,0","1544,0"]
[null,"Électricité","kWh","3,6","1,0","0,0"]
[null,"Granules","kg","19,8","5,5","1834,97"]
[null,"Copeaux","kg","11,9","3,3","1834,97"]
[null,"Biomasse - autre","kg",{"$f":"BiomasseMJParUnite","v":11.9},{"$f":"BiomasseKWHParUnite","v":3.3},{"$f":"BiomasseEmissionsDeGES","v":1834.97}]
[]
[]
[]
[null,"Facteurs de conversion utilisés pour le calcul de la consommation anticipée",null,null,null,null,"Facteur"]
[null,null,null,null,null,null,1]
[null,"Situation",null,null,null,null,0.9]
[null,"Aucun combustible fossile n'est utilisé pour gérer la demande"]
[null,"Un combustible fossile est utilisé pour gérer la demande"]
[]
[]
[null,"Tableau 5.6 - Débit d’infiltration selon le type d’infiltrations"]
[null,"Type d’infiltrations",null,"Débit d’infiltration (L/m●s)"]
[null,null,null,"2,70 m/s","3,42 m/s"]
[null,"Porte bien ajustée",null,"0,1","0,1"]
[null,"Porte à ajustement moyen",null,"0,2","0,4"]
[null,"Porte mal ajustée",null,"0,7","1,1"]
[null,"Fissure de 0,8 mm",null,"1,7","3,1"]
[null,"Fissure de 1,6 mm",null,"2,8","3,9"]
[null,"Fissure de 3,2 mm",null,"6,1","10,0"]
[null,"Fissure de 6,4 mm",null,"12,8","18,6"]
[null,"Fissure de 9,5 mm",null,"19,4","28,0"]
[null,"Fissure de 12,7 mm",null,26,"38,0"]

{"sheet":"Procédure d'utilisation","index":42,"n_rows":37,"n_cols":4,"rows_kept":37,"cut":false,"hidden":false,"merged":[[19,3,19,16],[1,2,1,16],[29,2,29,3]]}
[]
[null,null,"Procédure d'utilisation*"]
[]
[null,null,"1. Sélectionnez l'onglet Infos combustible et entrez la consommation mensuelle de combustible de même que le prix mensuel moyen du combustible. Le programme se servira de "]
[null,null,"ces valeurs pour effectuer les calculs. Alternativement il est possible de saisir directement la consommation annuelle de combustible de même que le prix annuel moyen, sans "]
[null,null,"entrer les consommations mensuelles. La saisie des données sur cet onglet est facultative."]
[null,null,"2. Sélectionnez l'onglet Mesures d'efficacité;"]
[null,null,"3. Choisissez une mesure d'efficacité (colonne de gauche) ou débuter la création d'un scénario personnalisé (colonne de droite);"]
[]
[null,null,"3.1 Sélection d'une seule mesure (colonne de gauche)"]
[null,null,null,"3.1.1 Fournir les information demandées"]
[null,null,null,"3.1.2 Appuyer sur le bouton calculer pour afficher le résultat des calculs directement sur le formulaire"]
[null,null,null,"•  Le bouton Exporter lance la création d'un rapport au format Word lequel regroupe les informations sasies et le résultat des calculs"]
[null,null,null,"•  Le bouton Effacer efface les informations saisies et les résultats"]
[]
[null,null,"3.1 Création d'un scénario personnalisé (colonne de droite) (les instructions défileront à l'écran)"]
[null,null,null,"3.1.1 Choisir les mesures d'efficacité "]
[null,null,null,"3.1.2 Fournir les informations communes aux mesures sélectionnées"]
[null,null,null,"3.1.3 Fournir les informations spécifiques aux mesures sélectionnées"]
[null,null,null,"3.1.4 À l'avant dernière étape, il est possible d'enregister les paramètres du scénario et de créer un rapport. Le rapport contient le résultat des calculs et résume l'ensemble des informations saisies."]
[]
[null,null,"Notes concernant les données de sortie:"]
[null,null,null,"• Période de retour sur investissement (PRI): Dans le cas où la période de retour sur investissement serait négative, le programme affiche \"NON CALCULÉ\""]
[null,null,null,"• Économies: un résultat négatif indique qu'aucune économies n'est réalisées; ce scénario entraînerait une consommation accrue de combustible, un déboursé "]
[null,null,null,"monétaire supplémentaire pour le chauffage ou les deux."]
[]
[null,null,"Note concernant la case à cocher \"Conversion vers l'électricité\" (mesure 1.2 seulement)"]
[null,null,null,"Dans le cas où la nouvelle source énergétique serait l'électricité, cochez la case si un combustible fossile est utilisé pour gérer la demande de puissance d’électricité en pointe."]
[]
[null,null,"*Nota bene"]
[null,null,"• Pour la génération des rapports, le calculateur se sert de Mircrosoft Word. Ce programme doit donc préalablement être installé."]
[null,null,"• Prenez connaissance des limites du calculateur"]
[]
[null,null,"La réalisation de l'outil d'aide à la décision a été rendu possible par l'entremise de l'appui financier du MAPAQ."]
[]
[]
[null,null,"Merci aux entreprises suivantes pour leur soutien:"]

{"sheet":"Limites au calculateur","index":43,"n_rows":20,"n_cols":8,"rows_kept":20,"cut":false,"hidden":false,"merged":[[19,1,19,15],[4,1,4,15],[8,1,8,15],[10,1,10,15],[0,1,0,15],[2,7,2,9],[12,1,12,15],[14,1,14,15],[16,1,16,15]]}
[null,"LIMITES AU CALCULATEUR"]
[]
[null,null,null,null,null,null,null,"Mise en garde"]
[]
[null,"• La hausse de la productivité n’a pas été considérée dans le présent calculateur bien que, dans certains cas, l’impact s’avère important et permet de rentabiliser l’investissement plus rapidement."]
[]
[null,"• Les chiffres fournis pour les investissements et les frais d’entretien ne sont que des exemples. Idéalement, vous devez entrer vos propres coûts selon vos soumissions."]
[]
[null,"• Pour les frais d’entretien, le temps requis pour le nettoyage régulier et usuel de certains équipements n’a pas été considéré. Seuls les frais spécifiques à un équipement ont été évalués dans les charges supplémentaires."]
[]
[null,"• La période de retour sur l’investissement a été calculée uniquement sur des investissements qui sont des immobilisations pour l’entreprise. Par exemple, le remplacement du polyéthylène par un même type de polyéthylène ne constitue pas une mesure d’efficacité énergétique, mais plutôt une dépense d’entretien.  Donc, aucune PRI n’a été calculée dans ce cas. Par contre, le remplacement d’un polyéthylène par un autre type de recouvrement (passer d’une simple épaisseur à une double), est considéré comme une immobilisation."]
[]
[null,"• Le taux d'intérêt relatif aux investissements n'a pas été considéré dans le calcul, car il n'influence pas beaucoup la période de retour sur investissement puisque celle-ci est souvent rapide. Cependant, pour des équipements amortissables sur une plus longue période de temps, le taux d'intérêt pourrait avoir un impact plus significatif."]
[]
[null,"• La période de retour sur l'investissement ne devrait jamais dépasser la durée de vie utile du bien."]
[]
[null,"• Dans le cas d'investissements importants, il faudra s'assurer que la situation financière générale de l'entreprise puisse assumer un autre investissement. L'analyse devra être approfondie dans certaines situations. "]
[]
[null,"Notes concerant les scénario personnalisés seulement:"]
[null,"• Les économies d’énergie découlant des mesures d’efficacité énergétique sélectionnées ne tiennent pas compte des effets croisés. En effet, les calculs d’économies d’énergie se font indépendamment pour chaque mesure et n’intègrent pas les résultats des autres mesures implantées. La détermination des effets croisés s’inscrit dans le cadre d’une gestion énergétique approfondie et ne peut donc être déterminée à l’aide de ce calculateur."]

{"sheet":"Description des onglets","index":44,"n_rows":26,"n_cols":3,"rows_kept":26,"cut":false,"hidden":false,"merged":[[18,1,18,16],[0,1,0,15],[5,2,5,15],[7,2,7,15],[10,1,10,15],[12,1,12,15]]}
[null,"Description sommaire du contenu retrouvé sur les différents onglets"]
[]
[null,"1. Onglet mesures d'efficacité"]
[null,"Permet de choisir les mesures d'efficacité. Le programme fonctionne de 2 manières:"]
[]
[null,null,"1. Mode à accès direct: permet d'accéder directement à une mesure d'efficacité énergétique. Il s'agit de fournir des informations de base tels la source d'énergie, la consommation annuelle de combustible et le prix moyen. Le programme affiche les résultats des calculs à même le formulaire. Un rapport peut être créé."]
[]
[null,null,"2. Création de scénario personnalisé: permet de choisir plusieurs mesures d'efficacité énergétique à la fois. Un rapport contenant l'ensemble des résultats est créé à la toute fin."]
[]
[null,"2. Onglet infos combustible"]
[null,"Contient les informations reliés à la source énergétique. Cette feuille de calcul permet la saisie de la consommation mensuelle de combustible de même que le prix mesuel moyen. Le programme calcule la consommation annuelle de combustible et le prix moyen pondéré. Si ces données sont saisies, le programme s'en sert comme valeur par défaut."]
[]
[null,"Lorsque la source d'énergie est la biomasse, il est possible de spécifier les paramètres énergétiques par kilogramme de cette source d'énergie soient le nombre de kWh, le nombre de Mégajoules et la quantité de CO2 émise. Il n'est cependant pas possible de changer les valeurs énergétiques des autres sources énergétiques."]
[]
[null,"3. Onglet limite au calculateur"]
[null,"Résume les limites des éléments pris en compte dans les calculs tant dans le volet énergétique que dans le volet économique."]
[]
[null,"4. Onglet liste des tableaux"]
[null,"Affiche la liste de tous les tableaux cités dans les fiches. Afin d'accélérer la consultation d'information, certains tableaux ont été ajoutés en plus; ils reprennent cependant de l'information déjà présentent dans les fiches."]
[]
[null,"5. Graphique de la consommation"]
[null,"Affiche sous forme de graphiques à barre la consommation mensuelle des différents combustible."]
[]
[null,"6. Onglet Inscrire facture"]
[null,"Dans le cas d'une conversion du propane ou du mazout vers l'électricité, cet interface permet de saisir les infomations requises pour les effectuer les calculs."]
[null,"Ce modèle de calcul a été développé par Hydro-Québec. Il n'est pas disponible pour les scénarios personnalisés."]

{"sheet":"Mesures d'efficacité ","index":45,"n_rows":0,"n_cols":0,"rows_kept":0,"cut":false,"hidden":false,"merged":[]}

{"sheet":"Liste des tableaux","index":46,"n_rows":74,"n_cols":3,"rows_kept":74,"cut":false,"hidden":false,"merged":[[8,2,8,11],[9,2,9,11],[10,2,10,11],[34,2,34,8],[33,2,33,8],[11,2,11,11],[12,2,12,11],[13,2,13,13],[19,2,19,11],[20,2,20,11],[29,2,29,8],[30,2,30,8],[21,2,21,11],[22,2,22,11],[23,2,23,11],[24,2,24,11],[2,2,2,12],[3,2,3,11],[5,2,5,11],[6,2,6,11],[4,2,4,11],[52,2,52,10],[57,2,57,10],[27,2,27,8],[28,2,28,8],[38,2,38,8],[39,2,39,8],[40,2,40,7],[54,2,54,10],[55,2,55,10],[56,2,56,10],[41,2,41,7],[35,2,35,8],[45,2,45,7],[72,2,72,11],[73,2,73,11],[66,2,66,10],[69,2,69,11],[70,2,70,11],[71,2,71,11],[7,2,7,7],[61,2,61,10],[64,2,64,12],[65,2,65,12],[42,2,42,7],[43,2,43,7],[44,2,44,8],[49,2,49,10],[53,2,53,10],[48,2,48,10],[50,2,50,10],[51,2,51,10],[14,2,14,13],[15,2,15,14],[16,2,16,16],[60,2,60,10]]}
[]
[null,"Mesure 1: Systèmes de production de chaleur efficaces"]
[null,null,"Tableau 1.1 - Caractéristiques des systèmes de génération de chaleur"]
[null,null,"Tableau 1.2 - Valeur énergétique et émissions de GES de différentes sources énergétiques"]
[null,null,"Tableau 1.3  - Coûts associés à l'acquisition, l'exploitation, et l'entretien d'un système à la biomasse"]
[null,null,"Tableau 1.4 - Rendements saisonniers de différentes technologies de chauffage (gaz naturel, propane, mazout, électricité)"]
[null,null,"Tableau 1.5 - Rendements thermiques et saisonniers de systèmes de chauffage à la biomasse "]
[null,null,"Tableau 1.6 - Coûts des investissements pour une conversion à la biomasse "]
[null,null,"Tableau 1.7 - Exemple de coûts d'entretien de système de chauffage"]
[null,null,"Tableau 1.8 - Historique des coûts moyens annuels ($/unité) des différentes sources d'énergie de 2012 à 2016"]
[null,null,"Tableau 1.9 - Coûts d'achat d'un système de chauffage à l'air chaud pour une serre individuelle"]
[null,null,"Tableau 1.10 - Coûts d'achat d'un système de chauffage à l'air chaud pour des serres jumelées"]
[null,null,"Tableau 1.11 - Coût d'acquisistion d'un système de chauffage à la biomasse pour des serres individuelles et jumelées"]
[null,null,"Tableau 1.12 - Exemple de coûts d'acquisition d'un système de chauffage à la biomasse aux granules et d'un réservoir d'hydroaccumulation"]
[null,null,"Tableau 1.13 - Coûts pour les copeaux, les granules et la biomasse agricole"]
[null,null,"Tableau 1.14 - Comparaison du potentiel de réduction des coûts de chauffage entre des granules à 10% d'humidité et le propane, le mazout léger et l'électrcité"]
[null,null,"Tableau 1.15 - Comparaison du potentiel de réduction des coûts de chauffage entre des copeaux de bois à 30% d'humidité et le propane, le mazout léger le gaz naturel et l'électrcité"]
[]
[null,"Mesure 2: Installation d'écrans thermiques"]
[null,null,"Tableau 2.1 - Données énergétiques concernant l'utilisation d'écrans thermiques"]
[null,null,"Tableau 2.2 - Scénario de référence"]
[null,null,"Tableau 2.3 - Facteurs d'utilisation des écrans thermiques"]
[null,null,"Tableau 2.4 - Coûts des écrans thermiques et de certaine composante"]
[null,null,"Tableau 2.5 - Prix d'écrans thermiques selon certains fournisseurs"]
[null,null,"Tableau 2.6 - Exemples de période de retour sur investissement"]
[]
[null,"Mesure 3: Utilisation d'un recouvrement de serre efficace"]
[null,null,"Tableau 3.1 - Principales caractéristiques des matériaux de recouvrement de serre"]
[null,null,"Tableau 3.2 - Consommation d'énergie de différents types de recouvrement de serre "]
[null,null,"Tableau 3.3 - Coûts des recouvrements"]
[null,null,"Tableau 3.4 - Coûts des recouvrement (source: Groupe Horticole Ledoux)"]
[]
[null,"Mesure 4: Implantation d'un système de contrôle du climat"]
[null,null,"Tableau 4.1 - Principales caractériques de systèmes de contrôle du climat"]
[null,null,"Tableau 4.2 - Résultats obtenus suite à l'implantation des systèmes de gestion du climat"]
[null,null,"Tableau 4.3 - Coût d'acquisistion d'un système de contrôle informatisé"]
[]
[null,"Mesure 5: Isolation des parois extérieures"]
[null,null,"Tableau 5.1 - Configuration de l’isolant en fonction de l’isolation de la serre"]
[null,null,"Tableau 5.2 - Isolation du périmètre de la serre"]
[null,null,"Tableau 5.3 - Économies d'énergie selon la méthode d'isolation des parois de serre"]
[null,null,"Tableau 5.4 - Éléments de calculs des pertes par infiltrations "]
[null,null,"Tableau 5.5 - Débit d’infiltration selon le type d’infiltrations"]
[null,null,"Tableau 5.6 - Coûts de différents types d'isolant"]
[null,null,"Tableau 5.7 - Dépenses liées à l'achat de matériel pour l'isolation des parois verticales extérieures"]
[null,null,"Tableau 5.8 - Coûts en matériel liés à l'isolation du pourtour"]
[]
[null,"Mesure 6: Éclairage de photosynthèse"]
[null,null,"Tableau 6.1 - Caractéristiques de lampes d'éclairage de photosynthèse"]
[null,null,"Tableau 6.2 - Influence de l'éclairage de photosynthèse sur la durée (en jours) du cycle de productionde la laitue hydroponique"]
[null,null,"Tableau 6.3 - Calendrier de production pour la laitue cultivée en serre avec et sans éclairage"]
[null,null,"Tableau 6.4 - Coûts d'investissement des systèmes d'éclairage"]
[null,null,"Tableau 6.5 - Coûts d'investissements de systèmes d'éclairage de photosynthèse"]
[null,null,"Tableau 6.6 - Coûts d'investissements de systèmes d'éclairage de photosynthèse"]
[null,null,"Tableau 6.7 - Coûts d'investissements de systèmes d'éclairage de photosynthèse"]
[null,null,"Tableau 6.8 - Coûts d'utilisation (tomates et concombres)"]
[null,null,"Tableau 6.9 Coûts d'utilisation (laitues)"]
[null,null,"Tableau 6.10 - Gain potentiel d'amélioration de l'efficacité d'éclairage"]
[]
[null,"Mesure 7: Ventilateurs à circulation d'air horizontal (HAF)"]
[null,null,"Tableau 7.1 - Coûts d'achat de ventilateurs à circulation d'air horizontal (HAF)"]
[null,null,"Tableau 7.2 - Coûts d'achat de ventilateurs à circulation d'air horizontal selon la superficie (HAF)"]
[]
[null,"Mesure 8: Utilisation d'un réservoir d'hydro-accumulation"]
[null,null,"Tableau 8.1 - Économies potentielles en $/m2/an pouvant être apportées par l'utilisation d'un réservoir d'hydro-accumulation"]
[null,null,"Tableau 8.2 - Économies potentielles d'énergie qui découlent de l'utilisation de réservoir d'hydro-accumulation"]
[null,null,"Tableau 8.3 - Capacité et coûts d'investissements requis pour l'acquisition d'un réservoir d'hydro accumulation"]
[]
[null,"Mesure 9: Récupération du gaz carbonique à partir des gaz de combustion du système de génération de chaleur (propane ou gaz naturel)"]
[null,null,"Tableau 9.1 - Utilisation annuelle potentielle de CO2 sur une base mensuelle"]
[null,null,"Tableau 9.2 - Coûts de quelques systèmes d'injection de CO2"]
[null,null,"Tableau 9.3 - Comparaison des coûts de production de CO2 selon le type et la quantité de combustible utilisés pour un hectare"]
[null,null,"Tableau 9.4 - Économies d'énergie selon le scénario de départ et la présence ou non d'une réservoir d'hydro-accumulation"]
[null,null,"Tableau 9.5 - Coûts en matériel liés à l'acquisition d'un générateur et d'un contrôleur de CO2"]

{"sheet":"Infos combustible","index":47,"n_rows":20,"n_cols":23,"rows_kept":20,"cut":false,"hidden":false,"merged":[[3,1,3,2],[7,1,7,4],[3,3,4,3],[1,1,1,4],[3,7,3,13],[3,16,3,22],[1,6,1,13],[1,15,1,22],[4,6,5,6],[4,15,5,15],[4,16,5,16],[4,17,5,17],[4,18,5,18],[4,19,5,19],[4,22,5,22],[4,20,5,20],[4,21,5,21]]}
[]
[null,"ÉTAPE 1: Si chauffage à la biomasse autrement qu'avec des copeaux ou des granules, entrez les valeurs énergétiques",null,null,null,null,"ÉTAPE 2: Saisir les quantités de combustible consommées mensuellement (ne remplir que la colonne qui correspond à votre combustible)",null,null,null,null,null,null,null,null,"ÉTAPE 3: Saisir le prix moyen mensuel du combustible (ne remplir que la colonne qui correspond à votre combustible)"]
[]
[null,"Valeur énergétique",null,"Émissions de GES",null,null,null,"Source d'énergie",null,null,null,null,null,null,null,null,"Prix du combustible ($/unité)"]
[null,"MJ/kg","kWh/kg",null,null,null,"Mois",{"$f":"'config prog'!B6","v":"Mazout no.2"},{"$f":"'config prog'!B7","v":"Gaz naturel"},{"$f":"'config prog'!B8","v":"Propane"},{"$f":"'config prog'!B9","v":"Électricité"},{"$f":"'config prog'!B10","v":"Granules"},{"$f":"'config prog'!B11","v":"Copeaux"},{"$f":"'config prog'!B12","v":"Biomasse - autre"},null,"Mois",{"$f":"H5","v":"Mazout no.2"},"Gaz naturel","Propane","Électricité","Granules","Copeaux","Biomasse - autre"]
[null,11.9,3.3,1834.97,null,null,null,"(L)","(m3)","(L)","(kWh)","(kg)","(kg)","(kg)"]
[null,null,null,null,null,null,"Janvier",null,null,null,null,null,null,null,null,"Janvier"]
[null,"NOTE: les cellules coloriées en vert correspondent ",null,null,null,null,"Février",null,null,null,null,null,null,null,null,"Février"]
[null,"aux informations à saisir",null,null,null,null,"Mars",null,null,null,null,null,null,null,null,"Mars"]
[null,null,null,null,null,null,"Avril",null,null,null,null,null,null,null,null,"Avril"]
[null,null,null,null,null,null,"Mai",null,null,null,null,null,null,null,null,"Mai"]
[null,null,null,null,null,null,"Juin",null,null,null,null,null,null,null,null,"Juin"]
[null,null,null,null,null,null,"Juillet",null,null,null,null,null,null,null,null,"Juillet"]
[null,null,null,null,null,null,"Août",null,null,null,null,null,null,null,null,"Août"]
[null,null,null,null,null,null,"Septembre",null,null,null,null,null,null,null,null,"Septembre"]
[null,null,null,null,null,null,"Octobre",null,null,null,null,null,null,null,null,"Octobre"]
[null,null,null,null,null,null,"Novembre",null,null,null,null,null,null,null,null,"Novembre"]
[null,null,null,null,null,null,"Décembre",null,null,null,null,null,null,null,null,"Décembre"]
[null,null,null,null,null,null,"Total annuel",{"$f":"SUM(H7:H18)","v":0},{"$f":"SUM(I7:I18)","v":0},{"$f":"SUM(J7:J18)","v":0},{"$f":"SUM(K7:K18)","v":0},{"$f":"SUM(L7:L18)","v":0},0,0,null,"Moyenne annuelle",{"$f":"IFERROR(AVERAGE(Q7:Q18),\"\")","v":""},{"$f":"IFERROR(AVERAGE(R7:R18),\"\")","v":""},"","",{"$f":"IFERROR(AVERAGE(U7:U18),\"\")","v":""},"",""]
[null,null,null,null,null,null,null,null,null,null,null,null,null,null,null,"Moyenne pondérée",{"$f":"IFERROR(SUM(H7:H18/H19*Q7:Q18),\"0\")","v":"0"},{"$f":"IFERROR(SUM(I7:I18/I19*R7:R18),\"0\")","v":"0"},{"$f":"IFERROR(SUM(J7:J18/J19*S7:S18),\"0\")","v":"0"},{"$f":"IFERROR(SUM(K7:K18/K19*T7:T18),\"0\")","v":"0"},{"$f":"IFERROR(SUM(L7:L18/L19*U7:U18),\"0\")","v":"0"},{"$f":"IFERROR(SUM(M7:M18/M19*V7:V18),\"0\")","v":"0"},{"$f":"IFERROR(SUM(N7:N18/N19*W7:W18),\"0\")","v":"0"}]

{"sheet":"Inscrire facture","index":48,"n_rows":18,"n_cols":27,"rows_kept":18,"cut":false,"hidden":false,"merged":[[12,21,12,27],[3,13,3,14],[1,3,1,19],[3,22,3,25],[1,21,1,27],[3,4,3,9]]}
[]
[null,null,null,"ÉTAPE 1 de 3: Saisir les factures actuelles d'électricité et de combustible ",null,null,null,null,null,null,null,null,null,null,null,null,null,null,null,null,null,"ÉTAPE 2 de 3: Saisir les paramètres demandés"]
[]
[null,null,null,null,"Facture actuelle d'électricité",null,null,null,null,null,null,null,null,{"$f":"'Inscrire facture'!AA5","v":"Mazout Léger (no 2)"},null,null,null,null,"Total électricité et chauffage",null,null,null,"Choisir la ville qui su situe le plus près de votre entreprise:",null,null,null,"Québec"]
[null,null,null,null,"Mois","Début de la période","Fin de la période","Pointe (kW)","Consommation mensuelle (kWh)","Montant total",null,null,null,"Nombre de litres","Montant",null,null,null,"Montant",null,null,null,"Chosir le type de combustible actuel:",null,null,null,"Mazout Léger (no 2)"]
[null,null,null,null,"Janvier","2018-01-01","2018-02-01",null,null,null,null,null,null,null,null,null,null,null,{"$f":"SUM(J6,O6)","v":0},null,null,null,"Saisir le taille de la serre (en m2) :",null,null,null,1200]
[null,null,null,null,"Février","2018-02-01","2018-03-01",null,null,null,null,null,null,null,null,null,null,null,0,null,null,null,{"$f":"\"Facteur d'utilisation projeté (actuel = \" & 'modele conversion HQ'!K54 & \"% ) :\"","v":"Facteur d'utilisation projeté (actuel = % ) :"},null,null,null,0.45]
[null,null,null,null,"Mars","2018-03-01","2018-04-01",null,null,null,null,null,null,null,null,null,null,null,0,null,null,null,"Coût total de l'investissement ($)",null,null,null,50000]
[null,null,null,null,"Avril","2018-04-01","2018-05-01",null,null,null,null,null,null,null,null,null,null,null,0,null,null,null,"Coûts annuels d'exploitation et d'entretien ($/an)",null,null,null,5000]
[null,null,null,null,"Mai","2018-05-01","2018-06-01",null,null,null,null,null,null,null,null,null,null,null,0,null,null,null,"Prix du combustible futur  ($/litre)",null,null,null,{"$f":"IF(OR(O18=0,N18=0),,'Inscrire facture'!O18/'Inscrire facture'!N18 * 1.1)","v":0}]
[null,null,null,null,"Juin","2018-06-01","2018-07-01",null,null,null,null,null,null,null,null,null,null,null,0,null,null,null,"Pourcentage d'énergie combustible restant (en hiver) :",null,null,null,{"$f":"IF((1-(1-AA7) * 1.25)<0,0,(1-(1-AA7) * 1.25))","v":0.3125}]
[null,null,null,null,"Juillet","2018-07-01","2018-08-01",null,null,null,null,null,null,null,null,null,null,null,0]
[null,null,null,null,"Août","2018-08-01","2018-09-01",null,null,null,null,null,null,null,null,null,null,null,0,null,null,"ÉTAPE 3 de 3: Générer le rapport"]
[null,null,null,null,"Septembre","2018-09-01","2018-10-01",null,null,null,null,null,null,null,null,null,null,null,0]
[null,null,null,null,"Octobre","2018-10-01","2018-11-01",null,null,null,null,null,null,null,null,null,null,null,0]
[null,null,null,null,"Novembre","2018-11-01","2018-12-01",null,null,null,null,null,null,null,null,null,null,null,0]
[null,null,null,null,"Décembre","2018-12-01","2019-01-01",null,null,null,null,null,null,null,null,null,null,null,0]
[null,null,null,null,"Annuelle",{"$f":"MIN(F6:F17)","v":"2018-01-01"},{"$f":"MAX(G6:G17)","v":"2019-01-01"},{"$f":"MAX(H6:H17)","v":0},{"$f":"SUM(I6:I17)","v":0},{"$f":"SUM(J6:J17)","v":0},null,null,null,{"$f":"SUM(N6:N17)","v":0},{"$f":"SUM(O6:O17)","v":0},null,null,null,{"$f":"SUM(S6:S17)","v":0}]

{"sheet":"Gabarit","index":49,"n_rows":36,"n_cols":14,"rows_kept":36,"cut":false,"hidden":true,"merged":[[2,10,2,13]]}
[]
[null,"Factures estimée (Tarif DT)"]
[null,null,null,null,"Électricité",null,{"$f":"'Inscrire facture'!AA5","v":"Mazout Léger (no 2)"},null,"Facture totale",null,"Prix de l'énergie"]
[null,null,null,null,"Pointe","Consommation","Écrêter pointe",{"$f":" \"Température < \" &  VLOOKUP('Inscrire facture'!AA4,DegresJourHiver!$B$3:$E$14,2) & \"°C\"","v":"Température < -15°C"},"Électricité et combustible",null,"Base annuelle","Mètre carré ($ / m2)","Combustible (¢/kWh)","Électricité (¢/kWh)"]
[null,"Mois","Date Début","Date Fin","(kW)"," (kWh)"," (litres)"," (litres)","Tarif DT",null,"Factures actuelle",{"$f":"'Inscrire facture'!S18/'Inscrire facture'!AA6","v":0},{"$f":" ('Inscrire facture'!O18/'Inscrire facture'!N18) / IF('Inscrire facture'!$AA$5=\"Mazout Léger (no 2)\",Paramètres!$G$6*Paramètres!$G$7,IF('Inscrire facture'!$AA$5=\"Mazout Lourd (no 6)\",Paramètres!$G$10*Paramètres!$G$11,IF('Inscrire facture'!$AA$5=\"Propane\",Paramètres!$G$14*Paramètres!$G$15,\"Erreur\")))*100","v":{"$error":"#DIV/0!"}},{"$f":"'Inscrire facture'!J18/'Inscrire facture'!I18 * 100","v":{"$error":"#DIV/0!"}}]
[null,{"$f":"'modele conversion HQ'!B7","v":"Janvier"},{"$f":"'modele conversion HQ'!C7","v":"2018-01-01"},{"$f":"'modele conversion HQ'!D7","v":"2018-02-01"},{"$f":"'modele conversion HQ'!M7","v":0},{"$f":"'modele conversion HQ'!P25","v":0},{"$f":"'modele conversion HQ'!P7","v":0},{"$f":"'modele conversion HQ'!Q7","v":0},{"$f":"'modele conversion HQ'!R7","v":12.5984},null,"Factures au tarif DP",{"$f":"H36/'Inscrire facture'!AA6","v":6.090000000000001E-2},{"$f":"$M$5 * 1.1","v":{"$error":"#DIV/0!"}},{"$f":"'modele conversion HQ'!Q37 / F36 * 100","v":{"$error":"#DIV/0!"}}]
[null,{"$f":"'modele conversion HQ'!B8","v":"Février"},{"$f":"'modele conversion HQ'!C8","v":"2018-02-01"},{"$f":"'modele conversion HQ'!D8","v":"2018-03-01"},{"$f":"'modele conversion HQ'!M8","v":0},{"$f":"'modele conversion HQ'!P26","v":0},{"$f":"'modele conversion HQ'!P8","v":0},{"$f":"'modele conversion HQ'!Q8","v":0},{"$f":"'modele conversion HQ'!R8","v":11.379199999999999},null,"Factures au tarif M",{"$f":"I36/'Inscrire facture'!AA6","v":0},{"$f":"$M$5 * 1.1","v":{"$error":"#DIV/0!"}},{"$f":"'modele conversion HQ'!AD37 / F36 * 100","v":{"$error":"#DIV/0!"}}]
[null,{"$f":"'modele conversion HQ'!B9","v":"Mars"},{"$f":"'modele conversion HQ'!C9","v":"2018-03-01"},{"$f":"'modele conversion HQ'!D9","v":"2018-04-01"},{"$f":"'modele conversion HQ'!M9","v":0},{"$f":"'modele conversion HQ'!P27","v":0},{"$f":"'modele conversion HQ'!P9","v":0},{"$f":"'modele conversion HQ'!Q9","v":0},{"$f":"'modele conversion HQ'!R9","v":12.5984},null,"Factures au tarif DT",{"$f":"I18/'Inscrire facture'!AA6","v":0.12361333333333334},{"$f":"$M$5 * 1.1","v":{"$error":"#DIV/0!"}},{"$f":" 'modele conversion HQ'!X37 / F18 * 100","v":{"$error":"#DIV/0!"}}]
[null,{"$f":"'modele conversion HQ'!B10","v":"Avril"},{"$f":"'modele conversion HQ'!C10","v":"2018-04-01"},{"$f":"'modele conversion HQ'!D10","v":"2018-05-01"},{"$f":"'modele conversion HQ'!M10","v":0},{"$f":"'modele conversion HQ'!P28","v":0},{"$f":"'modele conversion HQ'!P10","v":0},{"$f":"'modele conversion HQ'!Q10","v":0},{"$f":"'modele conversion HQ'!R10","v":12.192}]
[null,{"$f":"'modele conversion HQ'!B11","v":"Mai"},{"$f":"'modele conversion HQ'!C11","v":"2018-05-01"},{"$f":"'modele conversion HQ'!D11","v":"2018-06-01"},{"$f":"'modele conversion HQ'!M11","v":0},{"$f":"'modele conversion HQ'!P29","v":0},{"$f":"'modele conversion HQ'!P11","v":0},{"$f":"'modele conversion HQ'!Q11","v":0},{"$f":"'modele conversion HQ'!R11","v":12.5984}]
[null,{"$f":"'modele conversion HQ'!B12","v":"Juin"},{"$f":"'modele conversion HQ'!C12","v":"2018-06-01"},{"$f":"'modele conversion HQ'!D12","v":"2018-07-01"},{"$f":"'modele conversion HQ'!M12","v":0},{"$f":"'modele conversion HQ'!P30","v":0},{"$f":"'modele conversion HQ'!P12","v":0},{"$f":"'modele conversion HQ'!Q12","v":0},{"$f":"'modele conversion HQ'!R12","v":12.192},null,"  Paramètres"]
[null,{"$f":"'modele conversion HQ'!B13","v":"Juillet"},{"$f":"'modele conversion HQ'!C13","v":"2018-07-01"},{"$f":"'modele conversion HQ'!D13","v":"2018-08-01"},{"$f":"'modele conversion HQ'!M13","v":0},{"$f":"'modele conversion HQ'!P31","v":0},{"$f":"'modele conversion HQ'!P13","v":0},{"$f":"'modele conversion HQ'!Q13","v":0},{"$f":"'modele conversion HQ'!R13","v":12.5984},null,"     Ville :",null,{"$f":"'Inscrire facture'!AA4","v":"Québec"}]
[null,{"$f":"'modele conversion HQ'!B14","v":"Août"},{"$f":"'modele conversion HQ'!C14","v":"2018-08-01"},{"$f":"'modele conversion HQ'!D14","v":"2018-09-01"},{"$f":"'modele conversion HQ'!M14","v":0},{"$f":"'modele conversion HQ'!P32","v":0},{"$f":"'modele conversion HQ'!P14","v":0},{"$f":"'modele conversion HQ'!Q14","v":0},{"$f":"'modele conversion HQ'!R14","v":12.5984},null,"     Type de combustible :",null,{"$f":"'Inscrire facture'!AA5","v":"Mazout Léger (no 2)"}]
[null,{"$f":"'modele conversion HQ'!B15","v":"Septembre"},{"$f":"'modele conversion HQ'!C15","v":"2018-09-01"},{"$f":"'modele conversion HQ'!D15","v":"2018-10-01"},{"$f":"'modele conversion HQ'!M15","v":0},{"$f":"'modele conversion HQ'!P33","v":0},{"$f":"'modele conversion HQ'!P15","v":0},{"$f":"'modele conversion HQ'!Q15","v":0},{"$f":"'modele conversion HQ'!R15","v":12.192},null,"     Taille de la serre (en m2) :",null,{"$f":"'Inscrire facture'!AA6","v":1200}]
[null,{"$f":"'modele conversion HQ'!B16","v":"Octobre"},{"$f":"'modele conversion HQ'!C16","v":"2018-10-01"},{"$f":"'modele conversion HQ'!D16","v":"2018-11-01"},{"$f":"'modele conversion HQ'!M16","v":0},{"$f":"'modele conversion HQ'!P34","v":0},{"$f":"'modele conversion HQ'!P16","v":0},{"$f":"'modele conversion HQ'!Q16","v":0},{"$f":"'modele conversion HQ'!R16","v":12.5984},null,"     Facteur d'utilisation projeté :",null,{"$f":"'Inscrire facture'!AA7","v":0.45}]
[null,{"$f":"'modele conversion HQ'!B17","v":"Novembre"},{"$f":"'modele conversion HQ'!C17","v":"2018-11-01"},{"$f":"'modele conversion HQ'!D17","v":"2018-12-01"},{"$f":"'modele conversion HQ'!M17","v":0},{"$f":"'modele conversion HQ'!P35","v":0},{"$f":"'modele conversion HQ'!P17","v":0},{"$f":"'modele conversion HQ'!Q17","v":0},{"$f":"'modele conversion HQ'!R17","v":12.192},null,"     Prix du combustible futur :",null,{"$f":"'Inscrire facture'!AA10","v":0}]
[null,{"$f":"'modele conversion HQ'!B18","v":"Décembre"},{"$f":"'modele conversion HQ'!C18","v":"2018-12-01"},{"$f":"'modele conversion HQ'!D18","v":"2019-01-01"},{"$f":"'modele conversion HQ'!M18","v":0},{"$f":"'modele conversion HQ'!P36","v":0},{"$f":"'modele conversion HQ'!P18","v":0},{"$f":"'modele conversion HQ'!Q18","v":0},{"$f":"'modele conversion HQ'!R18","v":12.5984},null,"     % d'énergie combustible restant :",null,{"$f":"'Inscrire facture'!AA11","v":0.3125}]
[null,{"$f":"'modele conversion HQ'!B19","v":"Annuelle"},{"$f":"'modele conversion HQ'!C19","v":"2018-01-01"},{"$f":"'modele conversion HQ'!D19","v":"2019-01-01"},{"$f":"MAX(E6:E17)","v":0},{"$f":"SUM(F6:F17)","v":0},{"$f":"SUM(G6:G17)","v":0},{"$f":"SUM(H6:H17)","v":0},{"$f":"SUM(I6:I17)","v":148.33600000000001}]
[]
[null,"Factures estimée (Tarif DP et M)"]
[null,null,null,null,"Électricité",null,{"$f":"'Inscrire facture'!AA5","v":"Mazout Léger (no 2)"},"Facture totale","Facture totale"]
[null,null,null,null,"Pointe","Consommation","Écrêter la pointe","Électricité et combustible","Électricité et combustible"]
[null,"Mois","Date Début","Date Fin","en kW"," en kWh","(litres)","Tarif DP","Tarif M"]
[null,{"$f":"'modele conversion HQ'!B7","v":"Janvier"},{"$f":"'modele conversion HQ'!C7","v":"2018-01-01"},{"$f":"'modele conversion HQ'!D7","v":"2018-02-01"},{"$f":"'modele conversion HQ'!E7","v":0},{"$f":"'modele conversion HQ'!F7","v":0},{"$f":"'modele conversion HQ'!G7","v":0},{"$f":"'modele conversion HQ'!J7","v":6.09},{"$f":"'modele conversion HQ'!K7","v":0}]
[null,{"$f":"'modele conversion HQ'!B8","v":"Février"},{"$f":"'modele conversion HQ'!C8","v":"2018-02-01"},{"$f":"'modele conversion HQ'!D8","v":"2018-03-01"},{"$f":"'modele conversion HQ'!E8","v":0},{"$f":"'modele conversion HQ'!F8","v":0},{"$f":"'modele conversion HQ'!G8","v":0},{"$f":"'modele conversion HQ'!J8","v":6.09},{"$f":"'modele conversion HQ'!K8","v":0}]
[null,{"$f":"'modele conversion HQ'!B9","v":"Mars"},{"$f":"'modele conversion HQ'!C9","v":"2018-03-01"},{"$f":"'modele conversion HQ'!D9","v":"2018-04-01"},{"$f":"'modele conversion HQ'!E9","v":0},{"$f":"'modele conversion HQ'!F9","v":0},{"$f":"'modele conversion HQ'!G9","v":0},{"$f":"'modele conversion HQ'!J9","v":6.09},{"$f":"'modele conversion HQ'!K9","v":0}]
[null,{"$f":"'modele conversion HQ'!B10","v":"Avril"},{"$f":"'modele conversion HQ'!C10","v":"2018-04-01"},{"$f":"'modele conversion HQ'!D10","v":"2018-05-01"},{"$f":"'modele conversion HQ'!E10","v":0},{"$f":"'modele conversion HQ'!F10","v":0},{"$f":"'modele conversion HQ'!G10","v":0},{"$f":"'modele conversion HQ'!J10","v":6.09},{"$f":"'modele conversion HQ'!K10","v":0}]
[null,{"$f":"'modele conversion HQ'!B11","v":"Mai"},{"$f":"'modele conversion HQ'!C11","v":"2018-05-01"},{"$f":"'modele conversion HQ'!D11","v":"2018-06-01"},{"$f":"'modele conversion HQ'!E11","v":0},{"$f":"'modele conversion HQ'!F11","v":0},{"$f":"'modele conversion HQ'!G11","v":0},{"$f":"'modele conversion HQ'!J11","v":6.09},{"$f":"'modele conversion HQ'!K11","v":0}]
[null,{"$f":"'modele conversion HQ'!B12","v":"Juin"},{"$f":"'modele conversion HQ'!C12","v":"2018-06-01"},{"$f":"'modele conversion HQ'!D12","v":"2018-07-01"},{"$f":"'modele conversion HQ'!E12","v":0},{"$f":"'modele conversion HQ'!F12","v":0},{"$f":"'modele conversion HQ'!G12","v":0},{"$f":"'modele conversion HQ'!J12","v":6.09},{"$f":"'modele conversion HQ'!K12","v":0}]
[null,{"$f":"'modele conversion HQ'!B13","v":"Juillet"},{"$f":"'modele conversion HQ'!C13","v":"2018-07-01"},{"$f":"'modele conversion HQ'!D13","v":"2018-08-01"},{"$f":"'modele conversion HQ'!E13","v":0},{"$f":"'modele conversion HQ'!F13","v":0},{"$f":"'modele conversion HQ'!G13","v":0},{"$f":"'modele conversion HQ'!J13","v":6.09},{"$f":"'modele conversion HQ'!K13","v":0}]
[null,{"$f":"'modele conversion HQ'!B14","v":"Août"},{"$f":"'modele conversion HQ'!C14","v":"2018-08-01"},{"$f":"'modele conversion HQ'!D14","v":"2018-09-01"},{"$f":"'modele conversion HQ'!E14","v":0},{"$f":"'modele conversion HQ'!F14","v":0},{"$f":"'modele conversion HQ'!G14","v":0},{"$f":"'modele conversion HQ'!J14","v":6.09},{"$f":"'modele conversion HQ'!K14","v":0}]
[null,{"$f":"'modele conversion HQ'!B15","v":"Septembre"},{"$f":"'modele conversion HQ'!C15","v":"2018-09-01"},{"$f":"'modele conversion HQ'!D15","v":"2018-10-01"},{"$f":"'modele conversion HQ'!E15","v":0},{"$f":"'modele conversion HQ'!F15","v":0},{"$f":"'modele conversion HQ'!G15","v":0},{"$f":"'modele conversion HQ'!J15","v":6.09},{"$f":"'modele conversion HQ'!K15","v":0}]
[null,{"$f":"'modele conversion HQ'!B16","v":"Octobre"},{"$f":"'modele conversion HQ'!C16","v":"2018-10-01"},{"$f":"'modele conversion HQ'!D16","v":"2018-11-01"},{"$f":"'modele conversion HQ'!E16","v":0},{"$f":"'modele conversion HQ'!F16","v":0},{"$f":"'modele conversion HQ'!G16","v":0},{"$f":"'modele conversion HQ'!J16","v":6.09},{"$f":"'modele conversion HQ'!K16","v":0}]
[null,{"$f":"'modele conversion HQ'!B17","v":"Novembre"},{"$f":"'modele conversion HQ'!C17","v":"2018-11-01"},{"$f":"'modele conversion HQ'!D17","v":"2018-12-01"},{"$f":"'modele conversion HQ'!E17","v":0},{"$f":"'modele conversion HQ'!F17","v":0},{"$f":"'modele conversion HQ'!G17","v":0},{"$f":"'modele conversion HQ'!J17","v":6.09},{"$f":"'modele conversion HQ'!K17","v":0}]
[null,{"$f":"'modele conversion HQ'!B18","v":"Décembre"},{"$f":"'modele conversion HQ'!C18","v":"2018-12-01"},{"$f":"'modele conversion HQ'!D18","v":"2019-01-01"},{"$f":"'modele conversion HQ'!E18","v":0},{"$f":"'modele conversion HQ'!F18","v":0},{"$f":"'modele conversion HQ'!G18","v":0},{"$f":"'modele conversion HQ'!J18","v":6.09},{"$f":"'modele conversion HQ'!K18","v":0}]
[null,{"$f":"'modele conversion HQ'!B19","v":"Annuelle"},{"$f":"'modele conversion HQ'!C19","v":"2018-01-01"},{"$f":"'modele conversion HQ'!D19","v":"2019-01-01"},{"$f":"MAX(E24:E35)","v":0},{"$f":"SUM(F24:F35)","v":0},{"$f":"SUM(G24:G35)","v":0},{"$f":"SUM(H24:H35)","v":73.080000000000013},{"$f":"SUM(I24:I35)","v":0}]

{"sheet":"hq facture actuelle","index":50,"n_rows":19,"n_cols":9,"rows_kept":19,"cut":false,"hidden":true,"merged":[[4,7,4,8]]}
[]
[]
[null,"Facture actuelle"]
[null,null,null,null,"Électricité","Électricité",{"$f":"'Inscrire facture'!AA5","v":"Mazout Léger (no 2)"}]
[null,null,null,null,"Pointe",null,null,"Facture totale"]
[null,"Mois","Date Début","Date Fin","(kW)","(kWh)","(litres)","Électricité et combustible"]
[null,{"$f":"'Inscrire facture'!E6","v":"Janvier"},{"$f":"'Inscrire facture'!F6","v":"2018-01-01"},{"$f":"'Inscrire facture'!G6","v":"2018-02-01"},{"$f":"'Inscrire facture'!H6","v":0},{"$f":"'Inscrire facture'!I6","v":0},{"$f":"'Inscrire facture'!N6","v":0},null,{"$f":"'Inscrire facture'!S6","v":0}]
[null,{"$f":"'Inscrire facture'!E7","v":"Février"},{"$f":"'Inscrire facture'!F7","v":"2018-02-01"},{"$f":"'Inscrire facture'!G7","v":"2018-03-01"},{"$f":"'Inscrire facture'!H7","v":0},{"$f":"'Inscrire facture'!I7","v":0},{"$f":"'Inscrire facture'!N7","v":0},null,{"$f":"'Inscrire facture'!S7","v":0}]
[null,{"$f":"'Inscrire facture'!E8","v":"Mars"},{"$f":"'Inscrire facture'!F8","v":"2018-03-01"},{"$f":"'Inscrire facture'!G8","v":"2018-04-01"},{"$f":"'Inscrire facture'!H8","v":0},{"$f":"'Inscrire facture'!I8","v":0},{"$f":"'Inscrire facture'!N8","v":0},null,{"$f":"'Inscrire facture'!S8","v":0}]
[null,{"$f":"'Inscrire facture'!E9","v":"Avril"},{"$f":"'Inscrire facture'!F9","v":"2018-04-01"},{"$f":"'Inscrire facture'!G9","v":"2018-05-01"},{"$f":"'Inscrire facture'!H9","v":0},{"$f":"'Inscrire facture'!I9","v":0},{"$f":"'Inscrire facture'!N9","v":0},null,{"$f":"'Inscrire facture'!S9","v":0}]
[null,{"$f":"'Inscrire facture'!E10","v":"Mai"},{"$f":"'Inscrire facture'!F10","v":"2018-05-01"},{"$f":"'Inscrire facture'!G10","v":"2018-06-01"},{"$f":"'Inscrire facture'!H10","v":0},{"$f":"'Inscrire facture'!I10","v":0},{"$f":"'Inscrire facture'!N10","v":0},null,{"$f":"'Inscrire facture'!S10","v":0}]
[null,{"$f":"'Inscrire facture'!E11","v":"Juin"},{"$f":"'Inscrire facture'!F11","v":"2018-06-01"},{"$f":"'Inscrire facture'!G11","v":"2018-07-01"},{"$f":"'Inscrire facture'!H11","v":0},{"$f":"'Inscrire facture'!I11","v":0},{"$f":"'Inscrire facture'!N11","v":0},null,{"$f":"'Inscrire facture'!S11","v":0}]
[null,{"$f":"'Inscrire facture'!E12","v":"Juillet"},{"$f":"'Inscrire facture'!F12","v":"2018-07-01"},{"$f":"'Inscrire facture'!G12","v":"2018-08-01"},{"$f":"'Inscrire facture'!H12","v":0},{"$f":"'Inscrire facture'!I12","v":0},{"$f":"'Inscrire facture'!N12","v":0},null,{"$f":"'Inscrire facture'!S12","v":0}]
[null,{"$f":"'Inscrire facture'!E13","v":"Août"},{"$f":"'Inscrire facture'!F13","v":"2018-08-01"},{"$f":"'Inscrire facture'!G13","v":"2018-09-01"},{"$f":"'Inscrire facture'!H13","v":0},{"$f":"'Inscrire facture'!I13","v":0},{"$f":"'Inscrire facture'!N13","v":0},null,{"$f":"'Inscrire facture'!S13","v":0}]
[null,{"$f":"'Inscrire facture'!E14","v":"Septembre"},{"$f":"'Inscrire facture'!F14","v":"2018-09-01"},{"$f":"'Inscrire facture'!G14","v":"2018-10-01"},{"$f":"'Inscrire facture'!H14","v":0},{"$f":"'Inscrire facture'!I14","v":0},{"$f":"'Inscrire facture'!N14","v":0},null,{"$f":"'Inscrire facture'!S14","v":0}]
[null,{"$f":"'Inscrire facture'!E15","v":"Octobre"},{"$f":"'Inscrire facture'!F15","v":"2018-10-01"},{"$f":"'Inscrire facture'!G15","v":"2018-11-01"},{"$f":"'Inscrire facture'!H15","v":0},{"$f":"'Inscrire facture'!I15","v":0},{"$f":"'Inscrire facture'!N15","v":0},null,{"$f":"'Inscrire facture'!S15","v":0}]
[null,{"$f":"'Inscrire facture'!E16","v":"Novembre"},{"$f":"'Inscrire facture'!F16","v":"2018-11-01"},{"$f":"'Inscrire facture'!G16","v":"2018-12-01"},{"$f":"'Inscrire facture'!H16","v":0},{"$f":"'Inscrire facture'!I16","v":0},{"$f":"'Inscrire facture'!N16","v":0},null,{"$f":"'Inscrire facture'!S16","v":0}]
[null,{"$f":"'Inscrire facture'!E17","v":"Décembre"},{"$f":"'Inscrire facture'!F17","v":"2018-12-01"},{"$f":"'Inscrire facture'!G17","v":"2019-01-01"},{"$f":"'Inscrire facture'!H17","v":0},{"$f":"'Inscrire facture'!I17","v":0},{"$f":"'Inscrire facture'!N17","v":0},null,{"$f":"'Inscrire facture'!S17","v":0}]
[null,{"$f":"'Inscrire facture'!E18","v":"Annuelle"},{"$f":"'Inscrire facture'!F18","v":"2018-01-01"},{"$f":"'Inscrire facture'!G18","v":"2019-01-01"},{"$f":"'Inscrire facture'!H18","v":0},{"$f":"'Inscrire facture'!I18","v":0},{"$f":"'Inscrire facture'!N18","v":0},null,{"$f":"'Inscrire facture'!S18","v":0}]

{"sheet":"TEST RAPPORT hq","index":51,"n_rows":16,"n_cols":6,"rows_kept":16,"cut":false,"hidden":true,"merged":[[1,1,1,2],[1,4,1,5]]}
[]
[null,"Données d'entrées",null,null,"Résultats"]
[null,"Investissement",50000,null,"Consommation actuelle de combustible (kWh/an)",{"$f":"C10*C7","v":0}]
[null,"Exploitation et entretien",5000,null,"Consommation actuelle (électricité et chauffage) (kWh/an)",{"$f":"C11+F3","v":0}]
[null,null,null,null,"Consommation estimée (combustible) (kWh/an)",{"$f":"C14*C7","v":0}]
[null,"Efficacité",0.75,null,"Consommation estimée (électricité et combustible) (kWh/an)",{"$f":"C15+F5","v":0}]
[null,"kWh/litre",7.03,null,"Coût estimé ($/m2)",{"$f":"C16/C9","v":0.12361333333333334}]
[null,"Réduction des GES",1544,null,"Économies annuelles de combustible (litres/an)",{"$f":"C10-C14","v":0}]
[null,"Superficie (m2)",1200,null,"Économies annuelles en argent ($/an)",{"$f":"C12-C16","v":-148.33600000000001}]
[null,"Consommation actuelle de combustible (litres)",{"$f":"hq_gabarit_actuel_consommation_combustible","v":0},null,"Économies annuelles d'énergie (%)",{"$f":"1-(F6/F4)","v":{"$error":"#DIV/0!"}}]
[null,"Consommation actuelle d'électricité (kWh)",{"$f":"hq_gabarit_actuel_consommation_kwh","v":0},null,"Réduction des GES (kg CO2 eq/an)",{"$f":"C8*F8/1000","v":0}]
[null,"Facture actuelle d'électricité et de chauffage ($/an)",{"$f":"hq_gabarit_actuel_totale","v":0},null,"Période de retour sur investissement (an)",{"$f":"C3/(F9-C4)","v":-9.7118758371636975}]
[]
[null,"Consommation anticipée de combustible (litres)",{"$f":"hq_gabarit_dt_consommation_crete_combustible+hq_gabarit_dt_consommation_seuil_combustible","v":0}]
[null,"Consommation anticipée d'électricité (kWh)",{"$f":"hq_gabarit_dt_consommation_kwh","v":0}]
[null,"Facture estimée (électricité et chauffage) ($/an)",{"$f":"hq_gabarit_dt_totale","v":148.33600000000001}]

{"sheet":"Tarif électrique","index":52,"n_rows":17,"n_cols":3,"rows_kept":17,"cut":false,"hidden":true,"merged":[[1,1,1,2]]}
[]
[null,"Tarif électrique mensuel"]
[]
[null,"Mois","Tarif électrique ($/kWh)"]
[null,"Janvier",0]
[null,"Février",0]
[null,"Mars",0]
[null,"Avril",0]
[null,"Mai",0]
[null,"Juin",0]
[null,"Juillet",0]
[null,"Août",0]
[null,"Septembre",0]
[null,"Octobre",0]
[null,"Novembre",0]
[null,"Décembre",0]
[null,"Tarif annuel moyen",{"$f":"IF(AVERAGE(C5:C16)=0,\"\",\"\")","v":""}]

{"sheet":"Graphique de la consommation","index":53,"n_rows":0,"n_cols":0,"rows_kept":0,"cut":false,"hidden":false,"merged":[]}

{"sheet":"Tableaux 1.1","index":54,"n_rows":15,"n_cols":11,"rows_kept":15,"cut":false,"hidden":false,"merged":[[14,1,14,3],[2,1,2,10],[12,1,12,10],[4,2,4,3],[4,4,4,6],[4,7,5,7],[4,8,5,8],[4,9,5,9],[4,10,5,10]]}
[]
[]
[null,"Tableau 1.1 - Caractéristiques des systèmes de génération de chaleur"]
[]
[null,null,"Production",null,"Superficie ",null,null,"Rendement du système","Maintenance du système","Coûts d’investissements","Coûts d’opération"]
[null,null,"Saisonnière","Annuelle","< 1000 m2 ","1001 à 2500 m2","2501 m2 à 1 hectare"]
[null,"Mazout #2","x","x","x","x",null,"70 à 85 %","Faible","Moyens","Moyens"]
[null,"Gaz naturel","x","x","x","x","x","75 à 95 %","Très faible","Moyens","Moyens"]
[null,"Propane","x","x","x","x","x","80 à 92 %","Très faible","Moyens","Moyens"]
[null,"Électricité","x","x","x","x",null,"99 %","Très faible","Moyens","Élevés"]
[null,"Biomasse",null,"x",null,null,"x","60 à 85 %","Complexe","Élevés","Faibles"]
[]
[null,"Les systèmes de chauffage - Fiche d'information #1"]
[]
[null,"Revenir aux mesures d'efficacité"]

{"sheet":"Tableau 1.2","index":55,"n_rows":15,"n_cols":6,"rows_kept":15,"cut":false,"hidden":false,"merged":[[14,1,14,3],[1,1,1,6],[12,1,12,2],[4,5,4,6],[5,5,5,6],[6,5,6,6],[7,5,7,6],[8,5,8,6],[3,2,3,4],[3,5,3,6],[9,5,10,6]]}
[]
[null,"Tableau 1.2 - Valeur énergétique et émissions de GES de différentes sources énergétiques"]
[]
[null,null,"Valeur énergétique",null,null,"Émissions de GES"]
[null,null,"Unité","MJ/unité","kWh/unité","Facteur d’équivalence (g CO2 eq/unité)"]
[null,"Mazout no.2","L","38,5","10,7","2734,7"]
[null,"Gaz naturel","m3","37,9","10,5","1889,3"]
[null,"Propane","L","25,3","7,0","1544,0"]
[null,"Électricité","kWh","3,6","1,0","0,0"]
[null,"Biomasse (granules – 7% humidité)","kg","19,8","5,5","1834,97"]
[null,"Biomasse (copeaux- 30% humidité)","kg","11,9","3,3"]
[]
[null,"Le chauffage au gaz"]
[]
[null,"Revenir aux mesures d'efficacité"]

{"sheet":"Tableau 1.3","index":56,"n_rows":12,"n_cols":4,"rows_kept":12,"cut":false,"hidden":false,"merged":[[1,1,1,3],[11,1,11,3]]}
[]
[null,"Tableau 1.3 - Coûts associés à l'acquisition, l'exploitation et l'entretien d'un système à la biomasse"]
[]
[null,"Poste","Mazout","Copeaux de bois"]
[null,"Coûts d'investissement",21000,80000]
[null,"Exploitation et entretien annuel",1000,8000]
[null,"Combustible annuel",18000,1700]
[]
[null,"Notes:"]
[null,"Pour un système de 150 kW qui chauffe un bâtiment de 800 m2"]
[]
[null,"Revenir aux mesures d'efficacité"]

{"sheet":"Tableau 1.4","index":57,"n_rows":29,"n_cols":4,"rows_kept":29,"cut":false,"hidden":false,"merged":[[1,1,1,3],[26,1,26,2],[28,1,28,3]]}
[]
[null,"Tableau 1.4 - Rendements saisonniers de différentes technologies de chauffage (gaz naturel, propane, mazout, électricité)"]
[]
[null,"Source énergétique","Technologie","Rendement saisonnier (AFUE) %"]
[null,"Gaz naturel","Générateur d'air chaud vétuste et chaudière datant d'environ 1970","60,0"]
[null,"Gaz naturel","Générateur d'air chaud datant d'environ 1985","78 à 84"]
[null,"Gaz naturel","Chaudière datant d'environ 1985","80 à 88"]
[null,"Gaz naturel","Générateur d'air chaud à condensation","90 à 97"]
[null,"Gaz naturel","Chaudière à condensation","89 à 99"]
[null,"Propane","Générateur d'air chaud et chaudière ordinaire",62]
[null,"Propane","Générateur d'air chaud à efficacité normale","79 à 85"]
[null,"Propane","Chaudière à efficacité normale","82 à 90"]
[null,"Propane","Générateur d'air chaud à condensation","88 à 95"]
[null,"Propane","Chaudière à condensation","87 à 97"]
[null,"Mazout","Brûleur à tête de fonte (ancien modèle de générateur d'air chaud)",60]
[null,"Mazout","Brûleur de conversion à tête de la flamme","70 à78"]
[null,"Mazout","Brûleur de conversion à pression statique élevée","74 à 82"]
[null,"Mazout","Modèle ordinaire neuf","78 à 86"]
[null,"Mazout","Modèle à efficacité normale","83 à 89"]
[null,"Mazout","Système intégré de chauffage des pièces et de l'eau à efficacité normale","83 à 89"]
[null,"Électricité","Plinthes électriques",100]
[null,"Électricité","Générateur d'air chaud ou chaudière électrique",100]
[null,"Électricité","Thermopompe à air","CP de 1,7"]
[null,"Électricité","Pompe géothermique","CP de 2,6"]
[]
[null,"tiré de : Ministère de Ressources naturelles, 2012"]
[null,"Le chauffage au gaz"]
[]
[null,"Revenir aux mesures d'efficacité"]

{"sheet":"Tableau 1.5","index":58,"n_rows":13,"n_cols":5,"rows_kept":13,"cut":false,"hidden":false,"merged":[[4,1,7,1],[10,1,10,2],[1,1,1,4],[12,1,12,3]]}
[]
[null,"Tableau 1.5 - Rendements thermiques et saisonniers de systèmes de chauffage à la biomasse "]
[]
[null,null,"Technologie","Rendement thermique (%)","Rendement saisonnier (AFUE) %"]
[null,"Biomasse (bois)","Moyenne","70 à 80%","Diminution du rendement "]
[null,null,"Systèmes performants","80 à 85%","thermique de  2 à 20%"]
[null,null,"Avec économiseur de cheminée","85 à 90%"]
[null,null,"Avec condensateur","Plus de 90%"]
[]
[null,"tiré de : Ministère des Ressources naturelles, 2012"]
[null,"Le chauffage au gaz"]
[]
[null,"Revenir aux mesures d'efficacité"]

{"sheet":"Tableau 1.6","index":59,"n_rows":16,"n_cols":3,"rows_kept":16,"cut":false,"hidden":false,"merged":[[1,1,1,2],[13,1,13,2],[15,1,15,3]]}
[]
[null,"Tableau 1.6 Coûts des investissements pour une conversion à la biomasse "]
[]
[null,"Poste budgétaire","Coûts"]
[null,"Entrepôt pour les copeaux",29600]
[null,"Système d'alimentation",35741]
[null,"Réservoir d'hydroaccumulation de 100 000 litres",300600]
[null,"Chaudière de 1 100 kW à la biomasse + bâtiment",300600]
[null,"Intégration de différents systèmes",22000]
[null,"Services professionnels",25799]
[]
[null,"Les Producteurs en serres du Québec"]
[]
[null,"L'évaluation économique d'un projet de chauffage à la biomasse"]
[]
[null,"Revenir aux mesures d'efficacité"]

{"sheet":"Tableau 1.7","index":60,"n_rows":10,"n_cols":5,"rows_kept":10,"cut":false,"hidden":false,"merged":[[1,1,1,4],[9,1,9,3]]}
[]
[null,"Tableau 1.7 - Exemple de coûts d'entretien de systèmes de chauffage"]
[]
[null,"Mazout ($)","Mazout ($/m2)","Copeaux ($)","Copeaux ($/m2)"]
[null,{"$f":"'Tableau 1.3'!C6","v":1000},{"$f":"B5/800","v":1.25},{"$f":"'Tableau 1.3'!D6","v":8000},{"$f":"D5/800","v":10}]
[]
[null,"Notes:"]
[null," 1. Pour un système de 150 kW qui chauffe un bâtiment de 800 m2"]
[]
[null,"Revenir aux mesures d'efficacité"]

{"sheet":"Tableau 1.8","index":61,"n_rows":13,"n_cols":7,"rows_kept":13,"cut":false,"hidden":false,"merged":[[1,1,2,6],[12,1,12,3]]}
[]
[null,"Tableau 1.8 - Historique des coûts moyens annuels ($/unité) des différentes sources d'énergie de 2012 à 2016"]
[]
[]
[null,"Source d'énergie",2012,2013,2014,2015,2016]
[null,"Électricité (kWh)",7.51E-2,7.7799999999999994E-2,8.2600000000000007E-2,8.5999999999999993E-2,8.6800000000000002E-2]
[null,"Gaz propane (L)",0.58760000000000001,0.48130000000000001,0.53,0.42930000000000001,0.4294]
[null,"Gaz naturel (m3)",0.45950000000000002,0.46839999999999998,0.53159999999999996,0.47220000000000001,0.44529999999999997]
[null,"Mazout léger (L)",1.0134000000000001,1.0325,1.0831999999999999,0.9355,0.74580000000000002]
[]
[null,"Adapté de Énergie , coûts des sources d'énegie (Agdex 760/821)"]
[]
[null,"Revenir aux mesures d'efficacité"]

{"sheet":"Tableau 1.9","index":62,"n_rows":21,"n_cols":5,"rows_kept":21,"cut":false,"hidden":false,"merged":[[2,1,2,4],[20,1,20,3]]}
[]
[]
[null,"Tableau 1.9 - Coûts d'achat d'un système de chauffage à l'air chaud pour une serre individuelle"]
[]
[null,"Huile","Huile","Gaz naturel ou propane","Gaz naturel ou propane"]
[null,"$/pi2","$/m2","$/pi2","$/m2"]
[null,5.01,53.93,3.62,38.97]
[]
[null,"Tiré de Serres - Coûts de construction 2017 (Agdex 731/290)"]
[]
[null,"Notes:"]
[null," -N.B. Ajoutez un facteur de sécurité de 10% pour l'usure des fournaises"]
[null," -Fournaises comprenant le système de distribustion de l'air chaud"]
[null," -La puissance de chauffage requise varie selon la région, la culture, le microclimat, l'isolation et le revêtement des serres."]
[null," -Pour une production à longueur d'année (température intérieure-température extérieure = 56°C) dans des serres en double polyéthylène"]
[]
[null,"Serre individuelle = 1 290 btu/m2 (120 btu/pi2 : 378 W/h/m2) de serre"]
[null,"Serre jumelée = 1 075 btu/m2 (100 btu/pi2 : 315 W/h/m2) de serre"]
[]
[]
[null,"Revenir aux mesures d'efficacité"]

{"sheet":"Tableau 1.10","index":63,"n_rows":10,"n_cols":5,"rows_kept":10,"cut":false,"hidden":false,"merged":[[1,1,1,4],[9,1,9,3]]}
[]
[null,"Tableau 1.10 - Coûts d'achat d'un système de chauffage à l'air chaud pour des serres jumelées"]
[]
[null,"Huile","Huile","Gaz naturel ou propane","Gaz naturel ou propane"]
[null,"$/pi2","$/m2","$/pi2","$/m2"]
[null,4.5,48.44,2.92,31.43]
[]
[null,"Tiré de Serres - Coûts de construction 2017 (Agdex 731/290)"]
[]
[null,"Revenir aux mesures d'efficacité"]

{"sheet":"Tableau 1.11","index":64,"n_rows":12,"n_cols":5,"rows_kept":12,"cut":false,"hidden":false,"merged":[[1,1,1,4],[11,1,11,3]]}
[]
[null,"Tableau 1.11 - Coût d'acquisistion d'un système de chauffage à la biomasse pour des serres individuelles et jumelées"]
[]
[null,"Individuelles","Individuelles","Jumelées","Jumelées"]
[null,"$/pi2","$/m2","$/pi2","$/m2"]
[null,13.2,142.08000000000001,13.2,142.08000000000001]
[]
[null,"Tiré de Serre - Coûts de construction 2017 (Agdex 731/290)"]
[null,"Notes:"]
[null," -Système de chauffage de type biomasse avec réseau de distribution à l'eau chaude pour 40 000 pi2 de serres jumelées"]
[]
[null,"Revenir aux mesures d'efficacité"]

{"sheet":"Tableau 1.12","index":65,"n_rows":18,"n_cols":4,"rows_kept":18,"cut":false,"hidden":false,"merged":[[1,1,1,3],[17,1,17,3]]}
[]
[null,"Tableau 1.12 - Exemple de coûts d'acquisition d'un système de chauffage à la biomasse aux granules et d'un réservoir d'hydroaccumulation"]
[]
[null,"Poste","Montant ($)","Montant ($/m2)"]
[null,"Chaudière Pyrotec 950",376792,{"$f":"C5/6000","v":62.798666666666669}]
[null,"Installation de la chaudière",82000,13.666666666666666]
[null,"Réservoir pour hydroaccumulation (usagé)",40000,6.666666666666667]
[null,"Installation du réservoir d'hydroaccumulation",59098,9.8496666666666659]
[null,"Silo pour les granules",10412,1.7353333333333334]
[null,"Préparation du terrain, construction d'un abris",50000,8.3333333333333339]
[null,"Total",{"$f":"SUM(C5:C10)","v":618302},103.05033333333333]
[]
[null,"Notes:"]
[null,"1.Réservoir d'hydroaccumulation d'une capacité de 9000 litres"]
[null,"2.Chaudière d'une capacité de 1000 kW (3.5 MMBTU/h)"]
[null,"3. Superficie de serre chauffée: 6000 m2"]
[]
[null,"Revenir aux mesures d'efficacité"]

{"sheet":"Tableau 1.13","index":66,"n_rows":15,"n_cols":8,"rows_kept":15,"cut":false,"hidden":false,"merged":[[1,1,1,7],[14,1,14,2]]}
[]
[null,"Tableau 1.13 - Coûts pour les copeaux, les granules et la biomasse agricole"]
[]
[null,null,"Copeaux de bois 30% humidité","Copeaux de bois 30% humidité","Granules de bois à 6% humidité","Granules de bois à 6% humidité","Biomasse agricole 10% humidité","Biomasse agricole 10% humidité"]
[null,"Prix unité","130$/tms","0.13$/kg","235$/tms","0.23$/kg ","100$/tms","0.1$/kg"]
[null,"Prix GJ","8.11$/GJ","0.00811$/MJ","14.32$/GJ","0.01432$/MJ","7.41$/GJ","0.00741$/MJ"]
[]
[null,"Conférence de Louis Beauchemin agr. (Coop Fédérée)"]
[]
[null,"Notes:"]
[null,"tmh=tonne sur base de matière humide"]
[null,"tms=tonne sur base de matière sèche"]
[null,"Les valeurs exprimées en Gigajoules tiennent compte de l'efficacité du système de génération de chaleur"]
[]
[null,"Revenir aux mesures d'efficacité"]

{"sheet":"Tableau 1.14","index":67,"n_rows":15,"n_cols":7,"rows_kept":15,"cut":false,"hidden":false,"merged":[[14,1,14,2],[1,1,1,6]]}
[]
[null,"Tableau 1.14 - Comparaison du potentiel de réduction des coûts de chauffage entre des granules à 6% d'humidité et le propane, le mazout léger et l'électrcité"]
[]
[null,null,"Propane","Mazout léger","Électricité","Granules","Granules"]
[null,"Prix unité","0.40 $/litre","0.85 $/litre","0.079 $/kwh","235 $/tms","0.23$/kg"]
[null,"Prix GJ","18.59 $/GJ","26.92 $/GJ","21.62 $/GJ","14.32 $/GJ","0.01432$/MJ"]
[null,"Potentiel de réduction",0.23,0.46800000000000003,0.33800000000000002]
[]
[null,"Conférence de Louis Beauchemin agr., coordonnateur de la filière biomasse pour la Coop Fédérée"]
[]
[null,"Notes:"]
[null,"Les valeurs exprimées en Gigajoules tiennent compte de l'efficacité du système de génération de chaleur"]
[null,"tms=tonne sur base de matière humide"]
[]
[null,"Revenir aux mesures d'efficacité"]

{"sheet":"Tableau 1.15","index":68,"n_rows":15,"n_cols":8,"rows_kept":15,"cut":false,"hidden":false,"merged":[[14,1,14,2],[1,1,1,7]]}
[]
[null,"Tableau 1.15 - Comparaison du potentiel de réduction des coûts de chauffage entre des copeaux de bois à 30% d'humidité et le propane, le mazout léger le gaz naturel et l'électrcité"]
[]
[null,null,"Propane","Mazout léger","Gaz naturel","Électricité","Copeaux","Copeaux"]
[null,"Prix unité","0.40 $/litre","0.85 $/litre","0.40 $/m3","0.079 $/kwh","0.13$/kg","130 $/tms"]
[null,"Prix GJ","18.59 $/GJ","26.92 $/GJ","12.41 $/GJ","21.62 $/GJ","0.00811$/MJ","8.11 $/GJ"]
[null,"Potentiel de réduction",0.56399999999999995,0.69899999999999995,0.34599999999999997,0.625]
[]
[null,"Conférence de Louis Beauchemin agr., coordonnateur de la filière biomasse pour la Coop Fédérée"]
[]
[null,"Notes:"]
[null,"Les valeurs exprimées en Gigajoules tiennent compte de l'efficacité du système de génération de chaleur"]
[null,"tms=tonne sur base de matière sèche"]
[]
[null,"Revenir aux mesures d'efficacité"]

{"sheet":"Tableau 2.1","index":69,"n_rows":16,"n_cols":5,"rows_kept":16,"cut":false,"hidden":false,"merged":[[13,1,13,11],[1,1,1,4],[15,1,15,3]]}
[]
[null,"Tableau 2.1 - Données énergétiques concernant l'utilisation d'écrans thermiques"]
[]
[null,null,"Source 1","Source 2","Source 3"]
[null,"Taille de la serre"]
[null,"Période d'utilisation","Annuelle","Mi-février à mi-novembre","Mi-février à mi-juin"]
[null,"Coûts d'investissement initiaux ($/m2)",22.31,null,22.31]
[null,"Coûts d'entretien ($/m2/an)",0.11,5.5E-2,5.5E-2]
[null,"Économies brutes (%)",28]
[null,"Économie (m3 de gaz naturel / m2)",22,11.6,6.4]
[null,"Période de retour sur investissement (ans)",2.2999999999999998,4.4000000000000004,7.7]
[]
[null,"Cadotte G. (2012)"]
[null,"Cadotte G. (2012) Économies d'énergie liées à l'utilisation d'écrans thermiques amovibles dans les serres et effets du vent sur le besoin de chauffe"]
[]
[null,"Revenir aux mesures d'efficacité"]

{"sheet":"Tableau 2.2","index":70,"n_rows":16,"n_cols":3,"rows_kept":16,"cut":false,"hidden":false,"merged":[[1,1,1,2],[15,1,15,3]]}
[]
[null,"Tableau 2.2 - Scénario de référence"]
[]
[null,null,"Scénario de référence"]
[null,"Type d'écran","Comparable au XLS 16 (Ludvig Swensson)"]
[null,"Superficie du toit par rapport à la superficie extérieure (Ssr)",0.55000000000000004]
[null,"Économies théoriques - utilisation totale  (ETsr)",0.66100000000000003]
[null,"Économies réelles obtenues (ERsr)",0.22800000000000001]
[]
[]
[]
[]
[]
[]
[]
[null,"Revenir aux mesures d'efficacité"]

{"sheet":"Tableau 2.4","index":71,"n_rows":16,"n_cols":4,"rows_kept":16,"cut":false,"hidden":false,"merged":[[2,1,2,3],[15,1,15,3]]}
[]
[]
[null,"Tableau 2.4 - Coûts des écrans thermiques et de certaines composantes"]
[]
[null,"Composantes","Prix approximatif ($CAN/pi2)","Prix approximatif ($CAN/m2)"]
[null,"Base : flat, sliding, cable-driven system, installed","1.42$ à 1.71$","15.28$ à 18.41$"]
[null,"Slope-flat-slope shape*","+12% à 15%","+12% à 15%"]
[null,"Suspended (hanging)*","+10% à 12%","+10% à 12%"]
[null,"Push-pull (rack and pinion) drive*","+10%","+10%"]
[null,"Blackout system*",0.23,2.48]
[null,"Replacement of cloth and wires","±2/3 du coût original","±2/3 du coût original"]
[null,"Flame retardant screens (Ludvig Svensson)*",0.23,2.48]
[]
[null,"Les écrans thermiques - Choix, impact sur l'énergie consommée, bon fonctionnement"]
[]
[null,"Revenir aux mesures d'efficacité"]

{"sheet":"Tableau 2.3","index":72,"n_rows":8,"n_cols":5,"rows_kept":8,"cut":false,"hidden":false,"merged":[[1,1,1,5],[7,1,7,3],[4,4,4,5],[5,4,5,5],[3,4,3,5],[3,1,3,3]]}
[]
[null,"Tableau 2.3 - Facteurs d'utilisation des écrans thermiques"]
[]
[null,"Période",null,null,"Facteur d'utilisation"]
[null,"Mi-février à mi-novembre",null,null,0.52700000000000002]
[null,"Mi-février à mi-juin",null,null,0.29099999999999998]
[]
[null,"Revenir aux mesures d'efficacité"]

{"sheet":"Tableau 2.5","index":73,"n_rows":8,"n_cols":3,"rows_kept":8,"cut":false,"hidden":false,"merged":[[1,1,1,2],[7,1,7,3]]}
[]
[null,"Tableau 2.5 - Prix d'écrans thermiques selon certains fournisseurs"]
[]
[null,"Fournisseurs","Prix ($/pi2)"]
[null,"Horticulture Distribution inc","2.35 à 5.10 $"]
[null,"Les serres Guy Tessier","3.50 à 5.50 $"]
[]
[null,"Revenir aux mesures d'efficacité"]

{"sheet":"Tableau 2.6","index":74,"n_rows":11,"n_cols":20,"rows_kept":11,"cut":false,"hidden":false,"merged":[[3,12,3,13],[4,12,4,13],[2,14,2,15],[3,14,3,15],[4,14,4,15],[1,5,1,6],[10,1,10,3],[6,17,6,23],[0,1,0,10],[1,7,1,8],[3,17,3,18],[3,19,3,20],[4,17,4,18],[4,19,4,20],[1,9,1,10],[0,12,0,15],[6,12,6,15],[0,17,0,20],[2,17,2,18],[2,19,2,20],[2,12,2,13]]}
[null,"Tableau 2.6 - Exemples de période de retour sur investissement",null,null,null,null,null,null,null,null,null,null,"Coûts d'installation d'un écran thermique selon le type de serre",null,null,null,null,"Économies potentielles selon la durée de production"]
[]
[null,"Type de serre","Taille (m2)","Investissement ($/m2)","Investissement ($)","Économies annuelles ($/m2)","Économies annuelles ($)","Économies saisonnières ($/m2)","Économies saisonnières ($)","PRI annuelle"," PRI saisonnière",null,"Type de serre",null,"Coût ($/m2)",null,null,"Production",null,"Coût ($/m2)"]
[null,"Individuelle",2000,{"$f":"$O$5","v":31},{"$f":"C4*D4","v":62000},{"$f":"$T$4","v":11.54},{"$f":"F4*C4","v":23080},{"$f":"$T$5","v":3.85},{"$f":"H4*C4","v":7700},{"$f":"E4/G4","v":2.6863084922010398},{"$f":"E4/I4","v":8.0519480519480524},null,"Individuelle",null,22.5,null,null,"Annuelle",null,11.54]
[null,"Individuelle",5000,{"$f":"$O$5","v":31},155000,11.54,57699.999999999993,3.85,19250,2.6863084922010403,8.0519480519480524,null,"Jumelée",null,31,null,null,"Saisonnière",null,3.85]
[null,"Individuelle",10000,{"$f":"$O$5","v":31},310000,11.54,115399.99999999999,3.85,38500,2.6863084922010403,8.0519480519480524]
[null,"Jumelée",2000,{"$f":"$O$4","v":22.5},45000,11.54,23080,3.85,7700,1.949740034662045,5.8441558441558445,null,"L'efficacité énergétique dans le secteur serricole",null,null,null,null,"Les économies d'énergie, partie 1 - sachez isoler (janvier 2004)"]
[null,"Jumelée",5000,{"$f":"$O$4","v":22.5},112500,11.54,57699.999999999993,3.85,19250,1.9497400346620453,5.8441558441558445]
[null,"Jumelée",10000,{"$f":"$O$4","v":22.5},225000,11.54,115399.99999999999,3.85,38500,1.9497400346620453,5.8441558441558445]
[]
[null,"Revenir aux mesures d'efficacité"]

{"sheet":"Tableau 3.1","index":75,"n_rows":17,"n_cols":7,"rows_kept":17,"cut":false,"hidden":false,"merged":[[1,1,1,6],[16,1,16,3]]}
[]
[null,"Tableau 3.1 - Principales caractéristiques des matériaux de recouvrement de serre"]
[]
[null,"RECOUVREMENT DE SERRE","Verre simple","Verre double","Polyéthylèene simple","Polyéthylène  double","Polytéthylène double avec IR"]
[null,"Transmission des radiations dans le PAR (%)","88-93","75-80","Maximum de 87","Environ 75","Environ 75"]
[null,"Coefficient de déperditions thermiques (BTU/ft.oF.hr)",1.1000000000000001,0.7,1.2,0.7,0.5]
[null,"% de transmission thermique",3,"<3",50,50,"<20"]
[null,"Indice d’inflammabilité","Nul","Nul","Moyen-élevé","Moyen-élevé","Moyen-élevé"]
[null,"Résistances aux UV, à la chaleur et températures extrêmes","Élevé","Élevé","Bas","Bas","Bas"]
[null,"Coûts d’investissements","Élevés","Élevés","Faibles à moyens","Faibles à moyens","Faibles à moyens"]
[null,"Résistance aux charges","Élevé","Élevé","Faible","Faible","Faible"]
[null,"Durée de vie (ans)",25,25,"2 à 4","2 à 4","2 à 4"]
[]
[null,"Bartok, J. et Aldrich, A. (1994) Greenhouse Engineering. Ithaca, NY : Northeast Regional Agricultural Engineering Service."]
[null,"Reducing energy consumption"]
[]
[null,"Revenir aux mesures d'efficacité"]

{"sheet":"Tableau 3.2","index":76,"n_rows":11,"n_cols":5,"rows_kept":11,"cut":false,"hidden":false,"merged":[[10,1,10,3],[1,1,1,6],[3,1,3,3],[4,1,4,3],[5,1,5,3],[6,1,6,3],[3,4,3,6],[4,4,4,6],[5,4,5,6],[6,4,6,6]]}
[]
[null,"Tableau 3.2 - Consommation d'énergie de différents types de recouvrement de serre "]
[]
[null,"Type de recouvrement",null,null,"Consommation d'énergie (kWh/m2/an)"]
[null,"Polyéthylène simple paroi",null,null,"275-400"]
[null,"Polyéthylène double paroi",null,null,"150-250"]
[null,"Verre",null,null,"225-350"]
[]
[null,"Centre technique interprofessionnel des fruits et des légumes (CTIFL)"]
[]
[null,"Revenir aux mesures d'efficacité"]

{"sheet":"Tableau 3.3","index":77,"n_rows":15,"n_cols":7,"rows_kept":15,"cut":false,"hidden":false,"merged":[[1,1,1,6],[14,1,14,3]]}
[]
[null,"Tableau 3.3 - Coûts des recouvrements (source: Les SerresHarnois)"]
[]
[null,"Type de serre","Largeur (pieds)","Longueur (pieds)","Investissement ($)","$/pi linéaire","$/pi2"]
[null,"Individuelles",28,105,370,0.12]
[null,"Individuelles",35,100,445,0.13]
[null,"Jumelées",32,100,282,null,0.09]
[null,"Jumelées",25,100,220,null,0.09]
[]
[null,"Les Serres Harnois"]
[]
[null,"Notes:"]
[null,"Le prix du polythène double soufflé est 2 fois le prix du simple"]
[]
[null,"Revenir aux mesures d'efficacité"]

{"sheet":"Tableau 3.4","index":78,"n_rows":14,"n_cols":9,"rows_kept":14,"cut":false,"hidden":false,"merged":[[1,1,1,8],[13,1,13,3]]}
[]
[null,"Tableau 3.4 - Coûts des recouvrements (source: Groupe Horticole Ledoux)"]
[]
[null,"Type de recouvrement","Largeur (pieds)","Longueur (pieds)","Autres caractéristiques","Prix ($)","Si double épaisseur, prix ($)","$/pi2","$/m2"]
[null,"Poly K-50 clear 6 mil ",20,105,"Installé à l’extérieur, lumière diffuse, additif antipoussière",282.47000000000003,null,{"$f":"F5/(C5*D5)","v":0.13450952380952383},{"$f":"H5*10.7639","v":1.4478470633333336}]
[null,"Poly K-50 IR/AC 6 mil",20,105,"À l’intérieur, formule anticondensation, additif IR, lumière diffuse",282.47000000000003,null,0.13450952380952383,1.4478470633333336]
[null,"Poly Hyticlear 7.2 mil",24,105,"Installé à l’extérieur, lumière diffuse, additif antipoussière, climat nordique",346.4,656.87,0.13746031746031745,1.4796091111111109]
[null,"Poly Hytilux 7.2 mil",24,105,"Installé à l’intérieur, formule anticondensation, additif IR, lumière diffuse, climat nordique",403.92,null,0.16028571428571428,1.7252993999999999]
[null,"Polyaclear 7.2 mil",32,105,"Installé à l’extérieur, lumière diffuse, antipoussière, super-résistant",416.25,null,0.12388392857142858,1.3334742187499999]
[null,"Poly K-50 IR/AC 6 mil",36,105,"À l’intérieur, formule anticondensation, additif IR, lumière diffuse",532.80999999999995,null,0.14095502645502644,1.517225809259259]
[]
[null,"Boutique en ligne (Groupe Horticole Ledoux)"]
[]
[null,"Revenir aux mesures d'efficacité"]

{"sheet":"Tableau 4.1","index":79,"n_rows":18,"n_cols":5,"rows_kept":18,"cut":false,"hidden":false,"merged":[[15,1,15,2],[1,1,1,4],[17,1,17,3]]}
[]
[null,"Tableau 4.1 - Principales caractériques de systèmes de contrôle du climat"]
[]
[null,"SYSTÈMES DE CONTRÔLE DU CLIMAT","Simple","Intermédiaire","Intégrée"]
[null,"Exemples","Alarmes, appareils de mesure, minuterie, thermostat","Envirotrol TC-7, Harnois iGrow1400, Link4","Argus, Damatex, Hoogendoorn, Priva"]
[null,"Échelle de prix","<500 $","500 $ à 4000 $",">10 000 $"]
[null,"Historique de données","Non","Limitée","Oui"]
[null,"Capacité de programmation élaborée","Non","Limitée","Oui"]
[null,"Nombre d’entrées pour des appareils de prise de données et des capteurs",1,"5 à 12","Élevé"]
[null,"Nombre de sorties pour contrôler les équipements","1 à 2","5 à 12","Élevé"]
[null,"Nombre de zones pouvant être gérées",1,"1 à 6","2 ou plus"]
[null,"Suivi et contrôle à distance","Non","Suivi seulement","Oui"]
[null,"Responsable de l’installation","Producteur","Fournisseur/Producteur","Fournisseur"]
[]
[]
[null,"Fiche d'information #3 - Système de contrôle du climat"]
[]
[null,"Revenir aux mesures d'efficacité"]

{"sheet":"Tableau 4.2","index":80,"n_rows":11,"n_cols":7,"rows_kept":11,"cut":false,"hidden":false,"merged":[[1,1,1,6],[10,1,10,3]]}
[]
[null,"Tableau 4.2 - Résultats obtenus suite à l'implantation des systèmes de gestion du climat"]
[]
[null,"Entreprise","Superficie (m2)","Caractéristique du système","Coût de réalisation ($)","Économies potentielles ($/an)","PRI"]
[null,"Ferme 1",770,"Contrôle manuel, par thermostat électronique",16091,3657,"4.4 ans"]
[null,"Ferme 2",1470,"Système de contrôle intermédiaire pour harmoniser les contrôles",4500,1052,"4.3 ans"]
[null,"Ferme 3",1435,"Système ordiné pour contrôler et hamorniser diff. systèmes",9500,1158,"8.2 ans"]
[null,"Ferme 4",3050,"Système de contrôle ordiné",30000,5035,"6.0 ans"]
[null,"Ferme 5",1060,"Système de contrôle évolué/intermédiaire",1000,477,"2.1 ans"]
[]
[null,"Revenir aux mesures d'efficacité"]

{"sheet":"Tableau 4.3","index":81,"n_rows":12,"n_cols":5,"rows_kept":12,"cut":false,"hidden":false,"merged":[[1,1,1,4],[11,1,11,3]]}
[]
[null,"Tableau 4.3 - Coût d'acquisistion d'un système de contrôle informatisé"]
[]
[null,"Individuelle",{"$f":"B4","v":"Individuelle"},"Jumelée",{"$f":"D4","v":"Jumelée"}]
[null,"$/pi2","$/m2","$/pi2","$/m2"]
[null,1.1000000000000001,11.84,1.1000000000000001,11.84]
[]
[null,"Tiré de Serre - Coûts de construction 2017 (Agdex 731/290)"]
[null,"Notes:"]
[null," -Pour un système de contrôle informatisé de l'environnement pour 40 000 pi2 de serre"]
[]
[null,"Revenir aux mesures d'efficacité"]

{"sheet":"Tableau 5.1","index":82,"n_rows":12,"n_cols":4,"rows_kept":12,"cut":false,"hidden":false,"merged":[[11,1,11,3],[1,1,1,6],[3,1,3,2],[4,1,5,2],[6,1,7,2],[4,3,4,6],[9,1,9,6],[5,3,5,6],[6,3,6,6],[7,3,7,6],[3,3,3,6]]}
[]
[null,"Tableau 5.1 - Configuration de l’isolant en fonction de l’isolation de la serre"]
[]
[null,"Orientation de la serre",null,"Configuration"]
[null,"Nord-Sud",null,"Isolation du mur du côté nord : jusqu’à la gouttière ou complète"]
[null,null,null,"Isolation des côtés est et ouest : jusqu’à 4 à 6 pieds"]
[null,"Est-Ouest",null,"Isolation du mur du côté nord : jusqu’à 6 à 10 pieds"]
[null,null,null,"Isolation des côtés est et ouest : jusqu’à 4 à 6 pieds"]
[]
[null,"RAP Cultures en serres (Janvier 2004) - Partie 1: Sachez isoler"]
[]
[null,"Revenir aux mesures d'efficacité"]

{"sheet":"Tableau 5.2","index":83,"n_rows":9,"n_cols":4,"rows_kept":9,"cut":false,"hidden":false,"merged":[[8,1,8,3],[3,3,3,6],[4,3,4,6],[1,1,1,6],[6,1,6,6],[3,1,3,2],[4,1,4,2]]}
[]
[null,"Tableau 5.2 - Isolation du périmètre de la serre"]
[]
[null,"Zone à isoler",null,"Méthode"]
[null,"Périmètre extérieur",null,"Creuser 2 pieds de profondeur dans le sol et mettre un isolant avec une protection contre les chocs mécaniques à six pouces dans le sol du côté intérieur de la serre"]
[]
[null,"RAP Cultures en serres (Janvier 2004) - Partie 1: Sachez isoler"]
[]
[null,"Revenir aux mesures d'efficacité"]

{"sheet":"Tableau 5.3","index":84,"n_rows":12,"n_cols":3,"rows_kept":12,"cut":false,"hidden":false,"merged":[[1,1,1,2],[9,1,9,4],[11,1,11,3]]}
[]
[null,"Tableau 5.3 - Économies d'énergie selon la méthode d'isolation des parois de serre"]
[]
[null,"Orientation de la serre","Économies d’énergie reliées à la chauffe (%)"]
[null,"Isolation des fondations","3 à 6"]
[null,"Isolation totale des murs","5 à 10"]
[null,"Isolation partielle des murs","2 à 6"]
[]
[null,"Source: Conseil régional du centre"]
[null,"Conseil régional du centre: le défi de l'énergie dans les serres : guide pour les producteurs"]
[]
[null,"Revenir aux mesures d'efficacité"]

{"sheet":"Tableau 5.4","index":85,"n_rows":18,"n_cols":6,"rows_kept":18,"cut":false,"hidden":false,"merged":[[17,1,17,3],[1,1,1,6],[3,2,3,3],[3,5,3,6],[4,2,4,3],[4,5,4,6],[5,2,5,3],[5,5,5,6],[9,2,9,3],[9,5,9,6],[10,2,10,3],[10,5,10,6],[6,2,6,3],[6,5,6,6],[7,2,7,3],[7,5,7,6],[8,2,8,3],[8,5,8,6]]}
[]
[null,"Tableau 5.4 - Éléments de calculs des pertes par infiltrations "]
[]
[null,"Éléments","Définitions",null,"Unité","Valeur utilisée"]
[null,"Qx","Énergie perdue par infiltration",null,"Joules","Résultat du calcul"]
[null,"311 040","Constante d’unités",null,"-","311 040"]
[null,"Cp","Chaleur spécifique de l’air",null,"W-hr/m3-oC","0,33"]
[null,"l","Débit d’infiltration unitaire",null,"litre/m-s","Voir Tableau ci-dessous"]
[null,"L","Longueur totale de la fissure",null,"m","Évaluation dans la serre"]
[null,"Dj","Degrés-jours de chauffage",null,"oC-j","Voir hyperlien en bas de page"]
[null,2,"Coefficient de correction",null,"-",2]
[]
[null,"La formule suivante permet d’ailleurs calculer les pertes de chaleur par infiltrations d’air dans les cultures abritées que sont les serres :"]
[]
[]
[]
[]
[null,"Revenir aux mesures d'efficacité"]

{"sheet":"Tableau 5.5","index":86,"n_rows":18,"n_cols":5,"rows_kept":18,"cut":false,"hidden":false,"merged":[[17,1,17,3],[15,1,15,8],[1,1,1,4],[3,1,4,2],[5,1,5,2],[6,1,6,2],[3,3,3,4],[8,1,8,2],[9,1,9,2],[10,1,10,2],[11,1,11,2],[12,1,12,2],[13,1,13,2],[7,1,7,2]]}
[]
[null,"Tableau 5.5 - Débit d’infiltration selon le type d’infiltrations"]
[]
[null,"Type d’infiltrations",null,"Débit d’infiltration (L/m●s)"]
[null,null,null,"2,70 m/s","3,42 m/s"]
[null,"Porte bien ajustée",null,"0,1","0,1"]
[null,"Porte à ajustement moyen",null,"0,2","0,4"]
[null,"Porte mal ajustée",null,"0,7","1,1"]
[null,"Fissure de 0,8 mm",null,"1,7","3,1"]
[null,"Fissure de 1,6 mm",null,"2,8","3,9"]
[null,"Fissure de 3,2 mm",null,"6,1","10,0"]
[null,"Fissure de 6,4 mm",null,"12,8","18,6"]
[null,"Fissure de 9,5 mm",null,"19,4","28,0"]
[null,"Fissure de 12,7 mm",null,26,"38,0"]
[]
[null,"Hyperlien vers le tableau des normales selon les régions du Québec (calcul des degrés jour de chauffage)"]
[]
[null,"Revenir aux mesures d'efficacité"]

{"sheet":"Tableau 5.6","index":87,"n_rows":10,"n_cols":3,"rows_kept":10,"cut":false,"hidden":false,"merged":[[1,1,1,2]]}
[]
[null,"Tableau 5.6 - Coûts de différents types d'isolant"]
[]
[null,"Type d’isolant","Prix unitaire ($/pi2)"]
[null,"Polystyrène extrudé (type III ou IV) - 1\"",5.5]
[null,"Polyéthylène double (IR + Standard) - F1",0.114]
[null,"Périmètre - isolé (2' dans le sol et 2\" polystyrène extrudé - type III ou IV) - F1",11]
[null,"Polycarbonate 8 mm - Twinwall - F1",2.5]
[]
[null,"Revenir aux mesures d'efficacité"]

{"sheet":"Tableau 5.7","index":88,"n_rows":12,"n_cols":3,"rows_kept":12,"cut":false,"hidden":false,"merged":[[1,1,1,2],[11,1,11,3]]}
[]
[null,"Tableau 5.7 - Dépenses liées à l'achat de matériel pour l'isolation des parois verticales extérieures"]
[]
[null,"$/pi2","$/m2"]
[null,"6.00 à 9.00","64.59 à 96.88"]
[]
[null,"Source: Horticulture Distribution"]
[null,"1Prix fournies à titre indicatif par monsieur Marc Croteau de Horticulture Distribution"]
[null,"2Les coûts varient selon l'ajout de structure "]
[null,"3Les frais d'excavation et la main d'œuvre pour l'installation sont exclues"]
[]
[null,"Revenir aux mesures d'efficacité"]

{"sheet":"Tableau 5.8","index":89,"n_rows":13,"n_cols":5,"rows_kept":13,"cut":false,"hidden":false,"merged":[[1,1,1,4],[12,1,12,3]]}
[]
[null,"Tableau 5.8 - Coûts en matériel liés à l'isolation du pourtour"]
[]
[null,"Individuelle","Individuelle","Jumelée","Jumelée"]
[null,"$/pi2","$/m2","$/pi2","$/m2"]
[null,3.56,38.32,1.55,16.68]
[]
[null,"Tiré de Serre - Coûts de construction 2017 (Agdex 731/290)"]
[]
[null,"Notes:"]
[null," -Isolation du pourtour avec des panneaux de styrofoam recouverts de fibre de verre (facteur R10)"]
[]
[null,"Revenir aux mesures d'efficacité"]

{"sheet":"Tableau 6.1","index":90,"n_rows":10,"n_cols":6,"rows_kept":10,"cut":false,"hidden":false,"merged":[[1,1,1,6],[9,1,9,3],[4,5,4,6],[3,5,3,6],[5,5,5,6],[7,1,7,2]]}
[]
[null,"Tableau 6.1 - Caractéristiques de lampes d'éclairage de photosynthèse"]
[]
[null,"Lampes","Intensité énergétique","Durée de vie","Direction du faisceau","Chaleur produite"]
[null,"HPS","Élevée","20000 h","Très large","Beaucoup de chaleur produite (nouvelles générations plus efficaces)"]
[null,"DEL "," Moyenne à faible","50 000 h","Directionnel ","Faible "]
[]
[null,"1. Éclairage en serre - quoi de neuf?"]
[]
[null,"Revenir aux mesures d'efficacité"]

{"sheet":"Tableau 6.2","index":91,"n_rows":14,"n_cols":5,"rows_kept":14,"cut":false,"hidden":false,"merged":[[1,1,1,4],[13,1,13,3],[11,1,11,12]]}
[]
[null,"Tableau 6.2 - Influence de l'éclairage de photosynthèse sur la durée (en jours) du cycle de productionde la laitue hydroponique"]
[]
[null,"Période","Sans éclairage","Avec éclairage","Différence"]
[null,"Automne",90,70,20]
[null,"Hiver",120,80,40]
[null,"Printemps",72,60,12]
[null,"Été",42,4,9]
[]
[null,"Martine Dorais, Agriculture et Agroalimentaire Canada"]
[]
[null,"Martine Dorais et al. (Agriculture et Agroalimentaire Canada). Effets d'un éclairage photosynthétique, une électro-technologie québécoise sur la culture de la tomate et laitue de serre"]
[]
[null,"Revenir aux mesures d'efficacité"]

{"sheet":"Tableau 6.3","index":92,"n_rows":9,"n_cols":4,"rows_kept":9,"cut":false,"hidden":false,"merged":[[1,1,1,3],[8,1,8,3]]}
[]
[null,"Tableau 6.3 - Calendrier de production pour la laitue cultivée en serre avec et sans éclairage"]
[]
[null,"Phase de production","Sans éclairage","Avec éclairage"]
[null,"Semis","Octobre","Juin"]
[null,"Plantation","Décembre","Juillet"]
[null,"Récolte","Mars à fin novembre","Septembre à juin"]
[]
[null,"Revenir aux mesures d'efficacité"]

{"sheet":"Tableau 6.4","index":93,"n_rows":14,"n_cols":6,"rows_kept":14,"cut":false,"hidden":false,"merged":[[1,1,1,5],[13,1,13,3]]}
[]
[null,"Tableau 6.4 - Coûts d'investissements des systèmes d'éclairage"]
[]
[null,"Type de lampe","Efficacité photonique (µmol/sec)","Coût de la lampe ($ can)","Coût électrique ($/µmol/m2/an)","Coût électrique ($/µmol/m2/an)"]
[null,"400Wmagn. Sunlight HPS",416,250,0.44,0.5]
[null,"1000Welec. Gavita HPS",1751,625,0.24,0.28999999999999998]
[null,"R/B DEL LSG",653,1500,0.24,0.67]
[null,"R/W/B DEL Lumigrow 325",390,1250,0.32,0.91]
[null,"R/B DEL Lumigrow 330",284,1500,0.46,1.45]
[null,"400W Plasma IGrow",374,1500,0.46,1.45]
[]
[null,"Données des États-Unis"]
[]
[null,"Revenir aux mesures d'efficacité"]

{"sheet":"Tableau 6.5","index":94,"n_rows":10,"n_cols":4,"rows_kept":10,"cut":false,"hidden":false,"merged":[[1,1,1,3],[9,1,9,3],[7,1,7,7]]}
[]
[null,"Tableau 6.5 - Coûts d'investissement de systèmes d'éclairage de photosynthèse"]
[]
[null,"Type de lampes","Coûts ($/pi2)","À l'unité installé ($)"]
[null,"HPS (600W)",3,"350-450"]
[null,"LED",17,"2000-2500"]
[]
[null,"Vileneuve J. Les Technologies d'éclairage atificiel et d'injection de CO2 dans les serres"]
[]
[null,"Revenir aux mesures d'efficacité"]

{"sheet":"Tableau 6.6","index":95,"n_rows":12,"n_cols":3,"rows_kept":12,"cut":false,"hidden":false,"merged":[[1,1,1,2],[11,1,11,3]]}
[]
[null,"Tableau 6.6 - Coûts d'investissement de systèmes d'éclairage de photosynthèse"]
[]
[null,"Lampe de 400 watts","Lampe de 600 watts"]
[null,356,505]
[]
[null,"Tiré de Serre - Coûts de construction 2017 (Agdex 731/290)"]
[]
[null,"Notes:"]
[null," -Lampe au sodium (excluant installation, entrée et filerie)"]
[]
[null,"Revenir aux mesures d'efficacité"]

{"sheet":"Tableau 6.7","index":96,"n_rows":19,"n_cols":6,"rows_kept":19,"cut":false,"hidden":false,"merged":[[1,1,1,5],[18,1,18,3]]}
[]
[null,"Tableau 6.7 - Coûts d'investissements de système d'éclairage de photosynthèse"]
[]
[null,"Type de lampe","Puissance (watts)","Voltage (volt)","Autres caractéristiques","Prix ($)"]
[null,"Lampe PLX – HPS*",400,240,"Réflecteur delta",500.36]
[null,"Lampe PLX – HPS*",600,240,"Réflecteur delta",622.36]
[null,"Lampe PLX – Métal Halide*",400,240,"Réflecteur delta",384]
[null,"Lampe PLX – Métal Halide*",1000,240,"Réflecteur maxima",434]
[null,"Lampe HSE NXT2",1000,347,"Réflecteur alpha, version standard, avec connecteur Wieland",549]
[null,"Lampe HSE SL 600W HPS*",600,240,"Réflecteur delta",380]
[null,"Lampe HSE STD 600W HPS*",600,240,"Réflecteur delta",520.66999999999996]
[null,"Lampe HSE Daylight",315,"208-277","Agro Lamp, avec connecteur Wieland",541]
[]
[null,"Boutique en ligne Groupe Horticole Ledoux"]
[]
[null,"Notes:"]
[null,"*Tous les prix affichés sont avec un cordon d’alimentation de « 6’,240V, 15A, fiche standard » ainsi qu’avec un support de montage « standard track-truss bracket »."]
[]
[null,"Revenir aux mesures d'efficacité"]

{"sheet":"Tableau 6.8","index":97,"n_rows":13,"n_cols":6,"rows_kept":13,"cut":false,"hidden":false,"merged":[[1,1,1,5],[12,1,12,4]]}
[]
[null,"Tableau 6.8 - Coûts d'utilisation (tomates et concombres)"]
[]
[null,null,"kWh/pi2","$/an","$/pi2","$/m2"]
[null,"HPS",17.639420000000001,2645.91,{"$f":"C5*E11","v":1.3229565000000001},{"$f":"E5/0.0929","v":14.240651237890207}]
[null,"DEL",4.62,692.35,{"$f":"C6*E11","v":0.34649999999999997},{"$f":"E6/0.0929","v":3.7298170075349839}]
[]
[null,"Berger C., Calcul d'économie d'énergie pour un éclairage DEL versus HPS pour une surface de 2000 pi2"]
[]
[null,"Notes:"]
[null,"* Coût de l'électricité ($/kWh)",null,null,{"$f":"0.075","v":7.4999999999999997E-2}]
[]
[null,"Revenir aux mesures d'efficacité"]

{"sheet":"Tableau 6.9","index":98,"n_rows":11,"n_cols":6,"rows_kept":11,"cut":false,"hidden":false,"merged":[[1,1,1,5],[10,1,10,4]]}
[]
[null,"Tableau 6.9 Coûts d'utilisation (laitues)"]
[]
[null,null,"kWh/pi2","$/an","$/pi2","$/m2"]
[null,"HPS",8.8197100000000006,1322.96,{"$f":"C5*'Tableau 6.9'!F9","v":0.66147825000000005},{"$f":"E5/0.0929","v":7.1203256189451034}]
[null,"DEL",2.31,346.17,{"$f":"C6*'Tableau 6.9'!F9","v":0.17324999999999999},{"$f":"E6/0.0929","v":1.864908503767492}]
[]
[null,"Notes:"]
[null,"* Coût de l'électricité ($/kWh)",null,null,null,7.4999999999999997E-2]
[]
[null,"Revenir aux mesures d'efficacité"]

{"sheet":"Tableau 6.10","index":99,"n_rows":13,"n_cols":3,"rows_kept":13,"cut":false,"hidden":false,"merged":[[9,1,9,2],[10,1,10,13],[12,1,12,3]]}
[]
[null,"Tableau 6.10 - Gain potentiel d'amélioration de l'efficacité d'éclairage"]
[]
[null,"Scénario","Gain potentiel (%)"]
[null,"Changement de lampes HPS (nouvelles générations)","8 à 10"]
[null,"Migration vers des DEL",20]
[]
[null,"Source: Tableau créé à partir de la fiche numéro 6"]
[]
[null,"1. Les technologies d'éclairage artificiel et de CO2 dans les serres"]
[null,"2. Étude sur les performances agronomique, énergétique et économique que peuvent procurer les lampes à diodes électroluminescentes (DEL) de technologie récente aux principales cultures maraîchères en serre (tomates et laitue) en conditions réelles de prod"]
[]
[null,"Revenir aux mesures d'efficacité"]

{"sheet":"Tableau 7.1","index":100,"n_rows":9,"n_cols":6,"rows_kept":9,"cut":false,"hidden":false,"merged":[[1,1,1,5],[6,1,6,2],[8,1,8,3]]}
[]
[null,"Tableau 7.1 - Coûts d'achat de ventilateurs à circulation d'air horizontal (HAF)"]
[]
[null,"Type de ventilateur","Voltage (volt)","Ampère","Autres caractéristiques","Prix ($)"]
[null,"Ex-Breeze Basket Fan - 20\" 1/10 HP",115,1,"Avec support",267.77999999999997]
[]
[null,"Boutique en ligne (Groupe Horticole Ledoux)"]
[]
[null,"Revenir aux mesures d'efficacité"]

{"sheet":"Tableau 7.2","index":101,"n_rows":10,"n_cols":3,"rows_kept":10,"cut":false,"hidden":false,"merged":[[1,1,1,2],[9,1,9,3]]}
[]
[null,"Tableau 7.2 - Coûts d'achat de ventilateurs à circulation d'air horizontal selon la superficie (HAF)"]
[]
[null,"$/pi2","$/m2"]
[null,"0.30 à 0.50 ","3.23 à 5.38"]
[]
[null,"Source: Horticulture Distribution"]
[null,"Prix fournies à titre indicatif par monsieur Marc Croteau de Horticulture Distribution"]
[]
[null,"Revenir aux mesures d'efficacité"]

{"sheet":"Tableau 8.1","index":102,"n_rows":23,"n_cols":8,"rows_kept":23,"cut":false,"hidden":false,"merged":[[1,1,1,3],[1,6,1,7],[20,1,20,11],[22,1,22,3]]}
[]
[null,"Tableau 8.1 - Économies potentielles en $/m2/an pouvant être apportées par un réservoir d'hydro-accumulation",null,null,null,null,"Paramètres de base pour le scénario du tableau ci-haut"]
[]
[null,"Économies en combustible","Apport (%)","$/m2/an",null,null,null,"$/m2"]
[null,"Biomasse par régularisation du régime chaudière",0.1,{"$f":"H5*C5","v":0.73499999999999999},null,null,"Côut annuel en combustible ",7.35]
[null,"Biomasse par stratification du réservoir",0.05,{"$f":"H5*C6","v":0.36749999999999999},null,null,"Amortissement annuel de la chaudière",1.7]
[null,"Sous-total combustible",{"$f":"C5+C6","v":0.15000000000000002},{"$f":"D5+D6","v":1.1025}]
[null,"Économies sur l'amortissement du coût de la chaudière"]
[null,"Amélioration de la durée de vie de la chaudière 25 ans vs 13 ans",{"$f":"(25-13)/25","v":0.48},{"$f":"1+C9","v":1.48}]
[null,"Réduction de 20% de la puissance = Réduction du coût de 10% sur la chaudière",0.1,{"$f":"H6*C10","v":0.17}]
[null,"Sous-total amortissement",{"$f":"C9+C10","v":0.57999999999999996},{"$f":"D9+D10","v":1.65}]
[null,"Total",null,{"$f":"D7+D11","v":2.7524999999999999}]
[]
[null,"Coût du réservoir $10 000 pour 19 000 litres et 1951 m2 ($/m2)",null,"5.13 $/m2"]
[null,"Période de récupération de l'investissement (an)",null,"1.9 an"]
[]
[null,"Source: Gilles Cadotte, agr. Marco Girouard, ing. et Stéphanie Mayer, ing. Jr."]
[null,"Évaluation de la valeur économiquede l'utilisation d'un réservoir d'hydroaccumulation de chaleur pour un système de chauffage  à la biomasse sans"]
[null,"production de CO2"]
[]
[null,"ÉVALUATION DE LA VALEUR ÉCONOMIQUE DE L’UTILISATION D’UN RÉSERVOIR D’HYDRO-ACCUMULATION DE CHALEUR POUR UN SYSTÈME DE CHAUFFAGE À LA BIOMASSE SANS PRODUCTION DE CO2"]
[]
[null,"Revenir aux mesures d'efficacité"]

{"sheet":"Tableau 8.2","index":103,"n_rows":12,"n_cols":3,"rows_kept":12,"cut":false,"hidden":false,"merged":[[1,1,1,2],[9,1,9,11],[11,1,11,3]]}
[]
[null,"Tableau 8.2 - Économies potentielles d'énergie qui découlent de l'utilisation de réservoir d'hydroaccumulation"]
[]
[null,"Système","Économie potentielle (%)"]
[null,"Open Buffer","7 à 15"]
[null,"Closed Buffer","5 à 10"]
[]
[null,"Source: Marco Girouard, ing."]
[]
[null,"Utilisation des réservoirs d'hydro-accumulation pour le chauffage de serre - Règles et fonctionnement de base"]
[]
[null,"Revenir aux mesures d'efficacité"]

{"sheet":"Tableau 8.3","index":104,"n_rows":14,"n_cols":4,"rows_kept":14,"cut":false,"hidden":false,"merged":[[1,1,1,3],[13,1,13,3]]}
[]
[null,"Tableau 8.3 - Capacité et coûts d'investissements requis pour l'acquisition d'un réservoir d'hydro accumulation"]
[]
[null,"Capacité (m3)","$","$/m3"]
[null,400,350000,{"$f":"C5/B5","v":875}]
[null,2000,700000,{"$f":"C6/B6","v":350}]
[]
[null,"Source: Horticulture Distribution"]
[]
[null,"1Prix fournies à titre indicatif par monsieur Marc Croteau de Horticulture Distribution"]
[null,"2Tous les frais sont inclus"]
[null,"3Les coûts de la base en béton varient, en autres, selon la type de sol et la capacité portante"]
[]
[null,"Revenir aux mesures d'efficacité"]

{"sheet":"Tableau 9.1","index":105,"n_rows":25,"n_cols":6,"rows_kept":25,"cut":false,"hidden":false,"merged":[[1,1,1,5],[19,1,19,2],[24,1,24,3]]}
[]
[null,"Tableau 9.1 - Utilisation annuelle potentielle de CO2 sur une base mensuelle"]
[]
[null,"Mois","Enrichissement (heures)","45 kg/ha/h","65 kg/ha/h","90 kg/ha/h"]
[null,"janvier",82,3690,5330,7380]
[null,"février",100,4500,6500,9000]
[null,"mars",127,5715,8255,11430]
[null,"avril",168,7560,10920,15120]
[null,"mai",234,10530,15210,21060]
[null,"juin",253,11385,16445,22770]
[null,"juillet",283,12735,18395,25470]
[null,"août",252,11340,16380,22680]
[null,"septembre",187,8415,12155,16830]
[null,"octobre",157,7065,10205,14130]
[null,"novembre",89,4005,5785,8010]
[null,"décembre",67.099999999999994,3019.5,4361.5,6039]
[null,null,"Total (kg)",89959.5,129941.5,179919]
[]
[null,"Tiré de Khosla, 2002"]
[null,"Le gaz carbonique dans les serres"]
[]
[null,"Notes:"]
[null,"1. Quantité de CO2 apporté exprimée en kilogramme/hectare/heure"]
[]
[null,"Revenir aux mesures d'efficacité"]

{"sheet":"Tableau 9.2","index":106,"n_rows":18,"n_cols":4,"rows_kept":18,"cut":false,"hidden":false,"merged":[[12,1,12,3],[1,1,1,3],[17,1,17,3]]}
[]
[null,"Tableau 9.2 - Coûts de quelques systèmes d'injection de CO2"]
[]
[null,"Méthode d’injection","Coûts minimum ($)","Coûts maximum ($)"]
[null,"Récupération directe – Aérotherme (nouvelle installation, superficie <= 25 000 pi2)",9500,15000]
[null,"Récupération directe – Aérotherme (installation existante, superficie <= 25 000 pi2)",3000,8000]
[null,"Injection via Canon (superficie <= 25 000 pi2)",3000,8000]
[null,"Récupération sur fournaise / bouilloire biomasse (superficie <= 25 000 pi2)",9500,15000]
[null,"CO2 liquide (superficie de 1 ha)",100000,200000]
[null,"Récupération sur bouilloire au gaz (superficie de 1 ha)",350000,600000]
[]
[null,"Tiré de Villeneuve, 2015, les technologies d'éclairage artificiel et de CO2 dans les serres"]
[null,"Les technologies d'éclairage artificiel et de CO2 dans les serres"]
[]
[null,"Notes:"]
[null,"1. Les systèmes de récupération sur fournaise / bouilloire biomasse pour les entreprises de petites tailles sont en cours de développement"]
[]
[null,"Revenir aux mesures d'efficacité"]

{"sheet":"Tableau 9.3","index":107,"n_rows":20,"n_cols":8,"rows_kept":20,"cut":false,"hidden":false,"merged":[[2,1,2,7],[17,1,17,3],[19,1,19,3]]}
[]
[]
[null,"Tableau 9.3 - Comparaison des coûts de production de CO2 selon le type et la quantité de combustible utilisés pour un hectare"]
[]
[null,"Type","Nb d’heures","Taux (kg/ha/h)","Qté de produit requise","Coût ($/unité)","Horaire ($/h)","Coût ($/jour)"]
[null,"CO2 liquide",12,50,"50.0 kg","0.11$/kg",5.5,66]
[null,"CO2 liquide",12,50,"50.0 kg","0.15$/kg",7.5,90]
[null,"CO2 liquide",12,50,"50.0 kg","0.20$/kg",10,120]
[null,"CO2 liquide",12,50,"50.0 kg","0.30$/kg",15,180]
[null,"Gaz naturel",12,50,"27.8 m3","0.10$/m3",2.78,33.33]
[null,"Gaz naturel",12,50,"27.8 m3","0.15$/m3",4.17,50]
[null,"Gaz naturel",12,50,"27.8 m3","0.30$/m3",8.33,100]
[null,"Propane",12,50,"27.8 L","0.20$/L",5.56,66.67]
[null,"Propane",12,50,"27.8 L","0.25$/L",6.94,83.33]
[null,"Propane",12,50,"27.8 L","0.30$/L",8.33,100]
[]
[null,"Tiré de Koshla (2002), Le gaz carbonique dans les serres"]
[null,"Le gaz carbonique dans les serres"]
[]
[null,"Revenir aux mesures d'efficacité"]

{"sheet":"Tableau 9.4","index":108,"n_rows":10,"n_cols":4,"rows_kept":10,"cut":false,"hidden":false,"merged":[[1,1,1,3],[9,1,9,3]]}
[]
[null,"Tableau 9.4 - Économies d'énergie selon le scénario de départ et la présence ou non d'une réservoir d'hydroaccumulation"]
[]
[null,"Départ","Option","Économies en énergie"]
[null,"CO2 liquide","Sans réservoir d'hydroacumulation","3 à 5% de la chauffe"]
[null,"CO2 liquide","Avec réservoir d'hydroaccumulation","4 à 10% de la chauffe"]
[null,"Brûleur de gaz carbonique","Sans réservoir d'hydroacumulation","3 à 5% de la chauffe + économies d'énergie sur le gaz carbonique qui n'est pas brûlé"]
[null,"Brûleur de gaz carbonique","Avec réservoir d'hydroaccumulation","4 à 10% de la chauffe + économies d'énergie sur le gaz carbonique qui n'est pas brûlé"]
[]
[null,"Revenir aux mesures d'efficacité"]

{"sheet":"Tableau 9.5","index":109,"n_rows":9,"n_cols":3,"rows_kept":9,"cut":false,"hidden":false,"merged":[[1,1,1,4],[8,1,8,3]]}
[]
[null,"Tableau 9.5 - Coûts en matériel liés à l'acquisition d'un générateur et d'un contrôleur de CO2"]
[]
[null,null,"Prix"]
[null,null,1889]
[]
[null,"Tiré de Serre - Coûts de construction 2017 (Agdex 731/290)"]
[]
[null,"Revenir aux mesures d'efficacité"]

{"sheet":"Paramètres","index":110,"n_rows":26,"n_cols":27,"rows_kept":26,"cut":false,"hidden":true,"merged":[]}
[]
[]
[null,null,"Paramètres tarifaire",null,null,null,null,null,null,null,null,null,null,null,null,null,null,null,null,null,null,null,null,null,null,null,"Oui"]
[null,null,null,null,null,null,null,null,null,null,null,null,null,null,null,null,null,null,null,null,null,null,null,null,null,null,"Non"]
[null,null,"Tarif DP",null,null,"Mazout Léger (no 2)"]
[null,null,"     Redevance d'abonnement mensuel",6.09,null,"     Pouvoir calorifique (kWh / litres)",10.69,null,null,null,null,null,null,null,null,null,null,null,null,null,null,null,null,null,null,null,"Mazout Léger (no 2)"]
[null,null,"     Prix premiers 1200 kWh",5.7700000000000001E-2,null,"     Efficacité de combustion saisonnière",0.7,null,null,null,null,null,null,null,null,null,null,null,null,null,null,null,null,null,null,null,"Propane"]
[null,null,"     Prix excédent 1200 kWh",8.77E-2]
[null,null,"     Prix du kW excédant 50 kW en été",4.59,null,"Mazout Lourd (no 6)"]
[null,null,"     Prix du kW excédant 50 kW en hiver",6.21,null,"     Pouvoir calorifique (kWh / litres)",11.81]
[null,null,"     Pourcentage de la puissance à facturer minimale",0.65,null,"     Efficacité de combustion saisonnière",0.65]
[]
[null,null,"Tarif DT",null,null,"Propane"]
[null,null,"     Redevance d'abonnement journalier",0.40639999999999998,null,"     Pouvoir calorifique (kWh / litres)",7.03]
[null,null,{"$f":"\"     Prix kWh (>\"& VLOOKUP('Inscrire facture'!AA4,DegresJourHiver!$B$3:$E$14,2) &\") degrés Celsius\"","v":"     Prix kWh (>-15) degrés Celsius"},4.48E-2,null,"     Efficacité de combustion saisonnière",0.75]
[null,null,{"$f":"\"     Prix kWh (<\"& VLOOKUP('Inscrire facture'!AA4,DegresJourHiver!$B$3:$E$14,2) &\") degrés Celsius\"","v":"     Prix kWh (<-15) degrés Celsius"},0.2621]
[null,null,{"$f":"\"     Pourcentage du temps où température < \"& VLOOKUP('Inscrire facture'!AA4,DegresJourHiver!$B$3:$E$14,2) &\" degrés Celsius durant hiver\"","v":"     Pourcentage du temps où température < -15 degrés Celsius durant hiver"},{"$f":"VLOOKUP('Inscrire facture'!AA4,DegresJourHiver!$B$3:$E$14,4)","v":5.4354870233404996E-2},null,"Autres"]
[null,null,"     Prix du kW excédant 50 kW en été",4.59,null,"     Prix du combustible selon facture actuelle",{"$f":"'Inscrire facture'!O18/'Inscrire facture'!N18","v":{"$error":"#DIV/0!"}}]
[null,null,"     Prix du kW excédant 50 kW en hiver",6.21]
[null,null,"     Pourcentage de la puissance à facturer minimale",0.65]
[]
[null,null,"Tarif M"]
[null,null,"     Prix de puissance du kW à facturer",14.43]
[null,null,"     Prix du kWh (210 000 premiers kWh)",4.9700000000000001E-2]
[null,null,"     Prix du kWh (reste de l'énergie consommée)",3.6900000000000002E-2]
[null,null,"     Pourcentage de la puissance à facturer minimale",0.65]

{"sheet":"DegresJourHiver","index":111,"n_rows":60,"n_cols":5,"rows_kept":60,"cut":false,"hidden":true,"merged":[]}
[]
[null,"Ville","Seuil","Moyenne Dépassement hiver depuis 1996 (degré celsius)","% Dépassement moyen hiver depuis 1996"]
[null,"Baie-Comeau",-15,4.285072080780167,5.9595938814767574E-2]
[null,"Jonquière",-15,5.516851490047852,9.2508203635316269E-2]
[null,"La Tuque",-15,6.1786512912133054,9.5002725972863716E-2]
[null,"Montréal",-12,4.2858241054774071,6.0660611235122876E-2]
[null,"Québec",-15,4.3278049962150069,5.4354870233404996E-2]
[null,"Rivière-du-loup",-15,3.488659048140017,4.7010173536461169E-2]
[null,"Roberval",-15,5.6568826826827303,0.10276403361690309]
[null,"Rouyn",-15,5.6922699029127148,0.10330408484461955]
[null,"Sept-Iles",-15,4.7723792925225164,7.6625554195426535E-2]
[null,"Sherbrooke",-12,5.6429173086068198,7.5715182125847366E-2]
[null,"Trois-Rivières",-12,4.6528487322113277,7.1199325193132601E-2]
[null,"Val-d'or",-15,6.1090852079395717,0.1088331807474309]
[]
[null,"Bagotville",-15,5.5138730930515667,9.6895476942384248E-2]
[null,"Beauceville",-12,5.5153536898005111,8.4263421558845017E-2]
[null,"Bonnard",-15,7.7459289184249256,0.15478896855358851]
[null,"Cap-chat",-15,3.1996454117264745,3.1667575324287905E-2]
[null,"Cap-d'espoir",-15,3.1728955676079926,2.7501465853332373E-2]
[null,"Cap-de-la-madeleine",-12,3.5769810764385461,5.3897112526102478E-2]
[null,"Cap-tourmente",-15,3.728469918277336,3.9650046804439738E-2]
[null,"Chibougamau-Chapais",-15,6.9065697752974229,0.14008414512462325]
[null,"Felightsburg",-12,4.8655352666609701,5.9503358604301892E-2]
[null,"Gaspé",-15,3.9425731281477034,4.5955787806157611E-2]
[null,"Havre-St-Pierre",-15,4.3551301647058818,6.5577649079855568E-2]
[null,"Ile Biquette",-15,2.444212974254754,1.5183154516371268E-2]
[null,"Ile d'Orléans",-15,4.0122510690717261,5.8454116219024202E-2]
[null,"Ile Rouge",-15,3.1738859162739166,1.8552045508316788E-2]
[null,"Iles-de-la-madeleine",-15,3.4710905080214025,7.6944441587030541E-3]
[null,"Kuujjuarapik",-15,7.0976022169783342,0.17655046135804883]
[null,"L'Acadie",-12,4.5555147489540548,6.3921491981525108E-2]
[null,"Lac Éon",-15,6.9822774426584564,0.14239350704123935]
[null,"Centrale La Grande-4",-15,7.8171683271562404,0.16375381893368171]
[null,"La Grande Rivière",-15,7.4458508161326193,0.1786643761636818]
[null,"L'assomption",-12,5.0561453626289286,7.9356670404164054E-2]
[null,"Lemieux",-12,6.21825868524438,8.3795377161490742E-2]
[null,"Maniwaki",-12,6.2706838427948739,9.3048254863032726E-2]
[null,"Matagami",-15,6.9354949857882193,0.14114367419995269]
[null,"Mctavish",-15,3.4446851502310962,2.6704247374322365E-2]
[null,"Mirabel",-12,5.0279650972689733,8.1167127853270654E-2]
[null,"Mistook",-15,6.0647136958156782,0.10263544999125632]
[null,"Mont-Joli",-15,3.3456918845584434,4.1702241469762272E-2]
[null,"Mont-Orford",-12,5.6344322503354629,0.10733132399987656]
[null,"Natashquan",-15,4.4046050698138117,6.1884727351280179E-2]
[null,"New-Carlisle",-15,3.2779442751688244,3.2747677779720819E-2]
[null,"Nicolet",-12,4.9363488467930736,7.7381625914229576E-2]
[null,"Normandin",-15,6.7772843644313179,0.12470554349726888]
[null,"Ottawa",-12,4.8071398666280718,7.0957587976916661E-2]
[null,"Parent",-15,6.9859119031981498,0.10180222809706521]
[null,"Pointe-Claveau",-15,4.1891730354391488,6.342258751401561E-2]
[null,"Pointe-des-monts",-15,3.5813366611334909,4.3378971948196232E-2]
[null,"Roquemaure",-15,3.8024118709869721,3.4444981638258258E-2]
[null,"St-Anicet",-12,4.8225706234534016,6.4430683139086342E-2]
[null,"St-Anne-De-Bellevue",-12,4.60021136659776,6.710522255253927E-2]
[null,"Ste-Clothilde",-12,4.6802501697441699,6.2116177877444376E-2]
[null,"St-Hubert",-12,4.4924765241201845,6.3864915186240517E-2]
[null,"St-Jovite",-12,7.0103316760609333,9.6725746556530504E-2]
[null,"Schefferville",-15,8.0228473545122174,0.18294878257023237]
[null,"Val-Cartier",-15,5.4002410061733279,7.2485161449600363E-2]

{"sheet":"modele conversion HQ","index":112,"n_rows":54,"n_cols":34,"rows_kept":54,"cut":false,"hidden":true,"merged":[[38,8,38,10],[38,3,38,6],[21,2,21,11],[11,6,11,8],[10,6,10,8],[4,6,4,8],[3,9,3,10],[3,12,3,14],[5,15,5,16],[4,9,4,10],[5,6,5,8],[21,23,21,28],[21,29,21,33],[18,6,18,8],[6,6,6,8],[16,6,16,8],[15,6,15,8],[17,6,17,8],[12,6,12,8],[21,12,21,13],[21,14,21,15],[21,16,21,22],[14,6,14,8],[13,6,13,8],[9,6,9,8],[8,6,8,8],[7,6,7,8],[2,19,2,22],[3,6,3,8],[3,4,3,5],[2,12,2,17],[2,1,2,10],[3,15,3,16]]}
[]
[]
[null,"Factures estimée après conversion combustible --> électricité (Tarif DP et M)",null,null,null,null,null,null,null,null,null,null,"Factures estimée après conversion combustible --> électricité (Tarif DT)",null,null,null,null,null,null,"Prix de l'énergie"]
[null,null,null,null,"Électricité",null,{"$f":"'Inscrire facture'!AA5","v":"Mazout Léger (no 2)"},null,null,"Facture totale",null,null,"Électricité",null,null,{"$f":"'Inscrire facture'!AA5","v":"Mazout Léger (no 2)"},null,"Facture totale",null,"Base annuelle","Mètre carré ($ / m2)","Combustible ($/kWh)","Électricité ($/kWh)"]
[null,null,null,null,"Pointe","Consom.","Écrêter la pointe",null,null,"Électricité et combustible",null,null,"Pointe",null,"Consom.","Écrêter pointe",{"$f":" \"Température < \" &  VLOOKUP('Inscrire facture'!AA4,DegresJourHiver!$B$3:$E$14,2) & \"°C\"","v":"Température < -15°C"},"Élect. et Comb.",null,"Factures actuelle",{"$f":"'Inscrire facture'!S18/'Inscrire facture'!AA6","v":0},{"$f":"('Inscrire facture'!O18/'Inscrire facture'!N18) / IF('Inscrire facture'!$AA$5=\"Mazout Léger (no 2)\",Paramètres!$G$6*Paramètres!$G$7,IF('Inscrire facture'!$AA$5=\"Mazout Lourd (no 6)\",Paramètres!$G$10*Paramètres!$G$11,IF('Inscrire facture'!$AA$5=\"Propane\",Paramètres!$G$14*Paramètres!$G$15,\"Erreur\")))","v":{"$error":"#DIV/0!"}},{"$f":"'Inscrire facture'!J18/'Inscrire facture'!I18","v":{"$error":"#DIV/0!"}}]
[null,"Mois","Date Début","Date Fin","en kW"," en kWh","Nombre de litres",null,null,"Tarif DP","Tarif M",null,"en kW",null," en kWh","Nombre de litres",null,"Tarif DT",null,"Factures au tarif DP",{"$f":"J19/'Inscrire facture'!AA6","v":6.090000000000001E-2},{"$f":"$V$5 * 1.1","v":{"$error":"#DIV/0!"}},{"$f":"Q37/F19","v":{"$error":"#DIV/0!"}}]
[null,{"$f":"'Inscrire facture'!E6","v":"Janvier"},{"$f":"'Inscrire facture'!F6","v":"2018-01-01"},{"$f":"'Inscrire facture'!G6","v":"2018-02-01"},{"$f":"M25","v":0},{"$f":"N25","v":0},{"$f":"C25","v":0},null,null,{"$f":"D25+Q25","v":6.09},{"$f":"D25+AD25","v":0},null,{"$f":"O25","v":0},null,{"$f":"P25","v":0},{"$f":"C25","v":0},{"$f":"E25","v":0},{"$f":"D25+F25+X25","v":12.5984},null,"Factures au tarif M",{"$f":"K19/'Inscrire facture'!AA6","v":0},{"$f":"$V$5 * 1.1","v":{"$error":"#DIV/0!"}},{"$f":"AD37/F19","v":{"$error":"#DIV/0!"}}]
[null,{"$f":"'Inscrire facture'!E7","v":"Février"},{"$f":"'Inscrire facture'!F7","v":"2018-02-01"},{"$f":"'Inscrire facture'!G7","v":"2018-03-01"},0,0,0,null,null,6.09,0,null,0,null,0,0,0,11.379199999999999,null,"Factures au tarif DT",{"$f":"R19/'Inscrire facture'!AA6","v":0.12361333333333334},{"$f":"$V$5 * 1.1","v":{"$error":"#DIV/0!"}},{"$f":"X37/O19","v":{"$error":"#DIV/0!"}}]
[null,{"$f":"'Inscrire facture'!E8","v":"Mars"},{"$f":"'Inscrire facture'!F8","v":"2018-03-01"},{"$f":"'Inscrire facture'!G8","v":"2018-04-01"},0,0,0,null,null,6.09,0,null,0,null,0,0,0,12.5984]
[null,{"$f":"'Inscrire facture'!E9","v":"Avril"},{"$f":"'Inscrire facture'!F9","v":"2018-04-01"},{"$f":"'Inscrire facture'!G9","v":"2018-05-01"},0,0,0,null,null,6.09,0,null,0,null,0,0,0,12.192]
[null,{"$f":"'Inscrire facture'!E10","v":"Mai"},{"$f":"'Inscrire facture'!F10","v":"2018-05-01"},{"$f":"'Inscrire facture'!G10","v":"2018-06-01"},0,0,0,null,null,6.09,0,null,0,null,0,0,0,12.5984]
[null,{"$f":"'Inscrire facture'!E11","v":"Juin"},{"$f":"'Inscrire facture'!F11","v":"2018-06-01"},{"$f":"'Inscrire facture'!G11","v":"2018-07-01"},0,0,0,null,null,6.09,0,null,0,null,0,0,0,12.192]
[null,{"$f":"'Inscrire facture'!E12","v":"Juillet"},{"$f":"'Inscrire facture'!F12","v":"2018-07-01"},{"$f":"'Inscrire facture'!G12","v":"2018-08-01"},0,0,0,null,null,6.09,0,null,0,null,0,0,0,12.5984]
[null,{"$f":"'Inscrire facture'!E13","v":"Août"},{"$f":"'Inscrire facture'!F13","v":"2018-08-01"},{"$f":"'Inscrire facture'!G13","v":"2018-09-01"},0,0,0,null,null,6.09,0,null,0,null,0,0,0,12.5984]
[null,{"$f":"'Inscrire facture'!E14","v":"Septembre"},{"$f":"'Inscrire facture'!F14","v":"2018-09-01"},{"$f":"'Inscrire facture'!G14","v":"2018-10-01"},0,0,0,null,null,6.09,0,null,0,null,0,0,0,12.192]
[null,{"$f":"'Inscrire facture'!E15","v":"Octobre"},{"$f":"'Inscrire facture'!F15","v":"2018-10-01"},{"$f":"'Inscrire facture'!G15","v":"2018-11-01"},0,0,0,null,null,6.09,0,null,0,null,0,0,0,12.5984]
[null,{"$f":"'Inscrire facture'!E16","v":"Novembre"},{"$f":"'Inscrire facture'!F16","v":"2018-11-01"},{"$f":"'Inscrire facture'!G16","v":"2018-12-01"},0,0,0,null,null,6.09,0,null,0,null,0,0,0,12.192]
[null,{"$f":"'Inscrire facture'!E17","v":"Décembre"},{"$f":"'Inscrire facture'!F17","v":"2018-12-01"},{"$f":"'Inscrire facture'!G17","v":"2019-01-01"},0,0,0,null,null,6.09,0,null,0,null,0,0,0,12.5984]
[null,{"$f":"'Inscrire facture'!E18","v":"Annuelle"},{"$f":"'Inscrire facture'!F18","v":"2018-01-01"},{"$f":"'Inscrire facture'!G18","v":"2019-01-01"},{"$f":"MAX(E7:E18)","v":0},{"$f":"SUM(F7:F18)","v":0},{"$f":"SUM(G7:I18)","v":0},null,null,{"$f":"SUM(J7:J18)","v":73.080000000000013},{"$f":"SUM(K7:K18)","v":0},null,{"$f":"MAX(M7:M18)","v":0},null,{"$f":"SUM(O7:O18)","v":0},{"$f":"SUM(P7:P18)","v":0},{"$f":"SUM(Q7:Q18)","v":0},{"$f":"SUM(R7:R18)","v":148.33600000000001}]
[]
[]
[null,null,"Facture combustible",null,null,null,null,null,null,null,null,null,"Électricité totale (DP + M)",null,"Électricité totale (DT)",null,"Facture d'électricité (Tarif DP)",null,null,null,null,null,null,"Facture d'électricité (Tarif DT)",null,null,null,null,null,"Facture d'électricité (Tarif M)"]
[null,null,"Écréter","Montant",{"$f":" \"Température < \" &  VLOOKUP('Inscrire facture'!AA4,DegresJourHiver!$B$3:$E$14,2)","v":"Température < -15"},"Montant","Nb. litres","Converti","Converti","Nb. litres","Converti","Converti","Pointe","Consomm.","Pointe","Consomm."]
[null,"Saison","la pointe","Écréter pointe","(Tarif DT) en litres","(Tarif DT)","converti en kwh (DT)","en kWh (DT)","en kW (DT)","converti en kWh (DP+M)","en kW (DP+M)","en kWh (DP+M)","en kW","en kWh","en kW","en kWh","Tarif DP","Redevance","PFM","Prix du kW > 50 kW","Prix Puissance","Prix kWh <= 1200","Prix kWh > 1200","Tarif DT","PFM","Redevance","Prix du kW > 50 kW","Prix Puissance","Prix kWh","Tarif M","PFM","Prix puissance","Prix kWh <= 210000","Prix kWh > 210000"]
[null,"H",{"$f":"IF(B25=\"H\",'Inscrire facture'!N6*'Inscrire facture'!$AA$11,0)","v":0},{"$f":"C25 * 'Inscrire facture'!$AA$10","v":0},{"$f":"G42","v":0},{"$f":"E25 * 'Inscrire facture'!$AA$10","v":0},{"$f":"'Inscrire facture'!N6-C25-E25","v":0},{"$f":"IF('Inscrire facture'!$AA$5=\"Mazout Léger (no 2)\",G25*Paramètres!$G$6*Paramètres!$G$7,IF('Inscrire facture'!$AA$5=\"Mazout Lourd (no 6)\",G25*Paramètres!$G$10*Paramètres!$G$11,IF('Inscrire facture'!$AA$5=\"Propane\",G25*Paramètres!$G$14*Paramètres!$G$15,\"Erreur\")))","v":0},{"$f":"H25/(DATEDIF('Inscrire facture'!F6,'Inscrire facture'!G6,\"D\")*24)/'Inscrire facture'!$AA$7","v":0},{"$f":"'Inscrire facture'!N6-C25","v":0},{"$f":"L25/(DATEDIF('Inscrire facture'!F6,'Inscrire facture'!G6,\"D\")*24)/'Inscrire facture'!$AA$7","v":0},{"$f":"IF('Inscrire facture'!$AA$5=\"Mazout Léger (no 2)\",J25*Paramètres!$G$6*Paramètres!$G$7,IF('Inscrire facture'!$AA$5=\"Mazout Lourd (no 6)\",J25*Paramètres!$G$10*Paramètres!$G$11,IF('Inscrire facture'!$AA$5=\"Propane\",J25*Paramètres!$G$14*Paramètres!$G$15,\"Erreur\")))","v":0},{"$f":"N25/(DATEDIF('Inscrire facture'!F6,'Inscrire facture'!G6,\"D\")*24)/'Inscrire facture'!$AA$7","v":0},{"$f":"SUM('Inscrire facture'!I6,L25)","v":0},{"$f":"P25/(DATEDIF('Inscrire facture'!F6,'Inscrire facture'!G6,\"D\")*24)/'Inscrire facture'!$AA$7","v":0},{"$f":"SUM('Inscrire facture'!I6,H25)","v":0},{"$f":"SUM(R25,U25,V25,W25)","v":6.09},{"$f":"Paramètres!$D$6","v":6.09},{"$f":"IF(AND(M25>50,B25=\"H\"),(M25-50)*Paramètres!$D$11,0)","v":0},{"$f":"IF(B25=\"H\",Paramètres!$D$10,Paramètres!$D$9)","v":6.21},{"$f":"(IF(OR(M25>50,MAX($S$25:S25)>0),MAX((M25-50),MAX($S$25:S25))*T25,0)) * (DATEDIF('Inscrire facture'!F6,'Inscrire facture'!G6,\"D\")*24)/720","v":0},{"$f":"IF(N25<=1200,N25*Paramètres!$D$7,1200*Paramètres!$D$7)","v":0},{"$f":"IF(N25>1200,(N25-1200)*Paramètres!$D$8,0)","v":0},{"$f":"SUM(Z25,AB25,AC25)","v":12.5984},{"$f":"IF(AND(O25>50,B25=\"H\"),(O25-50)*Paramètres!$D$20,0)","v":0},{"$f":"DATEDIF('Inscrire facture'!F6,'Inscrire facture'!G6,\"D\") * Paramètres!$D$14","v":12.5984},{"$f":"IF(B25=\"H\",Paramètres!$D$19,Paramètres!$D$18)","v":6.21},{"$f":"(IF(MAX((O25-50),MAX($Y$25:Y25)-50)>0,MAX((O25-50),MAX($Y$25:Y25)-50)*AA25,0)) * (DATEDIF('Inscrire facture'!F6,'Inscrire facture'!G6,\"D\")*24)/720","v":0},{"$f":"IF(B25=\"H\",(P25*Paramètres!$D$15*(1-Paramètres!$D$17))+(P25*Paramètres!$D$16*Paramètres!$D$17),P25*Paramètres!$D$15)","v":0},{"$f":"SUM(AF25:AH25)","v":0},{"$f":"IF(B25=\"H\",M25*Paramètres!$D$26,0)","v":0},{"$f":"(MAX(M25,$AE$25:$AE25)*Paramètres!$D$23) * (DATEDIF('Inscrire facture'!F6,'Inscrire facture'!G6,\"D\")*24)/720","v":0},{"$f":"IF(N25<=210000,N25*Paramètres!$D$24,210000*Paramètres!$D$24)","v":0},{"$f":"IF(N25>210000,(N25-210000)*Paramètres!$D$25,0)","v":0}]
[null,"H",{"$f":"IF(B26=\"H\",'Inscrire facture'!N7*'Inscrire facture'!$AA$11,0)","v":0},{"$f":"C26 * 'Inscrire facture'!$AA$10","v":0},0,{"$f":"E26 * 'Inscrire facture'!$AA$10","v":0},{"$f":"'Inscrire facture'!N7-C26-E26","v":0},{"$f":"IF('Inscrire facture'!$AA$5=\"Mazout Léger (no 2)\",G26*Paramètres!$G$6*Paramètres!$G$7,IF('Inscrire facture'!$AA$5=\"Mazout Lourd (no 6)\",G26*Paramètres!$G$10*Paramètres!$G$11,IF('Inscrire facture'!$AA$5=\"Propane\",G26*Paramètres!$G$14*Paramètres!$G$15,\"Erreur\")))","v":0},{"$f":"H26/(DATEDIF('Inscrire facture'!F7,'Inscrire facture'!G7,\"D\")*24)/'Inscrire facture'!$AA$7","v":0},{"$f":"'Inscrire facture'!N7-C26","v":0},{"$f":"L26/(DATEDIF('Inscrire facture'!F7,'Inscrire facture'!G7,\"D\")*24)/'Inscrire facture'!$AA$7","v":0},{"$f":"IF('Inscrire facture'!$AA$5=\"Mazout Léger (no 2)\",J26*Paramètres!$G$6*Paramètres!$G$7,IF('Inscrire facture'!$AA$5=\"Mazout Lourd (no 6)\",J26*Paramètres!$G$10*Paramètres!$G$11,IF('Inscrire facture'!$AA$5=\"Propane\",J26*Paramètres!$G$14*Paramètres!$G$15,\"Erreur\")))","v":0},{"$f":"N26/(DATEDIF('Inscrire facture'!F7,'Inscrire facture'!G7,\"D\")*24)/'Inscrire facture'!$AA$7","v":0},{"$f":"SUM('Inscrire facture'!I7,L26)","v":0},{"$f":"P26/(DATEDIF('Inscrire facture'!F7,'Inscrire facture'!G7,\"D\")*24)/'Inscrire facture'!$AA$7","v":0},{"$f":"SUM('Inscrire facture'!I7,H26)","v":0},6.09,{"$f":"Paramètres!$D$6","v":6.09},{"$f":"IF(AND(M26>50,B26=\"H\"),(M26-50)*Paramètres!$D$11,0)","v":0},{"$f":"IF(B26=\"H\",Paramètres!$D$10,Paramètres!$D$9)","v":6.21},{"$f":"(IF(OR(M26>50,MAX($S$25:S26)>0),MAX((M26-50),MAX($S$25:S26))*T26,0)) * (DATEDIF('Inscrire facture'!F7,'Inscrire facture'!G7,\"D\")*24)/720","v":0},{"$f":"IF(N26<=1200,N26*Paramètres!$D$7,1200*Paramètres!$D$7)","v":0},{"$f":"IF(N26>1200,(N26-1200)*Paramètres!$D$8,0)","v":0},11.379199999999999,{"$f":"IF(AND(O26>50,B26=\"H\"),(O26-50)*Paramètres!$D$20,0)","v":0},{"$f":"DATEDIF('Inscrire facture'!F7,'Inscrire facture'!G7,\"D\") * Paramètres!$D$14","v":11.379199999999999},{"$f":"IF(B26=\"H\",Paramètres!$D$19,Paramètres!$D$18)","v":6.21},{"$f":"(IF(MAX((O26-50),MAX($Y$25:Y26)-50)>0,MAX((O26-50),MAX($Y$25:Y26)-50)*AA26,0)) * (DATEDIF('Inscrire facture'!F7,'Inscrire facture'!G7,\"D\")*24)/720","v":0},{"$f":"IF(B26=\"H\",(P26*Paramètres!$D$15*(1-Paramètres!$D$17))+(P26*Paramètres!$D$16*Paramètres!$D$17),P26*Paramètres!$D$15)","v":0},0,{"$f":"IF(B26=\"H\",M26*Paramètres!$D$26,0)","v":0},{"$f":"(MAX(M26,$AE$25:$AE26)*Paramètres!$D$23) * (DATEDIF('Inscrire facture'!F7,'Inscrire facture'!G7,\"D\")*24)/720","v":0},{"$f":"IF(N26<=210000,N26*Paramètres!$D$24,210000*Paramètres!$D$24)","v":0},{"$f":"IF(N26>210000,(N26-210000)*Paramètres!$D$25,0)","v":0}]
[null,"H",{"$f":"IF(B27=\"H\",'Inscrire facture'!N8*'Inscrire facture'!$AA$11,0)","v":0},{"$f":"C27 * 'Inscrire facture'!$AA$10","v":0},0,{"$f":"E27 * 'Inscrire facture'!$AA$10","v":0},{"$f":"'Inscrire facture'!N8-C27-E27","v":0},{"$f":"IF('Inscrire facture'!$AA$5=\"Mazout Léger (no 2)\",G27*Paramètres!$G$6*Paramètres!$G$7,IF('Inscrire facture'!$AA$5=\"Mazout Lourd (no 6)\",G27*Paramètres!$G$10*Paramètres!$G$11,IF('Inscrire facture'!$AA$5=\"Propane\",G27*Paramètres!$G$14*Paramètres!$G$15,\"Erreur\")))","v":0},{"$f":"H27/(DATEDIF('Inscrire facture'!F8,'Inscrire facture'!G8,\"D\")*24)/'Inscrire facture'!$AA$7","v":0},{"$f":"'Inscrire facture'!N8-C27","v":0},{"$f":"L27/(DATEDIF('Inscrire facture'!F8,'Inscrire facture'!G8,\"D\")*24)/'Inscrire facture'!$AA$7","v":0},{"$f":"IF('Inscrire facture'!$AA$5=\"Mazout Léger (no 2)\",J27*Paramètres!$G$6*Paramètres!$G$7,IF('Inscrire facture'!$AA$5=\"Mazout Lourd (no 6)\",J27*Paramètres!$G$10*Paramètres!$G$11,IF('Inscrire facture'!$AA$5=\"Propane\",J27*Paramètres!$G$14*Paramètres!$G$15,\"Erreur\")))","v":0},{"$f":"N27/(DATEDIF('Inscrire facture'!F8,'Inscrire facture'!G8,\"D\")*24)/'Inscrire facture'!$AA$7","v":0},{"$f":"SUM('Inscrire facture'!I8,L27)","v":0},{"$f":"P27/(DATEDIF('Inscrire facture'!F8,'Inscrire facture'!G8,\"D\")*24)/'Inscrire facture'!$AA$7","v":0},{"$f":"SUM('Inscrire facture'!I8,H27)","v":0},6.09,{"$f":"Paramètres!$D$6","v":6.09},{"$f":"IF(AND(M27>50,B27=\"H\"),(M27-50)*Paramètres!$D$11,0)","v":0},{"$f":"IF(B27=\"H\",Paramètres!$D$10,Paramètres!$D$9)","v":6.21},{"$f":"(IF(OR(M27>50,MAX($S$25:S27)>0),MAX((M27-50),MAX($S$25:S27))*T27,0)) * (DATEDIF('Inscrire facture'!F8,'Inscrire facture'!G8,\"D\")*24)/720","v":0},{"$f":"IF(N27<=1200,N27*Paramètres!$D$7,1200*Paramètres!$D$7)","v":0},{"$f":"IF(N27>1200,(N27-1200)*Paramètres!$D$8,0)","v":0},12.5984,{"$f":"IF(AND(O27>50,B27=\"H\"),(O27-50)*Paramètres!$D$20,0)","v":0},{"$f":"DATEDIF('Inscrire facture'!F8,'Inscrire facture'!G8,\"D\") * Paramètres!$D$14","v":12.5984},{"$f":"IF(B27=\"H\",Paramètres!$D$19,Paramètres!$D$18)","v":6.21},{"$f":"(IF(MAX((O27-50),MAX($Y$25:Y27)-50)>0,MAX((O27-50),MAX($Y$25:Y27)-50)*AA27,0)) * (DATEDIF('Inscrire facture'!F8,'Inscrire facture'!G8,\"D\")*24)/720","v":0},{"$f":"IF(B27=\"H\",(P27*Paramètres!$D$15*(1-Paramètres!$D$17))+(P27*Paramètres!$D$16*Paramètres!$D$17),P27*Paramètres!$D$15)","v":0},0,{"$f":"IF(B27=\"H\",M27*Paramètres!$D$26,0)","v":0},{"$f":"(MAX(M27,$AE$25:$AE27)*Paramètres!$D$23) * (DATEDIF('Inscrire facture'!F8,'Inscrire facture'!G8,\"D\")*24)/720","v":0},{"$f":"IF(N27<=210000,N27*Paramètres!$D$24,210000*Paramètres!$D$24)","v":0},{"$f":"IF(N27>210000,(N27-210000)*Paramètres!$D$25,0)","v":0}]
[null,"E",{"$f":"IF(B28=\"H\",'Inscrire facture'!N9*'Inscrire facture'!$AA$11,0)","v":0},{"$f":"C28 * 'Inscrire facture'!$AA$10","v":0},0,{"$f":"E28 * 'Inscrire facture'!$AA$10","v":0},{"$f":"'Inscrire facture'!N9-C28-E28","v":0},{"$f":"IF('Inscrire facture'!$AA$5=\"Mazout Léger (no 2)\",G28*Paramètres!$G$6*Paramètres!$G$7,IF('Inscrire facture'!$AA$5=\"Mazout Lourd (no 6)\",G28*Paramètres!$G$10*Paramètres!$G$11,IF('Inscrire facture'!$AA$5=\"Propane\",G28*Paramètres!$G$14*Paramètres!$G$15,\"Erreur\")))","v":0},{"$f":"H28/(DATEDIF('Inscrire facture'!F9,'Inscrire facture'!G9,\"D\")*24)/'Inscrire facture'!$AA$7","v":0},{"$f":"'Inscrire facture'!N9-C28","v":0},{"$f":"L28/(DATEDIF('Inscrire facture'!F9,'Inscrire facture'!G9,\"D\")*24)/'Inscrire facture'!$AA$7","v":0},{"$f":"IF('Inscrire facture'!$AA$5=\"Mazout Léger (no 2)\",J28*Paramètres!$G$6*Paramètres!$G$7,IF('Inscrire facture'!$AA$5=\"Mazout Lourd (no 6)\",J28*Paramètres!$G$10*Paramètres!$G$11,IF('Inscrire facture'!$AA$5=\"Propane\",J28*Paramètres!$G$14*Paramètres!$G$15,\"Erreur\")))","v":0},{"$f":"N28/(DATEDIF('Inscrire facture'!F9,'Inscrire facture'!G9,\"D\")*24)/'Inscrire facture'!$AA$7","v":0},{"$f":"SUM('Inscrire facture'!I9,L28)","v":0},{"$f":"P28/(DATEDIF('Inscrire facture'!F9,'Inscrire facture'!G9,\"D\")*24)/'Inscrire facture'!$AA$7","v":0},{"$f":"SUM('Inscrire facture'!I9,H28)","v":0},6.09,{"$f":"Paramètres!$D$6","v":6.09},{"$f":"IF(AND(M28>50,B28=\"H\"),(M28-50)*Paramètres!$D$11,0)","v":0},{"$f":"IF(B28=\"H\",Paramètres!$D$10,Paramètres!$D$9)","v":4.59},{"$f":"(IF(OR(M28>50,MAX($S$25:S28)>0),MAX((M28-50),MAX($S$25:S28))*T28,0)) * (DATEDIF('Inscrire facture'!F9,'Inscrire facture'!G9,\"D\")*24)/720","v":0},{"$f":"IF(N28<=1200,N28*Paramètres!$D$7,1200*Paramètres!$D$7)","v":0},{"$f":"IF(N28>1200,(N28-1200)*Paramètres!$D$8,0)","v":0},12.192,{"$f":"IF(AND(O28>50,B28=\"H\"),(O28-50)*Paramètres!$D$20,0)","v":0},{"$f":"DATEDIF('Inscrire facture'!F9,'Inscrire facture'!G9,\"D\") * Paramètres!$D$14","v":12.192},{"$f":"IF(B28=\"H\",Paramètres!$D$19,Paramètres!$D$18)","v":4.59},{"$f":"(IF(MAX((O28-50),MAX($Y$25:Y28)-50)>0,MAX((O28-50),MAX($Y$25:Y28)-50)*AA28,0)) * (DATEDIF('Inscrire facture'!F9,'Inscrire facture'!G9,\"D\")*24)/720","v":0},{"$f":"IF(B28=\"H\",(P28*Paramètres!$D$15*(1-Paramètres!$D$17))+(P28*Paramètres!$D$16*Paramètres!$D$17),P28*Paramètres!$D$15)","v":0},0,{"$f":"IF(B28=\"H\",M28*Paramètres!$D$26,0)","v":0},{"$f":"(MAX(M28,$AE$25:$AE28)*Paramètres!$D$23) * (DATEDIF('Inscrire facture'!F9,'Inscrire facture'!G9,\"D\")*24)/720","v":0},{"$f":"IF(N28<=210000,N28*Paramètres!$D$24,210000*Paramètres!$D$24)","v":0},{"$f":"IF(N28>210000,(N28-210000)*Paramètres!$D$25,0)","v":0}]
[null,"E",{"$f":"IF(B29=\"H\",'Inscrire facture'!N10*'Inscrire facture'!$AA$11,0)","v":0},{"$f":"C29 * 'Inscrire facture'!$AA$10","v":0},0,{"$f":"E29 * 'Inscrire facture'!$AA$10","v":0},{"$f":"'Inscrire facture'!N10-C29-E29","v":0},{"$f":"IF('Inscrire facture'!$AA$5=\"Mazout Léger (no 2)\",G29*Paramètres!$G$6*Paramètres!$G$7,IF('Inscrire facture'!$AA$5=\"Mazout Lourd (no 6)\",G29*Paramètres!$G$10*Paramètres!$G$11,IF('Inscrire facture'!$AA$5=\"Propane\",G29*Paramètres!$G$14*Paramètres!$G$15,\"Erreur\")))","v":0},{"$f":"H29/(DATEDIF('Inscrire facture'!F10,'Inscrire facture'!G10,\"D\")*24)/'Inscrire facture'!$AA$7","v":0},{"$f":"'Inscrire facture'!N10-C29","v":0},{"$f":"L29/(DATEDIF('Inscrire facture'!F10,'Inscrire facture'!G10,\"D\")*24)/'Inscrire facture'!$AA$7","v":0},{"$f":"IF('Inscrire facture'!$AA$5=\"Mazout Léger (no 2)\",J29*Paramètres!$G$6*Paramètres!$G$7,IF('Inscrire facture'!$AA$5=\"Mazout Lourd (no 6)\",J29*Paramètres!$G$10*Paramètres!$G$11,IF('Inscrire facture'!$AA$5=\"Propane\",J29*Paramètres!$G$14*Paramètres!$G$15,\"Erreur\")))","v":0},{"$f":"N29/(DATEDIF('Inscrire facture'!F10,'Inscrire facture'!G10,\"D\")*24)/'Inscrire facture'!$AA$7","v":0},{"$f":"SUM('Inscrire facture'!I10,L29)","v":0},{"$f":"P29/(DATEDIF('Inscrire facture'!F10,'Inscrire facture'!G10,\"D\")*24)/'Inscrire facture'!$AA$7","v":0},{"$f":"SUM('Inscrire facture'!I10,H29)","v":0},6.09,{"$f":"Paramètres!$D$6","v":6.09},{"$f":"IF(AND(M29>50,B29=\"H\"),(M29-50)*Paramètres!$D$11,0)","v":0},{"$f":"IF(B29=\"H\",Paramètres!$D$10,Paramètres!$D$9)","v":4.59},{"$f":"(IF(OR(M29>50,MAX($S$25:S29)>0),MAX((M29-50),MAX($S$25:S29))*T29,0)) * (DATEDIF('Inscrire facture'!F10,'Inscrire facture'!G10,\"D\")*24)/720","v":0},{"$f":"IF(N29<=1200,N29*Paramètres!$D$7,1200*Paramètres!$D$7)","v":0},{"$f":"IF(N29>1200,(N29-1200)*Paramètres!$D$8,0)","v":0},12.5984,{"$f":"IF(AND(O29>50,B29=\"H\"),(O29-50)*Paramètres!$D$20,0)","v":0},{"$f":"DATEDIF('Inscrire facture'!F10,'Inscrire facture'!G10,\"D\") * Paramètres!$D$14","v":12.5984},{"$f":"IF(B29=\"H\",Paramètres!$D$19,Paramètres!$D$18)","v":4.59},{"$f":"(IF(MAX((O29-50),MAX($Y$25:Y29)-50)>0,MAX((O29-50),MAX($Y$25:Y29)-50)*AA29,0)) * (DATEDIF('Inscrire facture'!F10,'Inscrire facture'!G10,\"D\")*24)/720","v":0},{"$f":"IF(B29=\"H\",(P29*Paramètres!$D$15*(1-Paramètres!$D$17))+(P29*Paramètres!$D$16*Paramètres!$D$17),P29*Paramètres!$D$15)","v":0},0,{"$f":"IF(B29=\"H\",M29*Paramètres!$D$26,0)","v":0},{"$f":"(MAX(M29,$AE$25:$AE29)*Paramètres!$D$23) * (DATEDIF('Inscrire facture'!F10,'Inscrire facture'!G10,\"D\")*24)/720","v":0},{"$f":"IF(N29<=210000,N29*Paramètres!$D$24,210000*Paramètres!$D$24)","v":0},{"$f":"IF(N29>210000,(N29-210000)*Paramètres!$D$25,0)","v":0}]
[null,"E",{"$f":"IF(B30=\"H\",'Inscrire facture'!N11*'Inscrire facture'!$AA$11,0)","v":0},{"$f":"C30 * 'Inscrire facture'!$AA$10","v":0},0,{"$f":"E30 * 'Inscrire facture'!$AA$10","v":0},{"$f":"'Inscrire facture'!N11-C30-E30","v":0},{"$f":"IF('Inscrire facture'!$AA$5=\"Mazout Léger (no 2)\",G30*Paramètres!$G$6*Paramètres!$G$7,IF('Inscrire facture'!$AA$5=\"Mazout Lourd (no 6)\",G30*Paramètres!$G$10*Paramètres!$G$11,IF('Inscrire facture'!$AA$5=\"Propane\",G30*Paramètres!$G$14*Paramètres!$G$15,\"Erreur\")))","v":0},{"$f":"H30/(DATEDIF('Inscrire facture'!F11,'Inscrire facture'!G11,\"D\")*24)/'Inscrire facture'!$AA$7","v":0},{"$f":"'Inscrire facture'!N11-C30","v":0},{"$f":"L30/(DATEDIF('Inscrire facture'!F11,'Inscrire facture'!G11,\"D\")*24)/'Inscrire facture'!$AA$7","v":0},{"$f":"IF('Inscrire facture'!$AA$5=\"Mazout Léger (no 2)\",J30*Paramètres!$G$6*Paramètres!$G$7,IF('Inscrire facture'!$AA$5=\"Mazout Lourd (no 6)\",J30*Paramètres!$G$10*Paramètres!$G$11,IF('Inscrire facture'!$AA$5=\"Propane\",J30*Paramètres!$G$14*Paramètres!$G$15,\"Erreur\")))","v":0},{"$f":"N30/(DATEDIF('Inscrire facture'!F11,'Inscrire facture'!G11,\"D\")*24)/'Inscrire facture'!$AA$7","v":0},{"$f":"SUM('Inscrire facture'!I11,L30)","v":0},{"$f":"P30/(DATEDIF('Inscrire facture'!F11,'Inscrire facture'!G11,\"D\")*24)/'Inscrire facture'!$AA$7","v":0},{"$f":"SUM('Inscrire facture'!I11,H30)","v":0},6.09,{"$f":"Paramètres!$D$6","v":6.09},{"$f":"IF(AND(M30>50,B30=\"H\"),(M30-50)*Paramètres!$D$11,0)","v":0},{"$f":"IF(B30=\"H\",Paramètres!$D$10,Paramètres!$D$9)","v":4.59},{"$f":"(IF(OR(M30>50,MAX($S$25:S30)>0),MAX((M30-50),MAX($S$25:S30))*T30,0)) * (DATEDIF('Inscrire facture'!F11,'Inscrire facture'!G11,\"D\")*24)/720","v":0},{"$f":"IF(N30<=1200,N30*Paramètres!$D$7,1200*Paramètres!$D$7)","v":0},{"$f":"IF(N30>1200,(N30-1200)*Paramètres!$D$8,0)","v":0},12.192,{"$f":"IF(AND(O30>50,B30=\"H\"),(O30-50)*Paramètres!$D$20,0)","v":0},{"$f":"DATEDIF('Inscrire facture'!F11,'Inscrire facture'!G11,\"D\") * Paramètres!$D$14","v":12.192},{"$f":"IF(B30=\"H\",Paramètres!$D$19,Paramètres!$D$18)","v":4.59},{"$f":"(IF(MAX((O30-50),MAX($Y$25:Y30)-50)>0,MAX((O30-50),MAX($Y$25:Y30)-50)*AA30,0)) * (DATEDIF('Inscrire facture'!F11,'Inscrire facture'!G11,\"D\")*24)/720","v":0},{"$f":"IF(B30=\"H\",(P30*Paramètres!$D$15*(1-Paramètres!$D$17))+(P30*Paramètres!$D$16*Paramètres!$D$17),P30*Paramètres!$D$15)","v":0},0,{"$f":"IF(B30=\"H\",M30*Paramètres!$D$26,0)","v":0},{"$f":"(MAX(M30,$AE$25:$AE30)*Paramètres!$D$23) * (DATEDIF('Inscrire facture'!F11,'Inscrire facture'!G11,\"D\")*24)/720","v":0},{"$f":"IF(N30<=210000,N30*Paramètres!$D$24,210000*Paramètres!$D$24)","v":0},{"$f":"IF(N30>210000,(N30-210000)*Paramètres!$D$25,0)","v":0}]
[null,"E",{"$f":"IF(B31=\"H\",'Inscrire facture'!N12*'Inscrire facture'!$AA$11,0)","v":0},{"$f":"C31 * 'Inscrire facture'!$AA$10","v":0},0,{"$f":"E31 * 'Inscrire facture'!$AA$10","v":0},{"$f":"'Inscrire facture'!N12-C31-E31","v":0},{"$f":"IF('Inscrire facture'!$AA$5=\"Mazout Léger (no 2)\",G31*Paramètres!$G$6*Paramètres!$G$7,IF('Inscrire facture'!$AA$5=\"Mazout Lourd (no 6)\",G31*Paramètres!$G$10*Paramètres!$G$11,IF('Inscrire facture'!$AA$5=\"Propane\",G31*Paramètres!$G$14*Paramètres!$G$15,\"Erreur\")))","v":0},{"$f":"H31/(DATEDIF('Inscrire facture'!F12,'Inscrire facture'!G12,\"D\")*24)/'Inscrire facture'!$AA$7","v":0},{"$f":"'Inscrire facture'!N12-C31","v":0},{"$f":"L31/(DATEDIF('Inscrire facture'!F12,'Inscrire facture'!G12,\"D\")*24)/'Inscrire facture'!$AA$7","v":0},{"$f":"IF('Inscrire facture'!$AA$5=\"Mazout Léger (no 2)\",J31*Paramètres!$G$6*Paramètres!$G$7,IF('Inscrire facture'!$AA$5=\"Mazout Lourd (no 6)\",J31*Paramètres!$G$10*Paramètres!$G$11,IF('Inscrire facture'!$AA$5=\"Propane\",J31*Paramètres!$G$14*Paramètres!$G$15,\"Erreur\")))","v":0},{"$f":"N31/(DATEDIF('Inscrire facture'!F12,'Inscrire facture'!G12,\"D\")*24)/'Inscrire facture'!$AA$7","v":0},{"$f":"SUM('Inscrire facture'!I12,L31)","v":0},{"$f":"P31/(DATEDIF('Inscrire facture'!F12,'Inscrire facture'!G12,\"D\")*24)/'Inscrire facture'!$AA$7","v":0},{"$f":"SUM('Inscrire facture'!I12,H31)","v":0},6.09,{"$f":"Paramètres!$D$6","v":6.09},{"$f":"IF(AND(M31>50,B31=\"H\"),(M31-50)*Paramètres!$D$11,0)","v":0},{"$f":"IF(B31=\"H\",Paramètres!$D$10,Paramètres!$D$9)","v":4.59},{"$f":"(IF(OR(M31>50,MAX($S$25:S31)>0),MAX((M31-50),MAX($S$25:S31))*T31,0)) * (DATEDIF('Inscrire facture'!F12,'Inscrire facture'!G12,\"D\")*24)/720","v":0},{"$f":"IF(N31<=1200,N31*Paramètres!$D$7,1200*Paramètres!$D$7)","v":0},{"$f":"IF(N31>1200,(N31-1200)*Paramètres!$D$8,0)","v":0},12.5984,{"$f":"IF(AND(O31>50,B31=\"H\"),(O31-50)*Paramètres!$D$20,0)","v":0},{"$f":"DATEDIF('Inscrire facture'!F12,'Inscrire facture'!G12,\"D\") * Paramètres!$D$14","v":12.5984},{"$f":"IF(B31=\"H\",Paramètres!$D$19,Paramètres!$D$18)","v":4.59},{"$f":"(IF(MAX((O31-50),MAX($Y$25:Y31)-50)>0,MAX((O31-50),MAX($Y$25:Y31)-50)*AA31,0)) * (DATEDIF('Inscrire facture'!F12,'Inscrire facture'!G12,\"D\")*24)/720","v":0},{"$f":"IF(B31=\"H\",(P31*Paramètres!$D$15*(1-Paramètres!$D$17))+(P31*Paramètres!$D$16*Paramètres!$D$17),P31*Paramètres!$D$15)","v":0},0,{"$f":"IF(B31=\"H\",M31*Paramètres!$D$26,0)","v":0},{"$f":"(MAX(M31,$AE$25:$AE31)*Paramètres!$D$23) * (DATEDIF('Inscrire facture'!F12,'Inscrire facture'!G12,\"D\")*24)/720","v":0},{"$f":"IF(N31<=210000,N31*Paramètres!$D$24,210000*Paramètres!$D$24)","v":0},{"$f":"IF(N31>210000,(N31-210000)*Paramètres!$D$25,0)","v":0}]
[null,"E",{"$f":"IF(B32=\"H\",'Inscrire facture'!N13*'Inscrire facture'!$AA$11,0)","v":0},{"$f":"C32 * 'Inscrire facture'!$AA$10","v":0},0,{"$f":"E32 * 'Inscrire facture'!$AA$10","v":0},{"$f":"'Inscrire facture'!N13-C32-E32","v":0},{"$f":"IF('Inscrire facture'!$AA$5=\"Mazout Léger (no 2)\",G32*Paramètres!$G$6*Paramètres!$G$7,IF('Inscrire facture'!$AA$5=\"Mazout Lourd (no 6)\",G32*Paramètres!$G$10*Paramètres!$G$11,IF('Inscrire facture'!$AA$5=\"Propane\",G32*Paramètres!$G$14*Paramètres!$G$15,\"Erreur\")))","v":0},{"$f":"H32/(DATEDIF('Inscrire facture'!F13,'Inscrire facture'!G13,\"D\")*24)/'Inscrire facture'!$AA$7","v":0},{"$f":"'Inscrire facture'!N13-C32","v":0},{"$f":"L32/(DATEDIF('Inscrire facture'!F13,'Inscrire facture'!G13,\"D\")*24)/'Inscrire facture'!$AA$7","v":0},{"$f":"IF('Inscrire facture'!$AA$5=\"Mazout Léger (no 2)\",J32*Paramètres!$G$6*Paramètres!$G$7,IF('Inscrire facture'!$AA$5=\"Mazout Lourd (no 6)\",J32*Paramètres!$G$10*Paramètres!$G$11,IF('Inscrire facture'!$AA$5=\"Propane\",J32*Paramètres!$G$14*Paramètres!$G$15,\"Erreur\")))","v":0},{"$f":"N32/(DATEDIF('Inscrire facture'!F13,'Inscrire facture'!G13,\"D\")*24)/'Inscrire facture'!$AA$7","v":0},{"$f":"SUM('Inscrire facture'!I13,L32)","v":0},{"$f":"P32/(DATEDIF('Inscrire facture'!F13,'Inscrire facture'!G13,\"D\")*24)/'Inscrire facture'!$AA$7","v":0},{"$f":"SUM('Inscrire facture'!I13,H32)","v":0},6.09,{"$f":"Paramètres!$D$6","v":6.09},{"$f":"IF(AND(M32>50,B32=\"H\"),(M32-50)*Paramètres!$D$11,0)","v":0},{"$f":"IF(B32=\"H\",Paramètres!$D$10,Paramètres!$D$9)","v":4.59},{"$f":"(IF(OR(M32>50,MAX($S$25:S32)>0),MAX((M32-50),MAX($S$25:S32))*T32,0)) * (DATEDIF('Inscrire facture'!F13,'Inscrire facture'!G13,\"D\")*24)/720","v":0},{"$f":"IF(N32<=1200,N32*Paramètres!$D$7,1200*Paramètres!$D$7)","v":0},{"$f":"IF(N32>1200,(N32-1200)*Paramètres!$D$8,0)","v":0},12.5984,{"$f":"IF(AND(O32>50,B32=\"H\"),(O32-50)*Paramètres!$D$20,0)","v":0},{"$f":"DATEDIF('Inscrire facture'!F13,'Inscrire facture'!G13,\"D\") * Paramètres!$D$14","v":12.5984},{"$f":"IF(B32=\"H\",Paramètres!$D$19,Paramètres!$D$18)","v":4.59},{"$f":"(IF(MAX((O32-50),MAX($Y$25:Y32)-50)>0,MAX((O32-50),MAX($Y$25:Y32)-50)*AA32,0)) * (DATEDIF('Inscrire facture'!F13,'Inscrire facture'!G13,\"D\")*24)/720","v":0},{"$f":"IF(B32=\"H\",(P32*Paramètres!$D$15*(1-Paramètres!$D$17))+(P32*Paramètres!$D$16*Paramètres!$D$17),P32*Paramètres!$D$15)","v":0},0,{"$f":"IF(B32=\"H\",M32*Paramètres!$D$26,0)","v":0},{"$f":"(MAX(M32,$AE$25:$AE32)*Paramètres!$D$23) * (DATEDIF('Inscrire facture'!F13,'Inscrire facture'!G13,\"D\")*24)/720","v":0},{"$f":"IF(N32<=210000,N32*Paramètres!$D$24,210000*Paramètres!$D$24)","v":0},{"$f":"IF(N32>210000,(N32-210000)*Paramètres!$D$25,0)","v":0}]
[null,"E",{"$f":"IF(B33=\"H\",'Inscrire facture'!N14*'Inscrire facture'!$AA$11,0)","v":0},{"$f":"C33 * 'Inscrire facture'!$AA$10","v":0},0,{"$f":"E33 * 'Inscrire facture'!$AA$10","v":0},{"$f":"'Inscrire facture'!N14-C33-E33","v":0},{"$f":"IF('Inscrire facture'!$AA$5=\"Mazout Léger (no 2)\",G33*Paramètres!$G$6*Paramètres!$G$7,IF('Inscrire facture'!$AA$5=\"Mazout Lourd (no 6)\",G33*Paramètres!$G$10*Paramètres!$G$11,IF('Inscrire facture'!$AA$5=\"Propane\",G33*Paramètres!$G$14*Paramètres!$G$15,\"Erreur\")))","v":0},{"$f":"H33/(DATEDIF('Inscrire facture'!F14,'Inscrire facture'!G14,\"D\")*24)/'Inscrire facture'!$AA$7","v":0},{"$f":"'Inscrire facture'!N14-C33","v":0},{"$f":"L33/(DATEDIF('Inscrire facture'!F14,'Inscrire facture'!G14,\"D\")*24)/'Inscrire facture'!$AA$7","v":0},{"$f":"IF('Inscrire facture'!$AA$5=\"Mazout Léger (no 2)\",J33*Paramètres!$G$6*Paramètres!$G$7,IF('Inscrire facture'!$AA$5=\"Mazout Lourd (no 6)\",J33*Paramètres!$G$10*Paramètres!$G$11,IF('Inscrire facture'!$AA$5=\"Propane\",J33*Paramètres!$G$14*Paramètres!$G$15,\"Erreur\")))","v":0},{"$f":"N33/(DATEDIF('Inscrire facture'!F14,'Inscrire facture'!G14,\"D\")*24)/'Inscrire facture'!$AA$7","v":0},{"$f":"SUM('Inscrire facture'!I14,L33)","v":0},{"$f":"P33/(DATEDIF('Inscrire facture'!F14,'Inscrire facture'!G14,\"D\")*24)/'Inscrire facture'!$AA$7","v":0},{"$f":"SUM('Inscrire facture'!I14,H33)","v":0},6.09,{"$f":"Paramètres!$D$6","v":6.09},{"$f":"IF(AND(M33>50,B33=\"H\"),(M33-50)*Paramètres!$D$11,0)","v":0},{"$f":"IF(B33=\"H\",Paramètres!$D$10,Paramètres!$D$9)","v":4.59},{"$f":"(IF(OR(M33>50,MAX($S$25:S33)>0),MAX((M33-50),MAX($S$25:S33))*T33,0)) * (DATEDIF('Inscrire facture'!F14,'Inscrire facture'!G14,\"D\")*24)/720","v":0},{"$f":"IF(N33<=1200,N33*Paramètres!$D$7,1200*Paramètres!$D$7)","v":0},{"$f":"IF(N33>1200,(N33-1200)*Paramètres!$D$8,0)","v":0},12.192,{"$f":"IF(AND(O33>50,B33=\"H\"),(O33-50)*Paramètres!$D$20,0)","v":0},{"$f":"DATEDIF('Inscrire facture'!F14,'Inscrire facture'!G14,\"D\") * Paramètres!$D$14","v":12.192},{"$f":"IF(B33=\"H\",Paramètres!$D$19,Paramètres!$D$18)","v":4.59},{"$f":"(IF(MAX((O33-50),MAX($Y$25:Y33)-50)>0,MAX((O33-50),MAX($Y$25:Y33)-50)*AA33,0)) * (DATEDIF('Inscrire facture'!F14,'Inscrire facture'!G14,\"D\")*24)/720","v":0},{"$f":"IF(B33=\"H\",(P33*Paramètres!$D$15*(1-Paramètres!$D$17))+(P33*Paramètres!$D$16*Paramètres!$D$17),P33*Paramètres!$D$15)","v":0},0,{"$f":"IF(B33=\"H\",M33*Paramètres!$D$26,0)","v":0},{"$f":"(MAX(M33,$AE$25:$AE33)*Paramètres!$D$23) * (DATEDIF('Inscrire facture'!F14,'Inscrire facture'!G14,\"D\")*24)/720","v":0},{"$f":"IF(N33<=210000,N33*Paramètres!$D$24,210000*Paramètres!$D$24)","v":0},{"$f":"IF(N33>210000,(N33-210000)*Paramètres!$D$25,0)","v":0}]
[null,"E",{"$f":"IF(B34=\"H\",'Inscrire facture'!N15*'Inscrire facture'!$AA$11,0)","v":0},{"$f":"C34 * 'Inscrire facture'!$AA$10","v":0},0,{"$f":"E34 * 'Inscrire facture'!$AA$10","v":0},{"$f":"'Inscrire facture'!N15-C34-E34","v":0},{"$f":"IF('Inscrire facture'!$AA$5=\"Mazout Léger (no 2)\",G34*Paramètres!$G$6*Paramètres!$G$7,IF('Inscrire facture'!$AA$5=\"Mazout Lourd (no 6)\",G34*Paramètres!$G$10*Paramètres!$G$11,IF('Inscrire facture'!$AA$5=\"Propane\",G34*Paramètres!$G$14*Paramètres!$G$15,\"Erreur\")))","v":0},{"$f":"H34/(DATEDIF('Inscrire facture'!F15,'Inscrire facture'!G15,\"D\")*24)/'Inscrire facture'!$AA$7","v":0},{"$f":"'Inscrire facture'!N15-C34","v":0},{"$f":"L34/(DATEDIF('Inscrire facture'!F15,'Inscrire facture'!G15,\"D\")*24)/'Inscrire facture'!$AA$7","v":0},{"$f":"IF('Inscrire facture'!$AA$5=\"Mazout Léger (no 2)\",J34*Paramètres!$G$6*Paramètres!$G$7,IF('Inscrire facture'!$AA$5=\"Mazout Lourd (no 6)\",J34*Paramètres!$G$10*Paramètres!$G$11,IF('Inscrire facture'!$AA$5=\"Propane\",J34*Paramètres!$G$14*Paramètres!$G$15,\"Erreur\")))","v":0},{"$f":"N34/(DATEDIF('Inscrire facture'!F15,'Inscrire facture'!G15,\"D\")*24)/'Inscrire facture'!$AA$7","v":0},{"$f":"SUM('Inscrire facture'!I15,L34)","v":0},{"$f":"P34/(DATEDIF('Inscrire facture'!F15,'Inscrire facture'!G15,\"D\")*24)/'Inscrire facture'!$AA$7","v":0},{"$f":"SUM('Inscrire facture'!I15,H34)","v":0},6.09,{"$f":"Paramètres!$D$6","v":6.09},{"$f":"IF(AND(M34>50,B34=\"H\"),(M34-50)*Paramètres!$D$11,0)","v":0},{"$f":"IF(B34=\"H\",Paramètres!$D$10,Paramètres!$D$9)","v":4.59},{"$f":"(IF(OR(M34>50,MAX($S$25:S34)>0),MAX((M34-50),MAX($S$25:S34))*T34,0)) * (DATEDIF('Inscrire facture'!F15,'Inscrire facture'!G15,\"D\")*24)/720","v":0},{"$f":"IF(N34<=1200,N34*Paramètres!$D$7,1200*Paramètres!$D$7)","v":0},{"$f":"IF(N34>1200,(N34-1200)*Paramètres!$D$8,0)","v":0},12.5984,{"$f":"IF(AND(O34>50,B34=\"H\"),(O34-50)*Paramètres!$D$20,0)","v":0},{"$f":"DATEDIF('Inscrire facture'!F15,'Inscrire facture'!G15,\"D\") * Paramètres!$D$14","v":12.5984},{"$f":"IF(B34=\"H\",Paramètres!$D$19,Paramètres!$D$18)","v":4.59},{"$f":"(IF(MAX((O34-50),MAX($Y$25:Y34)-50)>0,MAX((O34-50),MAX($Y$25:Y34)-50)*AA34,0)) * (DATEDIF('Inscrire facture'!F15,'Inscrire facture'!G15,\"D\")*24)/720","v":0},{"$f":"IF(B34=\"H\",(P34*Paramètres!$D$15*(1-Paramètres!$D$17))+(P34*Paramètres!$D$16*Paramètres!$D$17),P34*Paramètres!$D$15)","v":0},0,{"$f":"IF(B34=\"H\",M34*Paramètres!$D$26,0)","v":0},{"$f":"(MAX(M34,$AE$25:$AE34)*Paramètres!$D$23) * (DATEDIF('Inscrire facture'!F15,'Inscrire facture'!G15,\"D\")*24)/720","v":0},{"$f":"IF(N34<=210000,N34*Paramètres!$D$24,210000*Paramètres!$D$24)","v":0},{"$f":"IF(N34>210000,(N34-210000)*Paramètres!$D$25,0)","v":0}]
[null,"E",{"$f":"IF(B35=\"H\",'Inscrire facture'!N16*'Inscrire facture'!$AA$11,0)","v":0},{"$f":"C35 * 'Inscrire facture'!$AA$10","v":0},0,{"$f":"E35 * 'Inscrire facture'!$AA$10","v":0},{"$f":"'Inscrire facture'!N16-C35-E35","v":0},{"$f":"IF('Inscrire facture'!$AA$5=\"Mazout Léger (no 2)\",G35*Paramètres!$G$6*Paramètres!$G$7,IF('Inscrire facture'!$AA$5=\"Mazout Lourd (no 6)\",G35*Paramètres!$G$10*Paramètres!$G$11,IF('Inscrire facture'!$AA$5=\"Propane\",G35*Paramètres!$G$14*Paramètres!$G$15,\"Erreur\")))","v":0},{"$f":"H35/(DATEDIF('Inscrire facture'!F16,'Inscrire facture'!G16,\"D\")*24)/'Inscrire facture'!$AA$7","v":0},{"$f":"'Inscrire facture'!N16-C35","v":0},{"$f":"L35/(DATEDIF('Inscrire facture'!F16,'Inscrire facture'!G16,\"D\")*24)/'Inscrire facture'!$AA$7","v":0},{"$f":"IF('Inscrire facture'!$AA$5=\"Mazout Léger (no 2)\",J35*Paramètres!$G$6*Paramètres!$G$7,IF('Inscrire facture'!$AA$5=\"Mazout Lourd (no 6)\",J35*Paramètres!$G$10*Paramètres!$G$11,IF('Inscrire facture'!$AA$5=\"Propane\",J35*Paramètres!$G$14*Paramètres!$G$15,\"Erreur\")))","v":0},{"$f":"N35/(DATEDIF('Inscrire facture'!F16,'Inscrire facture'!G16,\"D\")*24)/'Inscrire facture'!$AA$7","v":0},{"$f":"SUM('Inscrire facture'!I16,L35)","v":0},{"$f":"P35/(DATEDIF('Inscrire facture'!F16,'Inscrire facture'!G16,\"D\")*24)/'Inscrire facture'!$AA$7","v":0},{"$f":"SUM('Inscrire facture'!I16,H35)","v":0},6.09,{"$f":"Paramètres!$D$6","v":6.09},{"$f":"IF(AND(M35>50,B35=\"H\"),(M35-50)*Paramètres!$D$11,0)","v":0},{"$f":"IF(B35=\"H\",Paramètres!$D$10,Paramètres!$D$9)","v":4.59},{"$f":"(IF(OR(M35>50,MAX($S$25:S35)>0),MAX((M35-50),MAX($S$25:S35))*T35,0)) * (DATEDIF('Inscrire facture'!F16,'Inscrire facture'!G16,\"D\")*24)/720","v":0},{"$f":"IF(N35<=1200,N35*Paramètres!$D$7,1200*Paramètres!$D$7)","v":0},{"$f":"IF(N35>1200,(N35-1200)*Paramètres!$D$8,0)","v":0},12.192,{"$f":"IF(AND(O35>50,B35=\"H\"),(O35-50)*Paramètres!$D$20,0)","v":0},{"$f":"DATEDIF('Inscrire facture'!F16,'Inscrire facture'!G16,\"D\") * Paramètres!$D$14","v":12.192},{"$f":"IF(B35=\"H\",Paramètres!$D$19,Paramètres!$D$18)","v":4.59},{"$f":"(IF(MAX((O35-50),MAX($Y$25:Y35)-50)>0,MAX((O35-50),MAX($Y$25:Y35)-50)*AA35,0)) * (DATEDIF('Inscrire facture'!F16,'Inscrire facture'!G16,\"D\")*24)/720","v":0},{"$f":"IF(B35=\"H\",(P35*Paramètres!$D$15*(1-Paramètres!$D$17))+(P35*Paramètres!$D$16*Paramètres!$D$17),P35*Paramètres!$D$15)","v":0},0,{"$f":"IF(B35=\"H\",M35*Paramètres!$D$26,0)","v":0},{"$f":"(MAX(M35,$AE$25:$AE35)*Paramètres!$D$23) * (DATEDIF('Inscrire facture'!F16,'Inscrire facture'!G16,\"D\")*24)/720","v":0},{"$f":"IF(N35<=210000,N35*Paramètres!$D$24,210000*Paramètres!$D$24)","v":0},{"$f":"IF(N35>210000,(N35-210000)*Paramètres!$D$25,0)","v":0}]
[null,"H",{"$f":"IF(B36=\"H\",'Inscrire facture'!N17*'Inscrire facture'!$AA$11,0)","v":0},{"$f":"C36 * 'Inscrire facture'!$AA$10","v":0},0,{"$f":"E36 * 'Inscrire facture'!$AA$10","v":0},{"$f":"'Inscrire facture'!N17-C36-E36","v":0},{"$f":"IF('Inscrire facture'!$AA$5=\"Mazout Léger (no 2)\",G36*Paramètres!$G$6*Paramètres!$G$7,IF('Inscrire facture'!$AA$5=\"Mazout Lourd (no 6)\",G36*Paramètres!$G$10*Paramètres!$G$11,IF('Inscrire facture'!$AA$5=\"Propane\",G36*Paramètres!$G$14*Paramètres!$G$15,\"Erreur\")))","v":0},{"$f":"H36/(DATEDIF('Inscrire facture'!F17,'Inscrire facture'!G17,\"D\")*24)/'Inscrire facture'!$AA$7","v":0},{"$f":"'Inscrire facture'!N17-C36","v":0},{"$f":"L36/(DATEDIF('Inscrire facture'!F17,'Inscrire facture'!G17,\"D\")*24)/'Inscrire facture'!$AA$7","v":0},{"$f":"IF('Inscrire facture'!$AA$5=\"Mazout Léger (no 2)\",J36*Paramètres!$G$6*Paramètres!$G$7,IF('Inscrire facture'!$AA$5=\"Mazout Lourd (no 6)\",J36*Paramètres!$G$10*Paramètres!$G$11,IF('Inscrire facture'!$AA$5=\"Propane\",J36*Paramètres!$G$14*Paramètres!$G$15,\"Erreur\")))","v":0},{"$f":"N36/(DATEDIF('Inscrire facture'!F17,'Inscrire facture'!G17,\"D\")*24)/'Inscrire facture'!$AA$7","v":0},{"$f":"SUM('Inscrire facture'!I17,L36)","v":0},{"$f":"P36/(DATEDIF('Inscrire facture'!F17,'Inscrire facture'!G17,\"D\")*24)/'Inscrire facture'!$AA$7","v":0},{"$f":"SUM('Inscrire facture'!I17,H36)","v":0},6.09,{"$f":"Paramètres!$D$6","v":6.09},{"$f":"IF(AND(M36>50,B36=\"H\"),(M36-50)*Paramètres!$D$11,0)","v":0},{"$f":"IF(B36=\"H\",Paramètres!$D$10,Paramètres!$D$9)","v":6.21},{"$f":"(IF(OR(M36>50,MAX($S$25:S36)>0),MAX((M36-50),MAX($S$25:S36))*T36,0)) * (DATEDIF('Inscrire facture'!F17,'Inscrire facture'!G17,\"D\")*24)/720","v":0},{"$f":"IF(N36<=1200,N36*Paramètres!$D$7,1200*Paramètres!$D$7)","v":0},{"$f":"IF(N36>1200,(N36-1200)*Paramètres!$D$8,0)","v":0},12.5984,{"$f":"IF(AND(O36>50,B36=\"H\"),(O36-50)*Paramètres!$D$20,0)","v":0},{"$f":"DATEDIF('Inscrire facture'!F17,'Inscrire facture'!G17,\"D\") * Paramètres!$D$14","v":12.5984},{"$f":"IF(B36=\"H\",Paramètres!$D$19,Paramètres!$D$18)","v":6.21},{"$f":"(IF(MAX((O36-50),MAX($Y$25:Y36)-50)>0,MAX((O36-50),MAX($Y$25:Y36)-50)*AA36,0)) * (DATEDIF('Inscrire facture'!F17,'Inscrire facture'!G17,\"D\")*24)/720","v":0},{"$f":"IF(B36=\"H\",(P36*Paramètres!$D$15*(1-Paramètres!$D$17))+(P36*Paramètres!$D$16*Paramètres!$D$17),P36*Paramètres!$D$15)","v":0},0,{"$f":"IF(B36=\"H\",M36*Paramètres!$D$26,0)","v":0},{"$f":"(MAX(M36,$AE$25:$AE36)*Paramètres!$D$23) * (DATEDIF('Inscrire facture'!F17,'Inscrire facture'!G17,\"D\")*24)/720","v":0},{"$f":"IF(N36<=210000,N36*Paramètres!$D$24,210000*Paramètres!$D$24)","v":0},{"$f":"IF(N36>210000,(N36-210000)*Paramètres!$D$25,0)","v":0}]
[null,null,{"$f":"SUM(C25:C36)","v":0},0,0,0,0,0,null,{"$f":"SUM(J25:J36)","v":0},null,{"$f":"SUM(L25:L36)","v":0},{"$f":"MAX(M25:M36)","v":0},{"$f":"SUM(N25:N36)","v":0},{"$f":"MAX(O25:O36)","v":0},{"$f":"SUM(P25:P36)","v":0},{"$f":"SUM(Q25:Q36)","v":73.080000000000013},{"$f":"SUM(R25:R36)","v":73.080000000000013},null,null,{"$f":"SUM(U25:U36)","v":0},{"$f":"SUM(V25:V36)","v":0},{"$f":"SUM(W25:W36)","v":0},{"$f":"SUM(X25:X36)","v":148.33600000000001},null,{"$f":"SUM(Z25:Z36)","v":148.33600000000001},null,{"$f":"SUM(AB25:AB36)","v":0},{"$f":"SUM(AC25:AC36)","v":0},{"$f":"SUM(AD25:AD36)","v":0},null,{"$f":"SUM(AF25:AF36)","v":0},{"$f":"SUM(AG25:AG36)","v":0},{"$f":"SUM(AH25:AH36)","v":0}]
[]
[null,null,null,"Tarif DT calculs additionnels",null,null,null,null,"Facteur d'utilisation"]
[null,null,null,"Facteur conversion","Énergie totale","pourcentage","Tarif DT"]
[null,null,null,"Litres -> kWh","consommée","en hiver","en litres",null,"Mois","nb jour","FU"]
[null,null,null,{"$f":"IF('Inscrire facture'!$AA$5=\"Mazout Léger (no 2)\",Paramètres!$G$6*Paramètres!$G$7,IF('Inscrire facture'!$AA$5=\"Mazout Lourd (no 6)\",Paramètres!$G$10*Paramètres!$G$11,IF('Inscrire facture'!$AA$5=\"Propane\",Paramètres!$G$14*Paramètres!$G$15,\"Erreur\")))","v":7.4829999999999988},{"$f":"'Inscrire facture'!I6+('Inscrire facture'!N6*D42)","v":0},{"$f":"IF(B25=\"H\",VLOOKUP('Inscrire facture'!$AA$4,DegresJourHiver!$B$3:$E$14,4),0)*1.2","v":6.5225844280085987E-2},{"$f":"(E42*F42) / D42","v":0},null,{"$f":"'Inscrire facture'!E6","v":"Janvier"},{"$f":"(DATEDIF('Inscrire facture'!F6,'Inscrire facture'!G6,\"D\"))","v":31},{"$f":"'Inscrire facture'!I6 / ('Inscrire facture'!H6*J42*24)","v":{"$error":"#DIV/0!"}}]
[null,null,null,{"$f":"IF('Inscrire facture'!$AA$5=\"Mazout Léger (no 2)\",Paramètres!$G$6*Paramètres!$G$7,IF('Inscrire facture'!$AA$5=\"Mazout Lourd (no 6)\",Paramètres!$G$10*Paramètres!$G$11,IF('Inscrire facture'!$AA$5=\"Propane\",Paramètres!$G$14*Paramètres!$G$15,\"Erreur\")))","v":7.4829999999999988},{"$f":"'Inscrire facture'!I7+('Inscrire facture'!N7*D43)","v":0},{"$f":"IF(B26=\"H\",VLOOKUP('Inscrire facture'!$AA$4,DegresJourHiver!$B$3:$E$14,4),0)*1.2","v":6.5225844280085987E-2},0,null,{"$f":"'Inscrire facture'!E7","v":"Février"},{"$f":"(DATEDIF('Inscrire facture'!F7,'Inscrire facture'!G7,\"D\"))","v":28},{"$f":"'Inscrire facture'!I7 / ('Inscrire facture'!H7*J43*24)","v":{"$error":"#DIV/0!"}}]
[null,null,null,{"$f":"IF('Inscrire facture'!$AA$5=\"Mazout Léger (no 2)\",Paramètres!$G$6*Paramètres!$G$7,IF('Inscrire facture'!$AA$5=\"Mazout Lourd (no 6)\",Paramètres!$G$10*Paramètres!$G$11,IF('Inscrire facture'!$AA$5=\"Propane\",Paramètres!$G$14*Paramètres!$G$15,\"Erreur\")))","v":7.4829999999999988},{"$f":"'Inscrire facture'!I8+('Inscrire facture'!N8*D44)","v":0},{"$f":"IF(B27=\"H\",VLOOKUP('Inscrire facture'!$AA$4,DegresJourHiver!$B$3:$E$14,4),0)*1.2","v":6.5225844280085987E-2},0,null,{"$f":"'Inscrire facture'!E8","v":"Mars"},{"$f":"(DATEDIF('Inscrire facture'!F8,'Inscrire facture'!G8,\"D\"))","v":31},{"$f":"'Inscrire facture'!I8 / ('Inscrire facture'!H8*J44*24)","v":{"$error":"#DIV/0!"}}]
[null,null,null,{"$f":"IF('Inscrire facture'!$AA$5=\"Mazout Léger (no 2)\",Paramètres!$G$6*Paramètres!$G$7,IF('Inscrire facture'!$AA$5=\"Mazout Lourd (no 6)\",Paramètres!$G$10*Paramètres!$G$11,IF('Inscrire facture'!$AA$5=\"Propane\",Paramètres!$G$14*Paramètres!$G$15,\"Erreur\")))","v":7.4829999999999988},{"$f":"'Inscrire facture'!I9+('Inscrire facture'!N9*D45)","v":0},{"$f":"IF(B28=\"H\",VLOOKUP('Inscrire facture'!$AA$4,DegresJourHiver!$B$3:$E$14,4),0)*1.2","v":0},0,null,{"$f":"'Inscrire facture'!E9","v":"Avril"},{"$f":"(DATEDIF('Inscrire facture'!F9,'Inscrire facture'!G9,\"D\"))","v":30},{"$f":"'Inscrire facture'!I9 / ('Inscrire facture'!H9*J45*24)","v":{"$error":"#DIV/0!"}}]
[null,null,null,{"$f":"IF('Inscrire facture'!$AA$5=\"Mazout Léger (no 2)\",Paramètres!$G$6*Paramètres!$G$7,IF('Inscrire facture'!$AA$5=\"Mazout Lourd (no 6)\",Paramètres!$G$10*Paramètres!$G$11,IF('Inscrire facture'!$AA$5=\"Propane\",Paramètres!$G$14*Paramètres!$G$15,\"Erreur\")))","v":7.4829999999999988},{"$f":"'Inscrire facture'!I10+('Inscrire facture'!N10*D46)","v":0},{"$f":"IF(B29=\"H\",VLOOKUP('Inscrire facture'!$AA$4,DegresJourHiver!$B$3:$E$14,4),0)*1.2","v":0},0,null,{"$f":"'Inscrire facture'!E10","v":"Mai"},{"$f":"(DATEDIF('Inscrire facture'!F10,'Inscrire facture'!G10,\"D\"))","v":31},{"$f":"'Inscrire facture'!I10 / ('Inscrire facture'!H10*J46*24)","v":{"$error":"#DIV/0!"}}]
[null,null,null,{"$f":"IF('Inscrire facture'!$AA$5=\"Mazout Léger (no 2)\",Paramètres!$G$6*Paramètres!$G$7,IF('Inscrire facture'!$AA$5=\"Mazout Lourd (no 6)\",Paramètres!$G$10*Paramètres!$G$11,IF('Inscrire facture'!$AA$5=\"Propane\",Paramètres!$G$14*Paramètres!$G$15,\"Erreur\")))","v":7.4829999999999988},{"$f":"'Inscrire facture'!I11+('Inscrire facture'!N11*D47)","v":0},{"$f":"IF(B30=\"H\",VLOOKUP('Inscrire facture'!$AA$4,DegresJourHiver!$B$3:$E$14,4),0)*1.2","v":0},0,null,{"$f":"'Inscrire facture'!E11","v":"Juin"},{"$f":"(DATEDIF('Inscrire facture'!F11,'Inscrire facture'!G11,\"D\"))","v":30},{"$f":"'Inscrire facture'!I11 / ('Inscrire facture'!H11*J47*24)","v":{"$error":"#DIV/0!"}}]
[null,null,null,{"$f":"IF('Inscrire facture'!$AA$5=\"Mazout Léger (no 2)\",Paramètres!$G$6*Paramètres!$G$7,IF('Inscrire facture'!$AA$5=\"Mazout Lourd (no 6)\",Paramètres!$G$10*Paramètres!$G$11,IF('Inscrire facture'!$AA$5=\"Propane\",Paramètres!$G$14*Paramètres!$G$15,\"Erreur\")))","v":7.4829999999999988},{"$f":"'Inscrire facture'!I12+('Inscrire facture'!N12*D48)","v":0},{"$f":"IF(B31=\"H\",VLOOKUP('Inscrire facture'!$AA$4,DegresJourHiver!$B$3:$E$14,4),0)*1.2","v":0},0,null,{"$f":"'Inscrire facture'!E12","v":"Juillet"},{"$f":"(DATEDIF('Inscrire facture'!F12,'Inscrire facture'!G12,\"D\"))","v":31},{"$f":"'Inscrire facture'!I12 / ('Inscrire facture'!H12*J48*24)","v":{"$error":"#DIV/0!"}}]
[null,null,null,{"$f":"IF('Inscrire facture'!$AA$5=\"Mazout Léger (no 2)\",Paramètres!$G$6*Paramètres!$G$7,IF('Inscrire facture'!$AA$5=\"Mazout Lourd (no 6)\",Paramètres!$G$10*Paramètres!$G$11,IF('Inscrire facture'!$AA$5=\"Propane\",Paramètres!$G$14*Paramètres!$G$15,\"Erreur\")))","v":7.4829999999999988},{"$f":"'Inscrire facture'!I13+('Inscrire facture'!N13*D49)","v":0},{"$f":"IF(B32=\"H\",VLOOKUP('Inscrire facture'!$AA$4,DegresJourHiver!$B$3:$E$14,4),0)*1.2","v":0},0,null,{"$f":"'Inscrire facture'!E13","v":"Août"},{"$f":"(DATEDIF('Inscrire facture'!F13,'Inscrire facture'!G13,\"D\"))","v":31},{"$f":"'Inscrire facture'!I13 / ('Inscrire facture'!H13*J49*24)","v":{"$error":"#DIV/0!"}}]
[null,null,null,{"$f":"IF('Inscrire facture'!$AA$5=\"Mazout Léger (no 2)\",Paramètres!$G$6*Paramètres!$G$7,IF('Inscrire facture'!$AA$5=\"Mazout Lourd (no 6)\",Paramètres!$G$10*Paramètres!$G$11,IF('Inscrire facture'!$AA$5=\"Propane\",Paramètres!$G$14*Paramètres!$G$15,\"Erreur\")))","v":7.4829999999999988},{"$f":"'Inscrire facture'!I14+('Inscrire facture'!N14*D50)","v":0},{"$f":"IF(B33=\"H\",VLOOKUP('Inscrire facture'!$AA$4,DegresJourHiver!$B$3:$E$14,4),0)*1.2","v":0},0,null,{"$f":"'Inscrire facture'!E14","v":"Septembre"},{"$f":"(DATEDIF('Inscrire facture'!F14,'Inscrire facture'!G14,\"D\"))","v":30},{"$f":"'Inscrire facture'!I14 / ('Inscrire facture'!H14*J50*24)","v":{"$error":"#DIV/0!"}}]
[null,null,null,{"$f":"IF('Inscrire facture'!$AA$5=\"Mazout Léger (no 2)\",Paramètres!$G$6*Paramètres!$G$7,IF('Inscrire facture'!$AA$5=\"Mazout Lourd (no 6)\",Paramètres!$G$10*Paramètres!$G$11,IF('Inscrire facture'!$AA$5=\"Propane\",Paramètres!$G$14*Paramètres!$G$15,\"Erreur\")))","v":7.4829999999999988},{"$f":"'Inscrire facture'!I15+('Inscrire facture'!N15*D51)","v":0},{"$f":"IF(B34=\"H\",VLOOKUP('Inscrire facture'!$AA$4,DegresJourHiver!$B$3:$E$14,4),0)*1.2","v":0},0,null,{"$f":"'Inscrire facture'!E15","v":"Octobre"},{"$f":"(DATEDIF('Inscrire facture'!F15,'Inscrire facture'!G15,\"D\"))","v":31},{"$f":"'Inscrire facture'!I15 / ('Inscrire facture'!H15*J51*24)","v":{"$error":"#DIV/0!"}}]
[null,null,null,{"$f":"IF('Inscrire facture'!$AA$5=\"Mazout Léger (no 2)\",Paramètres!$G$6*Paramètres!$G$7,IF('Inscrire facture'!$AA$5=\"Mazout Lourd (no 6)\",Paramètres!$G$10*Paramètres!$G$11,IF('Inscrire facture'!$AA$5=\"Propane\",Paramètres!$G$14*Paramètres!$G$15,\"Erreur\")))","v":7.4829999999999988},{"$f":"'Inscrire facture'!I16+('Inscrire facture'!N16*D52)","v":0},{"$f":"IF(B35=\"H\",VLOOKUP('Inscrire facture'!$AA$4,DegresJourHiver!$B$3:$E$14,4),0)*1.2","v":0},0,null,{"$f":"'Inscrire facture'!E16","v":"Novembre"},{"$f":"(DATEDIF('Inscrire facture'!F16,'Inscrire facture'!G16,\"D\"))","v":30},{"$f":"'Inscrire facture'!I16 / ('Inscrire facture'!H16*J52*24)","v":{"$error":"#DIV/0!"}}]
[null,null,null,{"$f":"IF('Inscrire facture'!$AA$5=\"Mazout Léger (no 2)\",Paramètres!$G$6*Paramètres!$G$7,IF('Inscrire facture'!$AA$5=\"Mazout Lourd (no 6)\",Paramètres!$G$10*Paramètres!$G$11,IF('Inscrire facture'!$AA$5=\"Propane\",Paramètres!$G$14*Paramètres!$G$15,\"Erreur\")))","v":7.4829999999999988},{"$f":"'Inscrire facture'!I17+('Inscrire facture'!N17*D53)","v":0},{"$f":"IF(B36=\"H\",VLOOKUP('Inscrire facture'!$AA$4,DegresJourHiver!$B$3:$E$14,4),0)*1.2","v":6.5225844280085987E-2},0,null,{"$f":"'Inscrire facture'!E17","v":"Décembre"},{"$f":"(DATEDIF('Inscrire facture'!F17,'Inscrire facture'!G17,\"D\"))","v":31},{"$f":"'Inscrire facture'!I17 / ('Inscrire facture'!H17*J53*24)","v":{"$error":"#DIV/0!"}}]
[null,null,null,null,null,null,null,null,"FU moyen",null,{"$f":"IFERROR(ROUND(AVERAGE(K42:K53)*100,1),\"\")","v":""}]